Department Family,Entity,Date,Expense Type,Expense Area,Supplier,Transaction Number,Amount,Description
Department for Education,DEPARTMENT FOR EDUCATION,03/02/2020,Other costs,SOCIAL CARE MOBILITY AND DISADVANTAGE,OFFICE OF THE CHILDRENS COMMISSIONER,30000729,259000.00,Current grants paid to organisations including arms length bodies and educational establishments
Department for Education,DEPARTMENT FOR EDUCATION,03/02/2020,Other Goods & Services,CHILDRENS SOCIAL CARE,MUTUAL VENTURES LTD,1041110227,68944.58,"Fees / expenses of professionals such as auditors, accountants, lawyers, etc. engaged to provide advice or opinion on how to affect something"
Department for Education,DEPARTMENT FOR EDUCATION,03/02/2020,Other Goods & Services,CHILDRENS SOCIAL CARE,MUTUAL VENTURES LTD,1041110227,13788.92,"Fees / expenses of professionals such as auditors, accountants, lawyers, etc. engaged to provide advice or opinion on how to affect something"
Department for Education,DEPARTMENT FOR EDUCATION,11/02/2020,Grants expenditure,CHILDRENS SOCIAL CARE,SURREY COUNTY COUNCIL,1041111360,694656.00,Grants to local authorities / other establishments within aggregate external funding or aggregate exchequer grant
Department for Education,DEPARTMENT FOR EDUCATION,12/02/2020,Grants expenditure,CHILDRENS SOCIAL CARE,BARNARDOS,1041111434,70878.93,Grants to educational establishments or not for profit organisations including other businesses
Department for Education,DEPARTMENT FOR EDUCATION,14/02/2020,Grants expenditure,CHILDRENS SOCIAL CARE,PAUSE CREATING SPACE FOR CHANGE,1041112272,100708.08,Grants to educational establishments or not for profit organisations including other businesses
Department for Education,DEPARTMENT FOR EDUCATION,14/02/2020,Other Goods & Services,CHILDRENS SOCIAL CARE,BEHAVIOURAL INSIGHTS LTD,1041112297,39416.74,Research and Development
Department for Education,DEPARTMENT FOR EDUCATION,14/02/2020,Grants expenditure,CHILDRENS SOCIAL CARE,DAYBREAK FAMILY GROUP CONFERENCES,1041112315,50259.00,Grants to educational establishments or not for profit organisations including other businesses
Department for Education,DEPARTMENT FOR EDUCATION,17/02/2020,Other Goods & Services,CHILDRENS SOCIAL CARE,UNIVERSITY OF SUSSEX,1041112421,77498.00,Research and Development
Department for Education,DEPARTMENT FOR EDUCATION,17/02/2020,Other Goods & Services,CHILDRENS SOCIAL CARE,THE TAVISTOCK INSTITUTE OF HUMAN RELATIONS,1041112441,41000.00,Research and Development
Department for Education,DEPARTMENT FOR EDUCATION,18/02/2020,Other Goods & Services,CHILDRENS SOCIAL CARE,ICF CONSULTING SERVICES LTD,1041112691,22625.00,Research and Development
Department for Education,DEPARTMENT FOR EDUCATION,26/02/2020,Other Goods & Services,CHILDRENS SOCIAL CARE,YORK CONSULTING LLP,1041114016,70500.00,Research and Development
Department for Education,DEPARTMENT FOR EDUCATION,26/02/2020,Other Goods & Services,CHILDRENS SOCIAL CARE,UNIVERSITY OF OXFORD,1041114078,25088.00,Research and Development
Department for Education,DEPARTMENT FOR EDUCATION,26/02/2020,Other Goods & Services,CHILDRENS SOCIAL CARE,UNIVERSITY OF OXFORD,1041114078,25359.00,Research and Development
Department for Education,DEPARTMENT FOR EDUCATION,26/02/2020,Other Goods & Services,CHILDRENS SOCIAL CARE,UNIVERSITY OF OXFORD,1041114078,33006.00,Research and Development
Department for Education,DEPARTMENT FOR EDUCATION,03/02/2020,Grants expenditure,CHILDRENS SOCIAL CARE,THE DARTINGTON HALL TRUST,1041110071,120520.00,Grants to educational establishments or not for profit organisations including other businesses
Department for Education,DEPARTMENT FOR EDUCATION,11/02/2020,Grants expenditure,CHILDRENS SOCIAL CARE,NSPCC,1041111347,500000.00,Grants to educational establishments or not for profit organisations including other businesses
Department for Education,DEPARTMENT FOR EDUCATION,04/02/2020,Grants expenditure,CHILDRENS SOCIAL CARE,TOGETHER FOR CHILDREN SUNDERLAND,1041110449,141247.00,Grants to educational establishments or not for profit organisations including other businesses
Department for Education,DEPARTMENT FOR EDUCATION,07/02/2020,Grants expenditure,CHILDRENS SOCIAL CARE,SLOUGH CHILDRENS SERVICES TRUST LTD,1041110981,177132.88,Grants to educational establishments or not for profit organisations including other businesses
Department for Education,DEPARTMENT FOR EDUCATION,13/02/2020,Other Goods & Services,CHILDRENS SOCIAL CARE,BURGES SALMON COMPANY LTD,1041111860,22500.00,"Fees / expenses of professionals such as auditors, accountants, lawyers, etc. engaged to provide advice or opinion on how to affect something"
Department for Education,DEPARTMENT FOR EDUCATION,13/02/2020,Other Goods & Services,CHILDRENS SOCIAL CARE,BURGES SALMON COMPANY LTD,1041111860,4500.00,"Fees / expenses of professionals such as auditors, accountants, lawyers, etc. engaged to provide advice or opinion on how to affect something"
Department for Education,DEPARTMENT FOR EDUCATION,13/02/2020,Other Goods & Services,CHILDRENS SOCIAL CARE,MUTUAL VENTURES LTD,1041111940,90752.28,"Fees / expenses of professionals such as auditors, accountants, lawyers, etc. engaged to provide advice or opinion on how to affect something"
Department for Education,DEPARTMENT FOR EDUCATION,13/02/2020,Other Goods & Services,CHILDRENS SOCIAL CARE,MUTUAL VENTURES LTD,1041111940,18150.46,"Fees / expenses of professionals such as auditors, accountants, lawyers, etc. engaged to provide advice or opinion on how to affect something"
Department for Education,DEPARTMENT FOR EDUCATION,19/02/2020,Grants expenditure,CHILDRENS SOCIAL CARE,SANDWELL CHILDRENS TRUST,1041112909,658981.00,Grants to educational establishments or not for profit organisations including other businesses
Department for Education,DEPARTMENT FOR EDUCATION,19/02/2020,Grants expenditure,CHILDRENS SOCIAL CARE,DONCASTER CHILDRENS SERVICES TRUST,1041112967,197042.00,Grants to educational establishments or not for profit organisations including other businesses
Department for Education,DEPARTMENT FOR EDUCATION,21/02/2020,Grants expenditure,CHILDRENS SOCIAL CARE,LOCAL GOVERNMENT ASSOCIATION,1041113539,296889.00,Grants to educational establishments or not for profit organisations including other businesses
Department for Education,DEPARTMENT FOR EDUCATION,24/02/2020,Grants expenditure,CHILDRENS SOCIAL CARE,TORBAY COUNCIL,1041113564,234394.39,Grants to local authorities / other establishments within aggregate external funding or aggregate exchequer grant
Department for Education,DEPARTMENT FOR EDUCATION,28/02/2020,Grants expenditure,CHILDRENS SOCIAL CARE,ESSEX COUNTY COUNCIL,1041114477,150000.00,Grants to local authorities / other establishments within aggregate external funding or aggregate exchequer grant
Department for Education,DEPARTMENT FOR EDUCATION,28/02/2020,Grants expenditure,CHILDRENS SOCIAL CARE,NORTH TYNESIDE,1041114491,150000.00,Grants to local authorities / other establishments within aggregate external funding or aggregate exchequer grant
Department for Education,DEPARTMENT FOR EDUCATION,04/02/2020,Professional Services,CHILDRENS SOCIAL CARE,THE FRONTLINE ORGANISATION,1041110288,2232205.00,"Advisory services including fees, travel and expenses"
Department for Education,DEPARTMENT FOR EDUCATION,04/02/2020,Grants expenditure,CHILDRENS SOCIAL CARE,LANCASHIRE COUNTY COUNCIL,1041110441,117071.26,Grants to local authorities / other establishments within aggregate external funding or aggregate exchequer grant
Department for Education,DEPARTMENT FOR EDUCATION,06/02/2020,Other Goods & Services,CHILDRENS SOCIAL CARE,THE FRONTLINE ORGANISATION,1041110812,273152.97,"Fees / expenses of professionals such as auditors, accountants, lawyers, etc. engaged to provide advice or opinion on how to affect something"
Department for Education,DEPARTMENT FOR EDUCATION,06/02/2020,Other Goods & Services,CHILDRENS SOCIAL CARE,THE FRONTLINE ORGANISATION,1041110812,23919.03,"Fees / expenses of professionals such as auditors, accountants, lawyers, etc. engaged to provide advice or opinion on how to affect something"
Department for Education,DEPARTMENT FOR EDUCATION,11/02/2020,Grants expenditure,CHILDRENS SOCIAL CARE,ACHIEVING FOR CHILDREN,1041111317,282984.00,Grants to educational establishments or not for profit organisations including other businesses
Department for Education,DEPARTMENT FOR EDUCATION,13/02/2020,Other Goods & Services,CHILDRENS SOCIAL CARE,SKILLS FOR CARE LTD,1041111868,532000.00,"Fees / expenses of professionals such as auditors, accountants, lawyers, etc. engaged to provide advice or opinion on how to affect something"
Department for Education,DEPARTMENT FOR EDUCATION,13/02/2020,Other Goods & Services,CHILDRENS SOCIAL CARE,SKILLS FOR CARE LTD,1041111868,46968.33,"Fees / expenses of professionals such as auditors, accountants, lawyers, etc. engaged to provide advice or opinion on how to affect something"
Department for Education,DEPARTMENT FOR EDUCATION,13/02/2020,Other Goods & Services,CHILDRENS SOCIAL CARE,SKILLS FOR CARE LTD,1041111868,9393.67,"Fees / expenses of professionals such as auditors, accountants, lawyers, etc. engaged to provide advice or opinion on how to affect something"
Department for Education,DEPARTMENT FOR EDUCATION,19/02/2020,Other Goods & Services,CHILDRENS SOCIAL CARE,MOTT MACDONALD LTD,1041113061,455777.00,"Fees / expenses of professionals such as auditors, accountants, lawyers, etc. engaged to provide advice or opinion on how to affect something"
Department for Education,DEPARTMENT FOR EDUCATION,19/02/2020,Other Goods & Services,CHILDRENS SOCIAL CARE,MOTT MACDONALD LTD,1041113061,91155.40,"Fees / expenses of professionals such as auditors, accountants, lawyers, etc. engaged to provide advice or opinion on how to affect something"
Department for Education,DEPARTMENT FOR EDUCATION,24/02/2020,Grants expenditure,CHILDRENS SOCIAL CARE,MEDWAY COUNCIL,1041113563,495837.83,Grants to local authorities / other establishments within aggregate external funding or aggregate exchequer grant
Department for Education,DEPARTMENT FOR EDUCATION,24/02/2020,Grants expenditure,CHILDRENS SOCIAL CARE,CITY OF BRADFORD METROPOLITAN DISTRICT COUNCIL,1041113574,105946.00,Grants to local authorities / other establishments within aggregate external funding or aggregate exchequer grant
Department for Education,DEPARTMENT FOR EDUCATION,24/02/2020,Grants expenditure,CHILDRENS SOCIAL CARE,THE FRONTLINE ORGANISATION,1041113657,71837.00,Grants to educational establishments or not for profit organisations including other businesses
Department for Education,DEPARTMENT FOR EDUCATION,24/02/2020,Grants expenditure,CHILDRENS SOCIAL CARE,BOURNEMOUTH CHRISTCHURCH & POOLE COUNCIL,1041113685,64466.47,Grants to local authorities / other establishments within aggregate external funding or aggregate exchequer grant
Department for Education,DEPARTMENT FOR EDUCATION,25/02/2020,Other Goods & Services,CHILDRENS SOCIAL CARE,CARDIFF UNIVERSITY,1041113736,29114.90,Research and Development
Department for Education,DEPARTMENT FOR EDUCATION,27/02/2020,Grants expenditure,CHILDRENS SOCIAL CARE,HERTFORDSHIRE COUNTY COUNCIL,1041114221,117704.89,Grants to local authorities / other establishments within aggregate external funding or aggregate exchequer grant
Department for Education,DEPARTMENT FOR EDUCATION,27/02/2020,Grants expenditure,CHILDRENS SOCIAL CARE,STOKE ON TRENT CITY COUNCIL,1041114254,151300.22,Grants to local authorities / other establishments within aggregate external funding or aggregate exchequer grant
Department for Education,DEPARTMENT FOR EDUCATION,27/02/2020,Grants expenditure,CHILDRENS SOCIAL CARE,LONDON BOROUGH OF BROMLEY COUNCIL,1041114273,49242.40,Grants to local authorities / other establishments within aggregate external funding or aggregate exchequer grant
Department for Education,DEPARTMENT FOR EDUCATION,27/02/2020,Grants expenditure,CHILDRENS SOCIAL CARE,LANCASHIRE COUNTY COUNCIL,1041114274,33250.05,Grants to local authorities / other establishments within aggregate external funding or aggregate exchequer grant
Department for Education,DEPARTMENT FOR EDUCATION,27/02/2020,Grants expenditure,CHILDRENS SOCIAL CARE,BUCKINGHAMSHIRE COUNTY COUNCIL,1041114287,51983.41,Grants to local authorities / other establishments within aggregate external funding or aggregate exchequer grant
Department for Education,DEPARTMENT FOR EDUCATION,27/02/2020,Grants expenditure,CHILDRENS SOCIAL CARE,LONDON BOROUGH OF ISLINGTON COUNCIL,1041114288,66783.43,Grants to local authorities / other establishments within aggregate external funding or aggregate exchequer grant
Department for Education,DEPARTMENT FOR EDUCATION,27/02/2020,Grants expenditure,CHILDRENS SOCIAL CARE,COVENTRY CITY COUNCIL,1041114290,299089.35,Grants to local authorities / other establishments within aggregate external funding or aggregate exchequer grant
Department for Education,DEPARTMENT FOR EDUCATION,28/02/2020,Grants expenditure,CHILDRENS SOCIAL CARE,HERTFORDSHIRE COUNTY COUNCIL,1041114298,47550.07,Grants to local authorities / other establishments within aggregate external funding or aggregate exchequer grant
Department for Education,DEPARTMENT FOR EDUCATION,28/02/2020,Grants expenditure,CHILDRENS SOCIAL CARE,ESSEX COUNTY COUNCIL,1041114477,90450.13,Grants to local authorities / other establishments within aggregate external funding or aggregate exchequer grant
Department for Education,DEPARTMENT FOR EDUCATION,04/02/2020,Grants expenditure,COMMUNICATIONS DIRECTORATE,FAMILY RIGHTS GROUP LTD,1041110440,58313.00,Grants to educational establishments or not for profit organisations including other businesses
Department for Education,DEPARTMENT FOR EDUCATION,12/02/2020,Grants expenditure,COMMUNICATIONS DIRECTORATE,FAMILY RIGHTS GROUP LTD,1041111670,80000.00,Grants to educational establishments or not for profit organisations including other businesses
Department for Education,DEPARTMENT FOR EDUCATION,03/02/2020,Other Goods & Services,Adoption and Children in Care Division,MOTT MACDONALD LTD,1041110152,126747.46,"Fees / expenses of professionals such as auditors, accountants, lawyers, etc. engaged to provide advice or opinion on how to affect something"
Department for Education,DEPARTMENT FOR EDUCATION,03/02/2020,Other Goods & Services,Adoption and Children in Care Division,MOTT MACDONALD LTD,1041110152,25349.49,"Fees / expenses of professionals such as auditors, accountants, lawyers, etc. engaged to provide advice or opinion on how to affect something"
Department for Education,DEPARTMENT FOR EDUCATION,04/02/2020,Grants expenditure,Adoption and Children in Care Division,LONDON BOROUGH OF HAVERING,1041110445,34429.00,Grants to local authorities / other establishments within aggregate external funding or aggregate exchequer grant
Department for Education,DEPARTMENT FOR EDUCATION,05/02/2020,Grants expenditure,Adoption and Children in Care Division,THE SHARE FOUNDATION 3RD PARTY TRUST,1041110644,44200.00,Grants to educational establishments or not for profit organisations including other businesses
Department for Education,DEPARTMENT FOR EDUCATION,05/02/2020,Consultancy,Adoption and Children in Care Division,DELOITTE,1041110699,46868.58,"Advisory services including fees, travel and expenses"
Department for Education,DEPARTMENT FOR EDUCATION,06/02/2020,Other Goods & Services,Adoption and Children in Care Division,SQW LTD,1041110865,-25580.00,Research and Development
Department for Education,DEPARTMENT FOR EDUCATION,06/02/2020,Other Goods & Services,Adoption and Children in Care Division,SQW LTD,1041110865,25580.00,Research and Development
Department for Education,DEPARTMENT FOR EDUCATION,11/02/2020,Grants expenditure,Adoption and Children in Care Division,BREAK CHARITY,1041111335,59472.21,Grants to educational establishments or not for profit organisations including other businesses
Department for Education,DEPARTMENT FOR EDUCATION,11/02/2020,Grants expenditure,Adoption and Children in Care Division,LANCASHIRE COUNTY COUNCIL,1041111358,64793.67,Grants to local authorities / other establishments within aggregate external funding or aggregate exchequer grant
Department for Education,DEPARTMENT FOR EDUCATION,11/02/2020,Grants expenditure,Adoption and Children in Care Division,HAMPSHIRE COUNTY COUNCIL,1041111359,57448.00,Grants to local authorities / other establishments within aggregate external funding or aggregate exchequer grant
Department for Education,DEPARTMENT FOR EDUCATION,12/02/2020,Grants expenditure,Adoption and Children in Care Division,WEST SUSSEX COUNTY COUNCIL,1041111408,60176.00,Grants to local authorities / other establishments within aggregate external funding or aggregate exchequer grant
Department for Education,DEPARTMENT FOR EDUCATION,12/02/2020,Grants expenditure,Adoption and Children in Care Division,LEICESTER CITY COUNCIL,1041111411,38798.00,Grants to local authorities / other establishments within aggregate external funding or aggregate exchequer grant
Department for Education,DEPARTMENT FOR EDUCATION,12/02/2020,Grants expenditure,Adoption and Children in Care Division,WILTSHIRE COUNCIL,1041111413,26127.00,Grants to local authorities / other establishments within aggregate external funding or aggregate exchequer grant
Department for Education,DEPARTMENT FOR EDUCATION,12/02/2020,Grants expenditure,Adoption and Children in Care Division,STAFFORDSHIRE COUNCIL,1041111414,57008.00,Grants to local authorities / other establishments within aggregate external funding or aggregate exchequer grant
Department for Education,DEPARTMENT FOR EDUCATION,12/02/2020,Grants expenditure,Adoption and Children in Care Division,LONDON BOROUGH OF LAMBETH COUNCIL,1041111416,73636.00,Grants to local authorities / other establishments within aggregate external funding or aggregate exchequer grant
Department for Education,DEPARTMENT FOR EDUCATION,12/02/2020,Grants expenditure,Adoption and Children in Care Division,DEVON COUNTY COUNCIL,1041111418,42756.00,Grants to local authorities / other establishments within aggregate external funding or aggregate exchequer grant
Department for Education,DEPARTMENT FOR EDUCATION,12/02/2020,Grants expenditure,Adoption and Children in Care Division,LONDON BOROUGH OF SOUTHWARK COUNCIL,1041111419,84721.00,Grants to local authorities / other establishments within aggregate external funding or aggregate exchequer grant
Department for Education,DEPARTMENT FOR EDUCATION,12/02/2020,Grants expenditure,Adoption and Children in Care Division,TRAFFORD MB COUNCIL,1041111435,26127.00,Grants to local authorities / other establishments within aggregate external funding or aggregate exchequer grant
Department for Education,DEPARTMENT FOR EDUCATION,12/02/2020,Grants expenditure,Adoption and Children in Care Division,SOUTHAMPTON CITY COUNCIL,1041111437,37213.00,Grants to local authorities / other establishments within aggregate external funding or aggregate exchequer grant
Department for Education,DEPARTMENT FOR EDUCATION,12/02/2020,Grants expenditure,Adoption and Children in Care Division,HAMPSHIRE COUNTY COUNCIL,1041111439,110057.00,Grants to local authorities / other establishments within aggregate external funding or aggregate exchequer grant
Department for Education,DEPARTMENT FOR EDUCATION,12/02/2020,Grants expenditure,Adoption and Children in Care Division,BRIGHTON & HOVE CITY COUNCIL,1041111440,70469.00,Grants to local authorities / other establishments within aggregate external funding or aggregate exchequer grant
Department for Education,DEPARTMENT FOR EDUCATION,12/02/2020,Grants expenditure,Adoption and Children in Care Division,NEWCASTLE CITY COUNCIL,1041111442,49882.00,Grants to local authorities / other establishments within aggregate external funding or aggregate exchequer grant
Department for Education,DEPARTMENT FOR EDUCATION,12/02/2020,Grants expenditure,Adoption and Children in Care Division,GATESHEAD MBC,1041111444,41171.00,Grants to local authorities / other establishments within aggregate external funding or aggregate exchequer grant
Department for Education,DEPARTMENT FOR EDUCATION,12/02/2020,Grants expenditure,Adoption and Children in Care Division,WAKEFIELD MDC,1041111445,38004.00,Grants to local authorities / other establishments within aggregate external funding or aggregate exchequer grant
Department for Education,DEPARTMENT FOR EDUCATION,12/02/2020,Grants expenditure,Adoption and Children in Care Division,LONDON BOROUGH OF HACKNEY,1041111462,32462.00,Grants to local authorities / other establishments within aggregate external funding or aggregate exchequer grant
Department for Education,DEPARTMENT FOR EDUCATION,12/02/2020,Grants expenditure,Adoption and Children in Care Division,DURHAM COUNTY COUNCIL,1041111464,29295.00,Grants to local authorities / other establishments within aggregate external funding or aggregate exchequer grant
Department for Education,DEPARTMENT FOR EDUCATION,12/02/2020,Grants expenditure,Adoption and Children in Care Division,DORSET COUNTY COUNCIL,1041111465,26921.00,Grants to local authorities / other establishments within aggregate external funding or aggregate exchequer grant
Department for Education,DEPARTMENT FOR EDUCATION,12/02/2020,Grants expenditure,Adoption and Children in Care Division,DERBY CITY COUNCIL,1041111466,37213.00,Grants to local authorities / other establishments within aggregate external funding or aggregate exchequer grant
Department for Education,DEPARTMENT FOR EDUCATION,12/02/2020,Grants expenditure,Adoption and Children in Care Division,NORTHAMPTONSHIRE COUNTY COUNCIL,1041111467,68093.00,Grants to local authorities / other establishments within aggregate external funding or aggregate exchequer grant
Department for Education,DEPARTMENT FOR EDUCATION,12/02/2020,Grants expenditure,Adoption and Children in Care Division,LONDON BOROUGH OF GREENWICH,1041111468,63343.00,Grants to local authorities / other establishments within aggregate external funding or aggregate exchequer grant
Department for Education,DEPARTMENT FOR EDUCATION,12/02/2020,Grants expenditure,Adoption and Children in Care Division,LONDON BOROUGH OF HAMMERSMITH & FULHAM COUNCIL,1041111469,26127.00,Grants to local authorities / other establishments within aggregate external funding or aggregate exchequer grant
Department for Education,DEPARTMENT FOR EDUCATION,12/02/2020,Grants expenditure,Adoption and Children in Care Division,DUDLEY MBC,1041111470,38004.00,Grants to local authorities / other establishments within aggregate external funding or aggregate exchequer grant
Department for Education,DEPARTMENT FOR EDUCATION,12/02/2020,Grants expenditure,Adoption and Children in Care Division,HERTFORDSHIRE COUNTY COUNCIL,1041111486,117975.00,Grants to local authorities / other establishments within aggregate external funding or aggregate exchequer grant
Department for Education,DEPARTMENT FOR EDUCATION,12/02/2020,Grants expenditure,Adoption and Children in Care Division,EAST SUSSEX COUNTY COUNCIL,1041111489,74427.00,Grants to local authorities / other establishments within aggregate external funding or aggregate exchequer grant
Department for Education,DEPARTMENT FOR EDUCATION,12/02/2020,Grants expenditure,Adoption and Children in Care Division,BUCKINGHAMSHIRE COUNTY COUNCIL,1041111491,27713.00,Grants to local authorities / other establishments within aggregate external funding or aggregate exchequer grant
Department for Education,DEPARTMENT FOR EDUCATION,12/02/2020,Grants expenditure,Adoption and Children in Care Division,NORTH YORKSHIRE COUNTY COUNCIL,1041111493,41171.00,Grants to local authorities / other establishments within aggregate external funding or aggregate exchequer grant
Department for Education,DEPARTMENT FOR EDUCATION,12/02/2020,Grants expenditure,Adoption and Children in Care Division,STOCKPORT MBC,1041111494,37213.00,Grants to local authorities / other establishments within aggregate external funding or aggregate exchequer grant
Department for Education,DEPARTMENT FOR EDUCATION,12/02/2020,Grants expenditure,Adoption and Children in Care Division,MANCHESTER CITY COUNCIL,1041111497,133018.00,Grants to local authorities / other establishments within aggregate external funding or aggregate exchequer grant
Department for Education,DEPARTMENT FOR EDUCATION,12/02/2020,Grants expenditure,Adoption and Children in Care Division,BURY MBC,1041111498,28504.00,Grants to local authorities / other establishments within aggregate external funding or aggregate exchequer grant
Department for Education,DEPARTMENT FOR EDUCATION,12/02/2020,Grants expenditure,Adoption and Children in Care Division,THE SHARE FOUNDATION 3RD PARTY TRUST,1041111515,38200.00,Grants to educational establishments or not for profit organisations including other businesses
Department for Education,DEPARTMENT FOR EDUCATION,12/02/2020,Grants expenditure,Adoption and Children in Care Division,SWINDON BOROUGH COUNCIL,1041111519,45130.00,Grants to local authorities / other establishments within aggregate external funding or aggregate exchequer grant
Department for Education,DEPARTMENT FOR EDUCATION,12/02/2020,Grants expenditure,Adoption and Children in Care Division,DERBYSHIRE COUNTY COUNCIL,1041111520,56217.00,Grants to local authorities / other establishments within aggregate external funding or aggregate exchequer grant
Department for Education,DEPARTMENT FOR EDUCATION,12/02/2020,Grants expenditure,Adoption and Children in Care Division,BOLTON MBC,1041111521,26127.00,Grants to local authorities / other establishments within aggregate external funding or aggregate exchequer grant
Department for Education,DEPARTMENT FOR EDUCATION,12/02/2020,Grants expenditure,Adoption and Children in Care Division,SOLIHULL MBC,1041111522,51465.00,Grants to local authorities / other establishments within aggregate external funding or aggregate exchequer grant
Department for Education,DEPARTMENT FOR EDUCATION,12/02/2020,Grants expenditure,Adoption and Children in Care Division,SUNDERLAND CITY COUNCIL,1041111523,34047.00,Grants to local authorities / other establishments within aggregate external funding or aggregate exchequer grant
Department for Education,DEPARTMENT FOR EDUCATION,12/02/2020,Grants expenditure,Adoption and Children in Care Division,WIGAN MBC,1041111542,29295.00,Grants to local authorities / other establishments within aggregate external funding or aggregate exchequer grant
Department for Education,DEPARTMENT FOR EDUCATION,12/02/2020,Grants expenditure,Adoption and Children in Care Division,STOKE ON TRENT CITY COUNCIL,1041111543,30086.00,Grants to local authorities / other establishments within aggregate external funding or aggregate exchequer grant
Department for Education,DEPARTMENT FOR EDUCATION,12/02/2020,Grants expenditure,Adoption and Children in Care Division,EAST RIDING OF YORKSHIRE,1041111545,26127.00,Grants to local authorities / other establishments within aggregate external funding or aggregate exchequer grant
Department for Education,DEPARTMENT FOR EDUCATION,12/02/2020,Grants expenditure,Adoption and Children in Care Division,LEEDS CITY COUNCIL,1041111547,88679.00,Grants to local authorities / other establishments within aggregate external funding or aggregate exchequer grant
Department for Education,DEPARTMENT FOR EDUCATION,12/02/2020,Grants expenditure,Adoption and Children in Care Division,WALSALL MBC,1041111548,38798.00,Grants to local authorities / other establishments within aggregate external funding or aggregate exchequer grant
Department for Education,DEPARTMENT FOR EDUCATION,12/02/2020,Grants expenditure,Adoption and Children in Care Division,LIVERPOOL CITY COUNCIL,1041111549,99764.00,Grants to local authorities / other establishments within aggregate external funding or aggregate exchequer grant
Department for Education,DEPARTMENT FOR EDUCATION,12/02/2020,Grants expenditure,Adoption and Children in Care Division,SANDWELL MBC,1041111552,33253.00,Grants to local authorities / other establishments within aggregate external funding or aggregate exchequer grant
Department for Education,DEPARTMENT FOR EDUCATION,12/02/2020,Grants expenditure,Adoption and Children in Care Division,COVENTRY CITY COUNCIL,1041111553,38004.00,Grants to local authorities / other establishments within aggregate external funding or aggregate exchequer grant
Department for Education,DEPARTMENT FOR EDUCATION,12/02/2020,Grants expenditure,Adoption and Children in Care Division,SALFORD CITY COUNCIL,1041111566,26127.00,Grants to local authorities / other establishments within aggregate external funding or aggregate exchequer grant
Department for Education,DEPARTMENT FOR EDUCATION,12/02/2020,Grants expenditure,Adoption and Children in Care Division,PLYMOUTH CITY COUNCIL,1041111567,28504.00,Grants to local authorities / other establishments within aggregate external funding or aggregate exchequer grant
Department for Education,DEPARTMENT FOR EDUCATION,12/02/2020,Grants expenditure,Adoption and Children in Care Division,CHESHIRE WEST & CHESTER COUNCIL,1041111571,27713.00,Grants to local authorities / other establishments within aggregate external funding or aggregate exchequer grant
Department for Education,DEPARTMENT FOR EDUCATION,12/02/2020,Grants expenditure,Adoption and Children in Care Division,CHESHIRE EAST COUNCIL,1041111572,29295.00,Grants to local authorities / other establishments within aggregate external funding or aggregate exchequer grant
Department for Education,DEPARTMENT FOR EDUCATION,12/02/2020,Grants expenditure,Adoption and Children in Care Division,BIRMINGHAM CITY COUNCIL,1041111575,120351.00,Grants to local authorities / other establishments within aggregate external funding or aggregate exchequer grant
Department for Education,DEPARTMENT FOR EDUCATION,12/02/2020,Grants expenditure,Adoption and Children in Care Division,LONDON BOROUGH OF WALTHAM FOREST COUNCIL,1041111576,40380.00,Grants to local authorities / other establishments within aggregate external funding or aggregate exchequer grant
Department for Education,DEPARTMENT FOR EDUCATION,12/02/2020,Grants expenditure,Adoption and Children in Care Division,LUTON BOROUGH COUNCIL,1041111595,38798.00,Grants to local authorities / other establishments within aggregate external funding or aggregate exchequer grant
Department for Education,DEPARTMENT FOR EDUCATION,12/02/2020,Grants expenditure,Adoption and Children in Care Division,KINGSTON UPON HULL COUNCIL,1041111598,34047.00,Grants to local authorities / other establishments within aggregate external funding or aggregate exchequer grant
Department for Education,DEPARTMENT FOR EDUCATION,12/02/2020,Grants expenditure,Adoption and Children in Care Division,LONDON BOROUGH OF NEWHAM,1041111603,64925.00,Grants to local authorities / other establishments within aggregate external funding or aggregate exchequer grant
Department for Education,DEPARTMENT FOR EDUCATION,12/02/2020,Grants expenditure,Adoption and Children in Care Division,LONDON BOROUGH OF HOUNSLOW COUNCIL,1041111619,36421.00,Grants to local authorities / other establishments within aggregate external funding or aggregate exchequer grant
Department for Education,DEPARTMENT FOR EDUCATION,12/02/2020,Grants expenditure,Adoption and Children in Care Division,LONDON BOROUGH OF HILLINGDON  COUNCIL,1041111620,45130.00,Grants to local authorities / other establishments within aggregate external funding or aggregate exchequer grant
Department for Education,DEPARTMENT FOR EDUCATION,12/02/2020,Grants expenditure,Adoption and Children in Care Division,MIDDLESBROUGH COUNCIL,1041111622,27713.00,Grants to local authorities / other establishments within aggregate external funding or aggregate exchequer grant
Department for Education,DEPARTMENT FOR EDUCATION,12/02/2020,Grants expenditure,Adoption and Children in Care Division,BRISTOL CITY COUNCIL,1041111626,87888.00,Grants to local authorities / other establishments within aggregate external funding or aggregate exchequer grant
Department for Education,DEPARTMENT FOR EDUCATION,12/02/2020,Grants expenditure,Adoption and Children in Care Division,LONDON BOROUGH OF HARINGEY,1041111639,46715.00,Grants to local authorities / other establishments within aggregate external funding or aggregate exchequer grant
Department for Education,DEPARTMENT FOR EDUCATION,12/02/2020,Grants expenditure,Adoption and Children in Care Division,LONDON BOROUGH OF ENFIELD COUNCIL,1041111640,32462.00,Grants to local authorities / other establishments within aggregate external funding or aggregate exchequer grant
Department for Education,DEPARTMENT FOR EDUCATION,12/02/2020,Grants expenditure,Adoption and Children in Care Division,LONDON BOROUGH OF EALING COUNCIL,1041111642,46715.00,Grants to local authorities / other establishments within aggregate external funding or aggregate exchequer grant
Department for Education,DEPARTMENT FOR EDUCATION,12/02/2020,Grants expenditure,Adoption and Children in Care Division,METROPOLITAN BOROUGH OF WIRRAL,1041111644,44339.00,Grants to local authorities / other establishments within aggregate external funding or aggregate exchequer grant
Department for Education,DEPARTMENT FOR EDUCATION,12/02/2020,Grants expenditure,Adoption and Children in Care Division,DONCASTER MBC,1041111645,37213.00,Grants to local authorities / other establishments within aggregate external funding or aggregate exchequer grant
Department for Education,DEPARTMENT FOR EDUCATION,12/02/2020,Grants expenditure,Adoption and Children in Care Division,NOTTINGHAMSHIRE COUNTY COUNCIL,1041111647,53841.00,Grants to local authorities / other establishments within aggregate external funding or aggregate exchequer grant
Department for Education,DEPARTMENT FOR EDUCATION,12/02/2020,Grants expenditure,Adoption and Children in Care Division,LONDON BOROUGH OF BROMLEY COUNCIL,1041111654,29295.00,Grants to local authorities / other establishments within aggregate external funding or aggregate exchequer grant
Department for Education,DEPARTMENT FOR EDUCATION,12/02/2020,Grants expenditure,Adoption and Children in Care Division,LONDON BOROUGH OF CROYDON COUNCIL,1041111655,137770.00,Grants to local authorities / other establishments within aggregate external funding or aggregate exchequer grant
Department for Education,DEPARTMENT FOR EDUCATION,12/02/2020,Grants expenditure,Adoption and Children in Care Division,LONDON BOROUGH OF BRENT,1041111656,35630.00,Grants to local authorities / other establishments within aggregate external funding or aggregate exchequer grant
Department for Education,DEPARTMENT FOR EDUCATION,12/02/2020,Grants expenditure,Adoption and Children in Care Division,LONDON BOROUGH OF BEXLEY COUNCIL,1041111657,27713.00,Grants to local authorities / other establishments within aggregate external funding or aggregate exchequer grant
Department for Education,DEPARTMENT FOR EDUCATION,12/02/2020,Grants expenditure,Adoption and Children in Care Division,NOTTINGHAM CITY COUNCIL,1041111658,44339.00,Grants to local authorities / other establishments within aggregate external funding or aggregate exchequer grant
Department for Education,DEPARTMENT FOR EDUCATION,12/02/2020,Grants expenditure,Adoption and Children in Care Division,SHROPSHIRE COUNCIL,1041111659,25336.00,Grants to local authorities / other establishments within aggregate external funding or aggregate exchequer grant
Department for Education,DEPARTMENT FOR EDUCATION,12/02/2020,Grants expenditure,Adoption and Children in Care Division,SHEFFIELD CITY COUNCIL,1041111660,45130.00,Grants to local authorities / other establishments within aggregate external funding or aggregate exchequer grant
Department for Education,DEPARTMENT FOR EDUCATION,12/02/2020,Grants expenditure,Adoption and Children in Care Division,CITY OF BRADFORD METROPOLITAN DISTRICT COUNCIL,1041111661,60967.00,Grants to local authorities / other establishments within aggregate external funding or aggregate exchequer grant
Department for Education,DEPARTMENT FOR EDUCATION,12/02/2020,Grants expenditure,Adoption and Children in Care Division,LONDON BOROUGH OF BARNET COUNCIL,1041111668,29295.00,Grants to local authorities / other establishments within aggregate external funding or aggregate exchequer grant
Department for Education,DEPARTMENT FOR EDUCATION,12/02/2020,Grants expenditure,Adoption and Children in Care Division,LONDON BOROUGH OF BARKING & DAGENHAM COUNCIL,1041111669,34047.00,Grants to local authorities / other establishments within aggregate external funding or aggregate exchequer grant
Department for Education,DEPARTMENT FOR EDUCATION,12/02/2020,Grants expenditure,Adoption and Children in Care Division,CORNWALL COUNCIL,1041111672,39589.00,Grants to local authorities / other establishments within aggregate external funding or aggregate exchequer grant
Department for Education,DEPARTMENT FOR EDUCATION,12/02/2020,Grants expenditure,Adoption and Children in Care Division,CUMBRIA COUNTY COUNCIL,1041111673,49091.00,Grants to local authorities / other establishments within aggregate external funding or aggregate exchequer grant
Department for Education,DEPARTMENT FOR EDUCATION,12/02/2020,Grants expenditure,Adoption and Children in Care Division,NORFOLK COUNTY COUNCIL,1041111674,96596.00,Grants to local authorities / other establishments within aggregate external funding or aggregate exchequer grant
Department for Education,DEPARTMENT FOR EDUCATION,12/02/2020,Grants expenditure,Adoption and Children in Care Division,OXFORDSHIRE COUNTY COUNCIL,1041111676,56217.00,Grants to local authorities / other establishments within aggregate external funding or aggregate exchequer grant
Department for Education,DEPARTMENT FOR EDUCATION,12/02/2020,Grants expenditure,Adoption and Children in Care Division,LANCASHIRE COUNTY COUNCIL,1041111684,78386.00,Grants to local authorities / other establishments within aggregate external funding or aggregate exchequer grant
Department for Education,DEPARTMENT FOR EDUCATION,12/02/2020,Grants expenditure,Adoption and Children in Care Division,MEDWAY COUNCIL,1041111685,44339.00,Grants to local authorities / other establishments within aggregate external funding or aggregate exchequer grant
Department for Education,DEPARTMENT FOR EDUCATION,12/02/2020,Grants expenditure,Adoption and Children in Care Division,KENT COUNTY COUNCIL,1041111686,212989.00,Grants to local authorities / other establishments within aggregate external funding or aggregate exchequer grant
Department for Education,DEPARTMENT FOR EDUCATION,12/02/2020,Grants expenditure,Adoption and Children in Care Division,WORCESTERSHIRE COUNTY COUNCIL,1041111687,63343.00,Grants to local authorities / other establishments within aggregate external funding or aggregate exchequer grant
Department for Education,DEPARTMENT FOR EDUCATION,12/02/2020,Grants expenditure,Adoption and Children in Care Division,SOMERSET COUNTY COUNCIL,1041111688,35630.00,Grants to local authorities / other establishments within aggregate external funding or aggregate exchequer grant
Department for Education,DEPARTMENT FOR EDUCATION,12/02/2020,Grants expenditure,Adoption and Children in Care Division,SUFFOLK COUNTY COUNCIL,1041111689,61758.00,Grants to local authorities / other establishments within aggregate external funding or aggregate exchequer grant
Department for Education,DEPARTMENT FOR EDUCATION,12/02/2020,Grants expenditure,Adoption and Children in Care Division,SURREY COUNTY COUNCIL,1041111690,110848.00,Grants to local authorities / other establishments within aggregate external funding or aggregate exchequer grant
Department for Education,DEPARTMENT FOR EDUCATION,12/02/2020,Grants expenditure,Adoption and Children in Care Division,GLOUCESTERSHIRE COUNTY COUNCIL,1041111691,69675.00,Grants to local authorities / other establishments within aggregate external funding or aggregate exchequer grant
Department for Education,DEPARTMENT FOR EDUCATION,12/02/2020,Grants expenditure,Adoption and Children in Care Division,THURROCK COUNCIL,1041111699,29295.00,Grants to local authorities / other establishments within aggregate external funding or aggregate exchequer grant
Department for Education,DEPARTMENT FOR EDUCATION,12/02/2020,Grants expenditure,Adoption and Children in Care Division,SOUTHEND ON SEA BOROUGH COUNCIL,1041111700,30880.00,Grants to local authorities / other establishments within aggregate external funding or aggregate exchequer grant
Department for Education,DEPARTMENT FOR EDUCATION,12/02/2020,Grants expenditure,Adoption and Children in Care Division,ESSEX COUNTY COUNCIL,1041111701,130642.00,Grants to local authorities / other establishments within aggregate external funding or aggregate exchequer grant
Department for Education,DEPARTMENT FOR EDUCATION,12/02/2020,Grants expenditure,Adoption and Children in Care Division,ISLE OF WIGHT COUNCIL,1041111704,28504.00,Grants to local authorities / other establishments within aggregate external funding or aggregate exchequer grant
Department for Education,DEPARTMENT FOR EDUCATION,12/02/2020,Grants expenditure,Adoption and Children in Care Division,LINCOLNSHIRE COUNTY COUNCIL,1041111705,49091.00,Grants to local authorities / other establishments within aggregate external funding or aggregate exchequer grant
Department for Education,DEPARTMENT FOR EDUCATION,12/02/2020,Grants expenditure,Adoption and Children in Care Division,PETERBOROUGH CITY COUNCIL,1041111715,30880.00,Grants to local authorities / other establishments within aggregate external funding or aggregate exchequer grant
Department for Education,DEPARTMENT FOR EDUCATION,12/02/2020,Grants expenditure,Adoption and Children in Care Division,CAMBRIDGESHIRE COUNTY COUNCIL,1041111716,43548.00,Grants to local authorities / other establishments within aggregate external funding or aggregate exchequer grant
Department for Education,DEPARTMENT FOR EDUCATION,12/02/2020,Grants expenditure,Adoption and Children in Care Division,WARWICKSHIRE COUNTY COUNCIL,1041111718,78386.00,Grants to local authorities / other establishments within aggregate external funding or aggregate exchequer grant
Department for Education,DEPARTMENT FOR EDUCATION,12/02/2020,Grants expenditure,Adoption and Children in Care Division,LONDON BOROUGH OF CAMDEN,1041111720,34838.00,Grants to local authorities / other establishments within aggregate external funding or aggregate exchequer grant
Department for Education,DEPARTMENT FOR EDUCATION,12/02/2020,Grants expenditure,Adoption and Children in Care Division,BOURNEMOUTH CHRISTCHURCH & POOLE COUNCIL,1041111726,31672.00,Grants to local authorities / other establishments within aggregate external funding or aggregate exchequer grant
Department for Education,DEPARTMENT FOR EDUCATION,12/02/2020,Grants expenditure,Adoption and Children in Care Division,LONDON BOROUGH OF ISLINGTON COUNCIL,1041111731,60176.00,Grants to local authorities / other establishments within aggregate external funding or aggregate exchequer grant
Department for Education,DEPARTMENT FOR EDUCATION,12/02/2020,Grants expenditure,Adoption and Children in Care Division,LONDON BOROUGH OF TOWER HAMLETS COUNCIL,1041111732,34838.00,Grants to local authorities / other establishments within aggregate external funding or aggregate exchequer grant
Department for Education,DEPARTMENT FOR EDUCATION,12/02/2020,Grants expenditure,Adoption and Children in Care Division,CITY OF WESTMINSTER,1041111733,27713.00,Grants to local authorities / other establishments within aggregate external funding or aggregate exchequer grant
Department for Education,DEPARTMENT FOR EDUCATION,12/02/2020,Grants expenditure,Adoption and Children in Care Division,LONDON BOROUGH OF LEWISHAM,1041111734,58590.00,Grants to local authorities / other establishments within aggregate external funding or aggregate exchequer grant
Department for Education,DEPARTMENT FOR EDUCATION,13/02/2020,Grants expenditure,Adoption and Children in Care Division,CAMBRIDGE EDUCATION,1041112010,1539756.00,Grants to educational establishments or not for profit organisations including other businesses
Department for Education,DEPARTMENT FOR EDUCATION,14/02/2020,Grants expenditure,Adoption and Children in Care Division,EAST SUSSEX COUNTY COUNCIL,1041112318,83202.00,Grants to local authorities / other establishments within aggregate external funding or aggregate exchequer grant
Department for Education,DEPARTMENT FOR EDUCATION,19/02/2020,Grants expenditure,Adoption and Children in Care Division,LONDON BOROUGH OF CROYDON COUNCIL,1041112795,33766.00,Grants to local authorities / other establishments within aggregate external funding or aggregate exchequer grant
Department for Education,DEPARTMENT FOR EDUCATION,19/02/2020,Grants expenditure,Adoption and Children in Care Division,NORFOLK COUNTY COUNCIL,1041112821,26586.00,Grants to local authorities / other establishments within aggregate external funding or aggregate exchequer grant
Department for Education,DEPARTMENT FOR EDUCATION,19/02/2020,Grants expenditure,Adoption and Children in Care Division,KENT COUNTY COUNCIL,1041112837,60634.00,Grants to local authorities / other establishments within aggregate external funding or aggregate exchequer grant
Department for Education,DEPARTMENT FOR EDUCATION,19/02/2020,Grants expenditure,Adoption and Children in Care Division,ESSEX COUNTY COUNCIL,1041112859,34495.00,Grants to local authorities / other establishments within aggregate external funding or aggregate exchequer grant
Department for Education,DEPARTMENT FOR EDUCATION,19/02/2020,Grants expenditure,Adoption and Children in Care Division,HAMPSHIRE COUNTY COUNCIL,1041112935,28325.00,Grants to local authorities / other establishments within aggregate external funding or aggregate exchequer grant
Department for Education,DEPARTMENT FOR EDUCATION,19/02/2020,Grants expenditure,Adoption and Children in Care Division,HERTFORDSHIRE COUNTY COUNCIL,1041112988,27485.00,Grants to local authorities / other establishments within aggregate external funding or aggregate exchequer grant
Department for Education,DEPARTMENT FOR EDUCATION,19/02/2020,Grants expenditure,Adoption and Children in Care Division,MANCHESTER CITY COUNCIL,1041112999,26081.00,Grants to local authorities / other establishments within aggregate external funding or aggregate exchequer grant
Department for Education,DEPARTMENT FOR EDUCATION,19/02/2020,Grants expenditure,Adoption and Children in Care Division,THE SHARE FOUNDATION 3RD PARTY TRUST,1041113010,57800.00,Grants to educational establishments or not for profit organisations including other businesses
Department for Education,DEPARTMENT FOR EDUCATION,19/02/2020,Grants expenditure,Adoption and Children in Care Division,BIRMINGHAM CITY COUNCIL,1041113068,37524.00,Grants to local authorities / other establishments within aggregate external funding or aggregate exchequer grant
Department for Education,DEPARTMENT FOR EDUCATION,20/02/2020,Other Goods & Services,Adoption and Children in Care Division,CORAM,1041113148,27022.28,"Fees / expenses of professionals such as auditors, accountants, lawyers, etc. engaged to provide advice or opinion on how to affect something"
Department for Education,DEPARTMENT FOR EDUCATION,20/02/2020,Other Goods & Services,Adoption and Children in Care Division,CORAM,1041113148,27519.14,"Fees / expenses of professionals such as auditors, accountants, lawyers, etc. engaged to provide advice or opinion on how to affect something"
Department for Education,DEPARTMENT FOR EDUCATION,20/02/2020,Other Goods & Services,Adoption and Children in Care Division,CORAM,1041113148,22499.99,"Fees / expenses of professionals such as auditors, accountants, lawyers, etc. engaged to provide advice or opinion on how to affect something"
Department for Education,DEPARTMENT FOR EDUCATION,20/02/2020,Other Goods & Services,Adoption and Children in Care Division,CORAM,1041113148,457.68,"Fees / expenses of professionals such as auditors, accountants, lawyers, etc. engaged to provide advice or opinion on how to affect something"
Department for Education,DEPARTMENT FOR EDUCATION,20/02/2020,Other Goods & Services,Adoption and Children in Care Division,CORAM,1041113148,43.63,"Fees / expenses of professionals such as auditors, accountants, lawyers, etc. engaged to provide advice or opinion on how to affect something"
Department for Education,DEPARTMENT FOR EDUCATION,20/02/2020,Other Goods & Services,Adoption and Children in Care Division,CORAM,1041113148,4226.26,"Fees / expenses of professionals such as auditors, accountants, lawyers, etc. engaged to provide advice or opinion on how to affect something"
Department for Education,DEPARTMENT FOR EDUCATION,20/02/2020,Other Goods & Services,Adoption and Children in Care Division,SPECTRA FIRST LTD,1041113311,57104.00,"Fees / expenses of professionals such as auditors, accountants, lawyers, etc. engaged to provide advice or opinion on how to affect something"
Department for Education,DEPARTMENT FOR EDUCATION,20/02/2020,Grants expenditure,Adoption and Children in Care Division,KANTAR UK LTD,1041113357,40000.00,Grants to educational establishments or not for profit organisations including other businesses
Department for Education,DEPARTMENT FOR EDUCATION,21/02/2020,Grants expenditure,Adoption and Children in Care Division,BARNARDOS,1041113501,43056.29,Grants to educational establishments or not for profit organisations including other businesses
Department for Education,DEPARTMENT FOR EDUCATION,21/02/2020,Grants expenditure,Adoption and Children in Care Division,LEEDS CITY COUNCIL,1041113531,50000.00,Grants to local authorities / other establishments within aggregate external funding or aggregate exchequer grant
Department for Education,DEPARTMENT FOR EDUCATION,25/02/2020,Consultancy,Adoption and Children in Care Division,DELOITTE,1041113770,143030.83,"Advisory services including fees, travel and expenses"
Department for Education,DEPARTMENT FOR EDUCATION,25/02/2020,Other Goods & Services,Adoption and Children in Care Division,CORAM,1041113870,38045.08,"Fees / expenses of professionals such as auditors, accountants, lawyers, etc. engaged to provide advice or opinion on how to affect something"
Department for Education,DEPARTMENT FOR EDUCATION,25/02/2020,Other Goods & Services,Adoption and Children in Care Division,FAMILY LIVES,1041113873,77704.13,"Fees / expenses of professionals such as auditors, accountants, lawyers, etc. engaged to provide advice or opinion on how to affect something"
Department for Education,DEPARTMENT FOR EDUCATION,26/02/2020,Grants expenditure,Adoption and Children in Care Division,HAMPSHIRE COUNTY COUNCIL,1041113903,35625.00,Grants to local authorities / other establishments within aggregate external funding or aggregate exchequer grant
Department for Education,DEPARTMENT FOR EDUCATION,26/02/2020,Grants expenditure,Adoption and Children in Care Division,MANCHESTER CITY COUNCIL,1041114018,35625.00,Grants to local authorities / other establishments within aggregate external funding or aggregate exchequer grant
Department for Education,DEPARTMENT FOR EDUCATION,26/02/2020,Grants expenditure,Adoption and Children in Care Division,THE SHARE FOUNDATION 3RD PARTY TRUST,1041114050,40000.00,Grants to educational establishments or not for profit organisations including other businesses
Department for Education,DEPARTMENT FOR EDUCATION,26/02/2020,Grants expenditure,Adoption and Children in Care Division,KENT COUNTY COUNCIL,1041114091,35625.00,Grants to local authorities / other establishments within aggregate external funding or aggregate exchequer grant
Department for Education,DEPARTMENT FOR EDUCATION,26/02/2020,Grants expenditure,Adoption and Children in Care Division,ESSEX COUNTY COUNCIL,1041114093,35625.00,Grants to local authorities / other establishments within aggregate external funding or aggregate exchequer grant
Department for Education,DEPARTMENT FOR EDUCATION,10/02/2020,"Marketing, Media and Comms",CHILDRENS SOCIAL CARE,SCROLL PROJECTS LTD,1041111082,72957.50,"Publicity, advertising, media advertising campaigns (excluding recruitment adverts)"
Department for Education,DEPARTMENT FOR EDUCATION,10/02/2020,"Marketing, Media and Comms",CHILDRENS SOCIAL CARE,SCROLL PROJECTS LTD,1041111082,14591.50,"Publicity, advertising, media advertising campaigns (excluding recruitment adverts)"
Department for Education,DEPARTMENT FOR EDUCATION,03/02/2020,Other costs,CHILDRENS SOCIAL CARE,SOCIAL WORK ENGLAND,30000731,1247000.00,Current grants paid to organisations including arms length bodies and educational establishments
Department for Education,DEPARTMENT FOR EDUCATION,03/02/2020,Other costs,CHILDRENS SOCIAL CARE,INSTITUTE FOR APPRENTICESHIPS,30000732,266000.00,Current grants paid to organisations including arms length bodies and educational establishments
Department for Education,DEPARTMENT FOR EDUCATION,24/02/2020,Other costs,CHILDRENS SOCIAL CARE,INSTITUTE FOR APPRENTICESHIPS,30000747,150000.00,Current grants paid to organisations including arms length bodies and educational establishments
Department for Education,DEPARTMENT FOR EDUCATION,07/02/2020,Other Goods & Services,STRATEGY SOCIAL MOBILITY OPPOTUNITY AREAS,UNIVERSITY OF WOLVERHAMPTON,1041111007,46619.20,Research and Development
Department for Education,DEPARTMENT FOR EDUCATION,26/02/2020,Other Goods & Services,STRATEGY SOCIAL MOBILITY OPPOTUNITY AREAS,INSTITUTE OF FISCAL STUDIES,1041114067,34638.75,Research and Development
Department for Education,DEPARTMENT FOR EDUCATION,28/02/2020,Other Goods & Services,STRATEGY SOCIAL MOBILITY OPPOTUNITY AREAS,IMPERIAL COLLEGE LONDON,1041114445,48892.00,Research and Development
Department for Education,DEPARTMENT FOR EDUCATION,03/02/2020,Other Goods & Services,STRATEGY SOCIAL MOBILITY OPPOTUNITY AREAS,NATIONAL CHILDRENS BUREAU,1041110186,114945.61,"Fees / expenses of professionals such as auditors, accountants, lawyers, etc. engaged to provide advice or opinion on how to affect something"
Department for Education,DEPARTMENT FOR EDUCATION,03/02/2020,Other Goods & Services,STRATEGY SOCIAL MOBILITY OPPOTUNITY AREAS,NATIONAL CHILDRENS BUREAU,1041110186,22989.12,"Fees / expenses of professionals such as auditors, accountants, lawyers, etc. engaged to provide advice or opinion on how to affect something"
Department for Education,DEPARTMENT FOR EDUCATION,05/02/2020,Other Goods & Services,STRATEGY SOCIAL MOBILITY OPPOTUNITY AREAS,COUNCIL FOR DISABLED CHILDREN,1041110620,93360.00,"Fees / expenses of professionals such as auditors, accountants, lawyers, etc. engaged to provide advice or opinion on how to affect something"
Department for Education,DEPARTMENT FOR EDUCATION,05/02/2020,Other Goods & Services,STRATEGY SOCIAL MOBILITY OPPOTUNITY AREAS,COUNCIL FOR DISABLED CHILDREN,1041110620,18672.00,"Fees / expenses of professionals such as auditors, accountants, lawyers, etc. engaged to provide advice or opinion on how to affect something"
Department for Education,DEPARTMENT FOR EDUCATION,10/02/2020,Other Goods & Services,STRATEGY SOCIAL MOBILITY OPPOTUNITY AREAS,CONTACT,1041111242,136659.48,"Fees / expenses of professionals such as auditors, accountants, lawyers, etc. engaged to provide advice or opinion on how to affect something"
Department for Education,DEPARTMENT FOR EDUCATION,10/02/2020,Other Goods & Services,STRATEGY SOCIAL MOBILITY OPPOTUNITY AREAS,CONTACT,1041111242,27331.90,"Fees / expenses of professionals such as auditors, accountants, lawyers, etc. engaged to provide advice or opinion on how to affect something"
Department for Education,DEPARTMENT FOR EDUCATION,19/02/2020,Other Goods & Services,STRATEGY SOCIAL MOBILITY OPPOTUNITY AREAS,NATIONAL AUTISTIC SOCIETY,1041113084,161740.00,"Fees / expenses of professionals such as auditors, accountants, lawyers, etc. engaged to provide advice or opinion on how to affect something"
Department for Education,DEPARTMENT FOR EDUCATION,26/02/2020,Other Goods & Services,STRATEGY SOCIAL MOBILITY OPPOTUNITY AREAS,NATIONAL CHILDRENS BUREAU,1041114002,111158.08,"Fees / expenses of professionals such as auditors, accountants, lawyers, etc. engaged to provide advice or opinion on how to affect something"
Department for Education,DEPARTMENT FOR EDUCATION,26/02/2020,Other Goods & Services,STRATEGY SOCIAL MOBILITY OPPOTUNITY AREAS,NATIONAL CHILDRENS BUREAU,1041114002,22231.62,"Fees / expenses of professionals such as auditors, accountants, lawyers, etc. engaged to provide advice or opinion on how to affect something"
Department for Education,DEPARTMENT FOR EDUCATION,26/02/2020,Other Goods & Services,STRATEGY SOCIAL MOBILITY OPPOTUNITY AREAS,MOTT MACDONALD LTD,1041114060,310843.10,"Fees / expenses of professionals such as auditors, accountants, lawyers, etc. engaged to provide advice or opinion on how to affect something"
Department for Education,DEPARTMENT FOR EDUCATION,26/02/2020,Other Goods & Services,STRATEGY SOCIAL MOBILITY OPPOTUNITY AREAS,MOTT MACDONALD LTD,1041114060,62168.62,"Fees / expenses of professionals such as auditors, accountants, lawyers, etc. engaged to provide advice or opinion on how to affect something"
Department for Education,DEPARTMENT FOR EDUCATION,03/02/2020,Grants expenditure,STRATEGY SOCIAL MOBILITY OPPOTUNITY AREAS,THE FAMILY FUND TRUST,1041110187,1820000.00,Grants to educational establishments or not for profit organisations including other businesses
Department for Education,DEPARTMENT FOR EDUCATION,13/02/2020,Other Goods & Services,STRATEGY SOCIAL MOBILITY OPPOTUNITY AREAS,UNIVERSITY COLLEGE LONDON,1041111907,168625.00,"Fees / expenses of professionals such as auditors, accountants, lawyers, etc. engaged to provide advice or opinion on how to affect something"
Department for Education,DEPARTMENT FOR EDUCATION,13/02/2020,Other Goods & Services,STRATEGY SOCIAL MOBILITY OPPOTUNITY AREAS,UNIVERSITY COLLEGE LONDON,1041111907,249375.00,"Fees / expenses of professionals such as auditors, accountants, lawyers, etc. engaged to provide advice or opinion on how to affect something"
Department for Education,DEPARTMENT FOR EDUCATION,13/02/2020,Other Goods & Services,STRATEGY SOCIAL MOBILITY OPPOTUNITY AREAS,UNIVERSITY COLLEGE LONDON,1041111907,124687.50,"Fees / expenses of professionals such as auditors, accountants, lawyers, etc. engaged to provide advice or opinion on how to affect something"
Department for Education,DEPARTMENT FOR EDUCATION,13/02/2020,Other Goods & Services,STRATEGY SOCIAL MOBILITY OPPOTUNITY AREAS,UNIVERSITY COLLEGE LONDON,1041111907,126468.75,"Fees / expenses of professionals such as auditors, accountants, lawyers, etc. engaged to provide advice or opinion on how to affect something"
Department for Education,DEPARTMENT FOR EDUCATION,13/02/2020,Other Goods & Services,STRATEGY SOCIAL MOBILITY OPPOTUNITY AREAS,UNIVERSITY COLLEGE LONDON,1041111907,166250.00,"Fees / expenses of professionals such as auditors, accountants, lawyers, etc. engaged to provide advice or opinion on how to affect something"
Department for Education,DEPARTMENT FOR EDUCATION,13/02/2020,Other Goods & Services,STRATEGY SOCIAL MOBILITY OPPOTUNITY AREAS,UNIVERSITY COLLEGE LONDON,1041111907,332500.00,"Fees / expenses of professionals such as auditors, accountants, lawyers, etc. engaged to provide advice or opinion on how to affect something"
Department for Education,DEPARTMENT FOR EDUCATION,07/02/2020,Other Goods & Services,STRATEGY SOCIAL MOBILITY OPPOTUNITY AREAS,IFF RESEARCH LTD,1041110906,25492.00,Research and Development
Department for Education,DEPARTMENT FOR EDUCATION,07/02/2020,Other Goods & Services,STRATEGY SOCIAL MOBILITY OPPOTUNITY AREAS,IFF RESEARCH LTD,1041110906,5098.40,Research and Development
Department for Education,DEPARTMENT FOR EDUCATION,26/02/2020,Other Goods & Services,STRATEGY SOCIAL MOBILITY OPPOTUNITY AREAS,HMCTS HM COURTS & TRIBUNALS SERVICE,1041114014,34606.00,"Fees / expenses of professionals such as auditors, accountants, lawyers, etc. engaged to provide advice or opinion on how to affect something"
Department for Education,DEPARTMENT FOR EDUCATION,26/02/2020,Other Goods & Services,STRATEGY SOCIAL MOBILITY OPPOTUNITY AREAS,HMCTS HM COURTS & TRIBUNALS SERVICE,1041114014,55308.00,"Fees / expenses of professionals such as auditors, accountants, lawyers, etc. engaged to provide advice or opinion on how to affect something"
Department for Education,DEPARTMENT FOR EDUCATION,26/02/2020,Other Goods & Services,STRATEGY SOCIAL MOBILITY OPPOTUNITY AREAS,HMCTS HM COURTS & TRIBUNALS SERVICE,1041114014,527395.00,"Fees / expenses of professionals such as auditors, accountants, lawyers, etc. engaged to provide advice or opinion on how to affect something"
Department for Education,DEPARTMENT FOR EDUCATION,26/02/2020,Other Goods & Services,STRATEGY SOCIAL MOBILITY OPPOTUNITY AREAS,HMCTS HM COURTS & TRIBUNALS SERVICE,1041114014,98340.00,"Fees / expenses of professionals such as auditors, accountants, lawyers, etc. engaged to provide advice or opinion on how to affect something"
Department for Education,DEPARTMENT FOR EDUCATION,26/02/2020,Other Goods & Services,STRATEGY SOCIAL MOBILITY OPPOTUNITY AREAS,HMCTS HM COURTS & TRIBUNALS SERVICE,1041114014,103695.00,"Fees / expenses of professionals such as auditors, accountants, lawyers, etc. engaged to provide advice or opinion on how to affect something"
Department for Education,DEPARTMENT FOR EDUCATION,26/02/2020,Other Goods & Services,STRATEGY SOCIAL MOBILITY OPPOTUNITY AREAS,HMCTS HM COURTS & TRIBUNALS SERVICE,1041114014,190292.00,"Fees / expenses of professionals such as auditors, accountants, lawyers, etc. engaged to provide advice or opinion on how to affect something"
Department for Education,DEPARTMENT FOR EDUCATION,05/02/2020,Grants expenditure,STRATEGY SOCIAL MOBILITY OPPOTUNITY AREAS,SALFORD CITY COUNCIL,1041110669,25020.66,Grants to local authorities / other establishments within aggregate external funding or aggregate exchequer grant
Department for Education,DEPARTMENT FOR EDUCATION,05/02/2020,Grants expenditure,STRATEGY SOCIAL MOBILITY OPPOTUNITY AREAS,PORTSMOUTH CITY COUNCIL,1041110711,45252.41,Grants to local authorities / other establishments within aggregate external funding or aggregate exchequer grant
Department for Education,DEPARTMENT FOR EDUCATION,07/02/2020,Grants expenditure,STRATEGY SOCIAL MOBILITY OPPOTUNITY AREAS,BRADFORD ALTERNATIVE PROVISION ACADEMY CENTRAL,1041110972,31442.12,Grants to educational establishments or not for profit organisations including other businesses
Department for Education,DEPARTMENT FOR EDUCATION,12/02/2020,Grants expenditure,STRATEGY SOCIAL MOBILITY OPPOTUNITY AREAS,FUTURES ADVICE SKILLS & EMPLOYMENT,1041111451,55277.01,Grants to educational establishments or not for profit organisations including other businesses
Department for Education,DEPARTMENT FOR EDUCATION,12/02/2020,Grants expenditure,STRATEGY SOCIAL MOBILITY OPPOTUNITY AREAS,COGNUS LTD,1041111476,54482.00,Grants to educational establishments or not for profit organisations including other businesses
Department for Education,DEPARTMENT FOR EDUCATION,17/02/2020,Grants expenditure,STRATEGY SOCIAL MOBILITY OPPOTUNITY AREAS,THE TUTOR TRUST,1041112482,37481.67,Grants to educational establishments or not for profit organisations including other businesses
Department for Education,DEPARTMENT FOR EDUCATION,17/02/2020,Grants expenditure,STRATEGY SOCIAL MOBILITY OPPOTUNITY AREAS,THE TUTOR TRUST,1041112482,41995.70,Grants to educational establishments or not for profit organisations including other businesses
Department for Education,DEPARTMENT FOR EDUCATION,26/02/2020,Other Goods & Services,SEND AND DISADVANTAGE GROUP,CATHOLIC EDUCATION SERVICE,1041114031,56500.00,"Fees / expenses of professionals such as auditors, accountants, lawyers, etc. engaged to provide advice or opinion on how to affect something"
Department for Education,DEPARTMENT FOR EDUCATION,04/02/2020,Professional Services Consultancy and Contingent Labour,ASSESSMENT AND CURRICULUM AND GENERAL QUALIFICATIONS,MATHEMATICS IN EDUCATION & INDUSTRY,1041110461,685656.00,Costs related to temporary workers
Department for Education,DEPARTMENT FOR EDUCATION,05/02/2020,Grants expenditure,ASSESSMENT AND CURRICULUM AND GENERAL QUALIFICATIONS,KENT AND MEDWAY MATHS HUB,1041110689,351431.00,Grants to educational establishments or not for profit organisations including other businesses
Department for Education,DEPARTMENT FOR EDUCATION,14/02/2020,Professional Services Consultancy and Contingent Labour,ASSESSMENT AND CURRICULUM AND GENERAL QUALIFICATIONS,TRIBAL EDUCATION,1041112316,254298.22,Costs related to temporary workers
Department for Education,DEPARTMENT FOR EDUCATION,14/02/2020,Professional Services Consultancy and Contingent Labour,ASSESSMENT AND CURRICULUM AND GENERAL QUALIFICATIONS,TRIBAL EDUCATION,1041112316,50859.64,Costs related to temporary workers
Department for Education,DEPARTMENT FOR EDUCATION,17/02/2020,Professional Services Consultancy and Contingent Labour,ASSESSMENT AND CURRICULUM AND GENERAL QUALIFICATIONS,MATHEMATICS IN EDUCATION & INDUSTRY,1041112491,905484.00,Costs related to temporary workers
Department for Education,DEPARTMENT FOR EDUCATION,26/02/2020,Professional Services Consultancy and Contingent Labour,ASSESSMENT AND CURRICULUM AND GENERAL QUALIFICATIONS,RUTH MISKIN LITERACY LTD,1041114011,69509.00,Costs related to temporary workers
Department for Education,DEPARTMENT FOR EDUCATION,26/02/2020,Professional Services Consultancy and Contingent Labour,ASSESSMENT AND CURRICULUM AND GENERAL QUALIFICATIONS,RUTH MISKIN LITERACY LTD,1041114011,13901.80,Costs related to temporary workers
Department for Education,DEPARTMENT FOR EDUCATION,07/02/2020,Grants expenditure,ASSESSMENT AND CURRICULUM AND GENERAL QUALIFICATIONS,UNIVERSITY OF CAMBRIDGE,1041111008,204033.09,Grants to educational establishments or not for profit organisations including other businesses
Department for Education,DEPARTMENT FOR EDUCATION,10/02/2020,Grants expenditure,ASSESSMENT AND CURRICULUM AND GENERAL QUALIFICATIONS,ENTHUSE CHARITABLE TRUST,1041111240,724783.42,Grants to educational establishments or not for profit organisations including other businesses
Department for Education,DEPARTMENT FOR EDUCATION,19/02/2020,Learning & Development,ASSESSMENT AND CURRICULUM AND GENERAL QUALIFICATIONS,STEM LEARNING LTD,1041112928,48661.44,Training & Development costs
Department for Education,DEPARTMENT FOR EDUCATION,19/02/2020,Learning & Development,ASSESSMENT AND CURRICULUM AND GENERAL QUALIFICATIONS,STEM LEARNING LTD,1041112928,84375.01,Training & Development costs
Department for Education,DEPARTMENT FOR EDUCATION,20/02/2020,Learning & Development,ASSESSMENT AND CURRICULUM AND GENERAL QUALIFICATIONS,STEM LEARNING LTD,1041113279,189999.00,Training & Development costs
Department for Education,DEPARTMENT FOR EDUCATION,21/02/2020,Other Goods & Services,ASSESSMENT AND CURRICULUM AND GENERAL QUALIFICATIONS,IOP INSTITUTE OF PHYSICS,1041113530,127193.00,"Fees / expenses of professionals such as auditors, accountants, lawyers, etc. engaged to provide advice or opinion on how to affect something"
Department for Education,DEPARTMENT FOR EDUCATION,17/02/2020,Other Goods & Services,ASSESSMENT AND CURRICULUM AND GENERAL QUALIFICATIONS,STEM LEARNING LTD,1041112596,798419.83,"Fees / expenses of professionals such as auditors, accountants, lawyers, etc. engaged to provide advice or opinion on how to affect something"
Department for Education,DEPARTMENT FOR EDUCATION,17/02/2020,Other Goods & Services,ASSESSMENT AND CURRICULUM AND GENERAL QUALIFICATIONS,STEM LEARNING LTD,1041112596,71429.83,"Fees / expenses of professionals such as auditors, accountants, lawyers, etc. engaged to provide advice or opinion on how to affect something"
Department for Education,DEPARTMENT FOR EDUCATION,17/02/2020,Other Goods & Services,ASSESSMENT AND CURRICULUM AND GENERAL QUALIFICATIONS,STEM LEARNING LTD,1041112596,73850.21,"Fees / expenses of professionals such as auditors, accountants, lawyers, etc. engaged to provide advice or opinion on how to affect something"
Department for Education,DEPARTMENT FOR EDUCATION,18/02/2020,Other Goods & Services,ASSESSMENT AND CURRICULUM AND GENERAL QUALIFICATIONS,STEM LEARNING LTD,1041112680,1005017.76,"Fees / expenses of professionals such as auditors, accountants, lawyers, etc. engaged to provide advice or opinion on how to affect something"
Department for Education,DEPARTMENT FOR EDUCATION,11/02/2020,Grants expenditure,SEND AND DISADVANTAGE GROUP,ANNE FRANK TRUST,1041111316,70621.00,Grants to educational establishments or not for profit organisations including other businesses
Department for Education,DEPARTMENT FOR EDUCATION,11/02/2020,Grants expenditure,SEND AND DISADVANTAGE GROUP,DIANA AWARD,1041111325,83000.00,Grants to educational establishments or not for profit organisations including other businesses
Department for Education,DEPARTMENT FOR EDUCATION,11/02/2020,Grants expenditure,SEND AND DISADVANTAGE GROUP,NATIONAL CHILDRENS BUREAU,1041111368,61612.50,Grants to educational establishments or not for profit organisations including other businesses
Department for Education,DEPARTMENT FOR EDUCATION,06/02/2020,Other Goods & Services,SEND AND DISADVANTAGE GROUP,FAMILY ACTION,1041110823,990175.00,"Fees / expenses of professionals such as auditors, accountants, lawyers, etc. engaged to provide advice or opinion on how to affect something"
Department for Education,DEPARTMENT FOR EDUCATION,06/02/2020,Other Goods & Services,SEND AND DISADVANTAGE GROUP,FAMILY ACTION,1041110823,198035.00,"Fees / expenses of professionals such as auditors, accountants, lawyers, etc. engaged to provide advice or opinion on how to affect something"
Department for Education,DEPARTMENT FOR EDUCATION,06/02/2020,Other Goods & Services,SEND AND DISADVANTAGE GROUP,RURAL PAYMENTS AGENCY,1041110856,27901.43,"Fees / expenses of professionals such as auditors, accountants, lawyers, etc. engaged to provide advice or opinion on how to affect something"
Department for Education,DEPARTMENT FOR EDUCATION,12/02/2020,Other Goods & Services,SEND AND DISADVANTAGE GROUP,FAMILY ACTION,1041111410,189811.56,"Fees / expenses of professionals such as auditors, accountants, lawyers, etc. engaged to provide advice or opinion on how to affect something"
Department for Education,DEPARTMENT FOR EDUCATION,12/02/2020,Other Goods & Services,SEND AND DISADVANTAGE GROUP,FAMILY ACTION,1041111410,37962.31,"Fees / expenses of professionals such as auditors, accountants, lawyers, etc. engaged to provide advice or opinion on how to affect something"
Department for Education,DEPARTMENT FOR EDUCATION,13/02/2020,Other Goods & Services,SEND AND DISADVANTAGE GROUP,FAMILY ACTION,1041111998,21453.79,"Fees / expenses of professionals such as auditors, accountants, lawyers, etc. engaged to provide advice or opinion on how to affect something"
Department for Education,DEPARTMENT FOR EDUCATION,13/02/2020,Other Goods & Services,SEND AND DISADVANTAGE GROUP,FAMILY ACTION,1041111998,4290.75,"Fees / expenses of professionals such as auditors, accountants, lawyers, etc. engaged to provide advice or opinion on how to affect something"
Department for Education,DEPARTMENT FOR EDUCATION,20/02/2020,Other Goods & Services,SEND AND DISADVANTAGE GROUP,ECORYS UK LTD,1041113339,39935.00,Research and Development
Department for Education,DEPARTMENT FOR EDUCATION,07/02/2020,Grants expenditure,EY AND SCHOOLS STRATEGY TOTAL,THE NATIONAL LITERACY TRUST,1041111018,214520.00,Grants to educational establishments or not for profit organisations including other businesses
Department for Education,DEPARTMENT FOR EDUCATION,10/02/2020,Grants expenditure,EY AND SCHOOLS STRATEGY TOTAL,NATIONAL CHILDRENS BUREAU,1041111243,207241.80,Grants to educational establishments or not for profit organisations including other businesses
Department for Education,DEPARTMENT FOR EDUCATION,12/02/2020,Grants expenditure,EY AND SCHOOLS STRATEGY TOTAL,I CAN,1041111596,175665.81,Grants to educational establishments or not for profit organisations including other businesses
Department for Education,DEPARTMENT FOR EDUCATION,12/02/2020,Grants expenditure,EY AND SCHOOLS STRATEGY TOTAL,PRE SCHOOL LEARNING ALLIANCE,1041111641,81503.00,Grants to educational establishments or not for profit organisations including other businesses
Department for Education,DEPARTMENT FOR EDUCATION,10/02/2020,Grants expenditure,TEACHERS AND TEACHING,COLLEGE OF TEACHING LTD,1041111209,83333.33,Grants to educational establishments or not for profit organisations including other businesses
Department for Education,DEPARTMENT FOR EDUCATION,04/02/2020,Grants expenditure,ASSESSMENT AND CURRICULUM AND GENERAL QUALIFICATIONS,CHOIR SCHOOLS ASSOCIATION BURSARY TRUST LTD,1041110472,64906.00,Grants to educational establishments or not for profit organisations including other businesses
Department for Education,DEPARTMENT FOR EDUCATION,12/02/2020,Grants expenditure,ASSESSMENT AND CURRICULUM AND GENERAL QUALIFICATIONS,CHOIR SCHOOLS ASSOCIATION BURSARY TRUST LTD,1041111487,236382.00,Grants to educational establishments or not for profit organisations including other businesses
Department for Education,DEPARTMENT FOR EDUCATION,12/02/2020,Grants expenditure,ASSESSMENT AND CURRICULUM AND GENERAL QUALIFICATIONS,CHOIR SCHOOLS ASSOCIATION BURSARY TRUST LTD,1041111487,42666.09,Grants to educational establishments or not for profit organisations including other businesses
Department for Education,DEPARTMENT FOR EDUCATION,12/02/2020,Grants expenditure,ASSESSMENT AND CURRICULUM AND GENERAL QUALIFICATIONS,CHOIR SCHOOLS ASSOCIATION BURSARY TRUST LTD,1041111487,66638.00,Grants to educational establishments or not for profit organisations including other businesses
Department for Education,DEPARTMENT FOR EDUCATION,12/02/2020,Grants expenditure,ASSESSMENT AND CURRICULUM AND GENERAL QUALIFICATIONS,CHOIR SCHOOLS ASSOCIATION BURSARY TRUST LTD,1041111487,285829.00,Grants to educational establishments or not for profit organisations including other businesses
Department for Education,DEPARTMENT FOR EDUCATION,12/02/2020,Grants expenditure,ASSESSMENT AND CURRICULUM AND GENERAL QUALIFICATIONS,CHOIR SCHOOLS ASSOCIATION BURSARY TRUST LTD,1041111487,515664.00,Grants to educational establishments or not for profit organisations including other businesses
Department for Education,DEPARTMENT FOR EDUCATION,05/02/2020,Other Goods & Services,TEACHERS AND TEACHING,NATIONAL FOUNDATION FOR EDUCATIONAL RESEARCH,1041110602,76278.00,Research and Development
Department for Education,DEPARTMENT FOR EDUCATION,03/02/2020,Grants expenditure,TEACHERS AND TEACHING,ST THOMAS OF CANTERBURY SCHOOL A CATHOLIC VOLUNTARY ACADEMY,1041110103,40303.00,Grants to educational establishments or not for profit organisations including other businesses
Department for Education,DEPARTMENT FOR EDUCATION,03/02/2020,Grants expenditure,TEACHERS AND TEACHING,ST MARYS CATHOLIC HIGH SCHOOL,1041110219,39922.00,Grants to educational establishments or not for profit organisations including other businesses
Department for Education,DEPARTMENT FOR EDUCATION,24/02/2020,Grants expenditure,TEACHERS AND TEACHING,HARTSHILL SCHOOL,1041113683,33177.00,Grants to educational establishments or not for profit organisations including other businesses
Department for Education,DEPARTMENT FOR EDUCATION,04/02/2020,Other Goods & Services,TEACHERS AND TEACHING,CAPITA BUSINESS SERVICES LTD,1041110452,25000.00,"Fees / expenses of professionals such as auditors, accountants, lawyers, etc. engaged to provide advice or opinion on how to affect something"
Department for Education,DEPARTMENT FOR EDUCATION,05/02/2020,Other Goods & Services,TEACHERS AND TEACHING,CAPITA BUSINESS SERVICES,1041110621,103900.49,"Fees / expenses of professionals such as auditors, accountants, lawyers, etc. engaged to provide advice or opinion on how to affect something"
Department for Education,DEPARTMENT FOR EDUCATION,10/02/2020,Other Goods & Services,TEACHERS AND TEACHING,CAPITA BUSINESS SERVICES LTD,1041111229,40000.00,"Fees / expenses of professionals such as auditors, accountants, lawyers, etc. engaged to provide advice or opinion on how to affect something"
Department for Education,DEPARTMENT FOR EDUCATION,11/02/2020,Other Goods & Services,TEACHERS AND TEACHING,CAPITA BUSINESS SERVICES,1041111327,998824.20,"Fees / expenses of professionals such as auditors, accountants, lawyers, etc. engaged to provide advice or opinion on how to affect something"
Department for Education,DEPARTMENT FOR EDUCATION,20/02/2020,Other Goods & Services,TEACHERS AND TEACHING,CAPITA BUSINESS SERVICES LTD,1041113349,25000.00,"Fees / expenses of professionals such as auditors, accountants, lawyers, etc. engaged to provide advice or opinion on how to affect something"
Department for Education,DEPARTMENT FOR EDUCATION,21/02/2020,Other Goods & Services,TEACHERS AND TEACHING,CAPITA BUSINESS SERVICES,1041113518,100419.42,"Fees / expenses of professionals such as auditors, accountants, lawyers, etc. engaged to provide advice or opinion on how to affect something"
Department for Education,DEPARTMENT FOR EDUCATION,04/02/2020,Grants expenditure,EY AND SCHOOLS STRATEGY TOTAL,ESSEX PRY SCHOOLS TRAINING GROUP,1041110293,33320.00,Grants to educational establishments or not for profit organisations including other businesses
Department for Education,DEPARTMENT FOR EDUCATION,04/02/2020,Grants expenditure,EY AND SCHOOLS STRATEGY TOTAL,THE GREATER MANCHESTER BRIGHT FUTURES TRUST,1041110367,47040.00,Grants to educational establishments or not for profit organisations including other businesses
Department for Education,DEPARTMENT FOR EDUCATION,04/02/2020,Grants expenditure,EY AND SCHOOLS STRATEGY TOTAL,UNIVERSITY OF GLOUCESTERSHIRE,1041110372,28547.50,Grants to educational establishments or not for profit organisations including other businesses
Department for Education,DEPARTMENT FOR EDUCATION,04/02/2020,Grants expenditure,EY AND SCHOOLS STRATEGY TOTAL,UCL INSTITUTE OF EDUCATION,1041110388,26601.81,Grants to educational establishments or not for profit organisations including other businesses
Department for Education,DEPARTMENT FOR EDUCATION,04/02/2020,Grants expenditure,EY AND SCHOOLS STRATEGY TOTAL,UNIVERSITY OF BRIGHTON,1041110393,25480.00,Grants to educational establishments or not for profit organisations including other businesses
Department for Education,DEPARTMENT FOR EDUCATION,04/02/2020,Grants expenditure,EY AND SCHOOLS STRATEGY TOTAL,THE UNIVERSITY OF READING,1041110397,37780.00,Grants to educational establishments or not for profit organisations including other businesses
Department for Education,DEPARTMENT FOR EDUCATION,04/02/2020,Grants expenditure,EY AND SCHOOLS STRATEGY TOTAL,E QUALITAS PROFESSIONAL SERVICES LTD,1041110458,104865.75,Grants to educational establishments or not for profit organisations including other businesses
Department for Education,DEPARTMENT FOR EDUCATION,04/02/2020,Grants expenditure,EY AND SCHOOLS STRATEGY TOTAL,UNIVERSITY OF SUSSEX,1041110540,36680.00,Grants to educational establishments or not for profit organisations including other businesses
Department for Education,DEPARTMENT FOR EDUCATION,27/02/2020,"Marketing, Media and Comms",EY AND SCHOOLS STRATEGY TOTAL,FREUD COMMUNICATIONS LTD,1041114161,-50274.88,"Reprographic, photo and design goods and services (excluding photocopiers, multifunctional devices and printers)"
Department for Education,DEPARTMENT FOR EDUCATION,27/02/2020,"Marketing, Media and Comms",EY AND SCHOOLS STRATEGY TOTAL,FREUD COMMUNICATIONS LTD,1041114161,23400.00,"Reprographic, photo and design goods and services (excluding photocopiers, multifunctional devices and printers)"
Department for Education,DEPARTMENT FOR EDUCATION,27/02/2020,"Marketing, Media and Comms",EY AND SCHOOLS STRATEGY TOTAL,FREUD COMMUNICATIONS LTD,1041114161,27123.00,"Reprographic, photo and design goods and services (excluding photocopiers, multifunctional devices and printers)"
Department for Education,DEPARTMENT FOR EDUCATION,27/02/2020,"Marketing, Media and Comms",EY AND SCHOOLS STRATEGY TOTAL,FREUD COMMUNICATIONS LTD,1041114161,50274.88,"Reprographic, photo and design goods and services (excluding photocopiers, multifunctional devices and printers)"
Department for Education,DEPARTMENT FOR EDUCATION,27/02/2020,Grants expenditure,EY AND SCHOOLS STRATEGY TOTAL,IMPROVEMENT & DEVELOPMENT AGENCY FOR LOCAL GOVERNMENT,1041114234,180141.00,Grants to educational establishments or not for profit organisations including other businesses
Department for Education,DEPARTMENT FOR EDUCATION,28/02/2020,Learning & Development,EY AND SCHOOLS STRATEGY TOTAL,EDUCATION DEVELOPMENT TRUST,1041114512,132708.03,Training & Development costs
Department for Education,DEPARTMENT FOR EDUCATION,07/02/2020,Other Goods & Services,TEACHING WORKFORCE TOTAL,TELEPERFORMANCE LTD,1041110942,84193.05,"Fees / expenses of professionals such as auditors, accountants, lawyers, etc. engaged to provide advice or opinion on how to affect something"
Department for Education,DEPARTMENT FOR EDUCATION,11/02/2020,Other Goods & Services,TEACHING WORKFORCE TOTAL,SCROLL PROJECTS LTD,1041111323,33145.00,"Fees / expenses of professionals such as auditors, accountants, lawyers, etc. engaged to provide advice or opinion on how to affect something"
Department for Education,DEPARTMENT FOR EDUCATION,11/02/2020,Other Goods & Services,TEACHING WORKFORCE TOTAL,SCROLL PROJECTS LTD,1041111323,6629.00,"Fees / expenses of professionals such as auditors, accountants, lawyers, etc. engaged to provide advice or opinion on how to affect something"
Department for Education,DEPARTMENT FOR EDUCATION,14/02/2020,"Marketing, Media and Comms",TEACHING WORKFORCE TOTAL,OMD GROUP TA MANNING GOTTLIEB OMD LTD,1041112305,74715.43,"Publicity, advertising, media advertising campaigns (excluding recruitment adverts)"
Department for Education,DEPARTMENT FOR EDUCATION,20/02/2020,Other Goods & Services,TEACHING WORKFORCE TOTAL,TELEPERFORMANCE LTD,1041113128,124992.92,"Fees / expenses of professionals such as auditors, accountants, lawyers, etc. engaged to provide advice or opinion on how to affect something"
Department for Education,DEPARTMENT FOR EDUCATION,20/02/2020,Other Goods & Services,TEACHING WORKFORCE TOTAL,TELEPERFORMANCE LTD,1041113128,490094.67,"Fees / expenses of professionals such as auditors, accountants, lawyers, etc. engaged to provide advice or opinion on how to affect something"
Department for Education,DEPARTMENT FOR EDUCATION,03/02/2020,"Marketing, Media and Comms",TEACHING WORKFORCE TOTAL,OMD GROUP TA MANNING GOTTLIEB OMD LTD,1041110215,54730.01,"Publicity, advertising, media advertising campaigns (excluding recruitment adverts)"
Department for Education,DEPARTMENT FOR EDUCATION,11/02/2020,Other Goods & Services,TEACHING WORKFORCE TOTAL,POPULUS LTD,1041111292,27000.00,Research and Development
Department for Education,DEPARTMENT FOR EDUCATION,14/02/2020,"Marketing, Media and Comms",TEACHING WORKFORCE TOTAL,OMD GROUP TA MANNING GOTTLIEB OMD LTD,1041112305,113933.27,"Publicity, advertising, media advertising campaigns (excluding recruitment adverts)"
Department for Education,DEPARTMENT FOR EDUCATION,14/02/2020,"Marketing, Media and Comms",TEACHING WORKFORCE TOTAL,OMD GROUP TA MANNING GOTTLIEB OMD LTD,1041112305,44767.46,"Publicity, advertising, media advertising campaigns (excluding recruitment adverts)"
Department for Education,DEPARTMENT FOR EDUCATION,14/02/2020,"Marketing, Media and Comms",TEACHING WORKFORCE TOTAL,OMD GROUP TA MANNING GOTTLIEB OMD LTD,1041112305,135115.33,"Publicity, advertising, media advertising campaigns (excluding recruitment adverts)"
Department for Education,DEPARTMENT FOR EDUCATION,26/02/2020,"Marketing, Media and Comms",TEACHING WORKFORCE TOTAL,OMD GROUP TA MANNING GOTTLIEB OMD LTD,1041114007,223763.96,"Publicity, advertising, media advertising campaigns (excluding recruitment adverts)"
Department for Education,DEPARTMENT FOR EDUCATION,06/02/2020,IS/IT,TEACHING WORKFORCE TOTAL,OLIVE JAR DIGITAL LTD,1041110811,161250.00,Partial payment for IT hardware / consumables
Department for Education,DEPARTMENT FOR EDUCATION,06/02/2020,IS/IT,TEACHING WORKFORCE TOTAL,OLIVE JAR DIGITAL LTD,1041110811,32250.00,Partial payment for IT hardware / consumables
Department for Education,DEPARTMENT FOR EDUCATION,03/02/2020,"Marketing, Media and Comms",TEACHING WORKFORCE TOTAL,OMD GROUP TA MANNING GOTTLIEB OMD LTD,1041110215,34328.65,"Publicity, advertising, media advertising campaigns (excluding recruitment adverts)"
Department for Education,DEPARTMENT FOR EDUCATION,10/02/2020,"Marketing, Media and Comms",TEACHING WORKFORCE TOTAL,FOUR COMMUNICATIONS LTD,1041111055,61340.94,"Publicity, advertising, media advertising campaigns (excluding recruitment adverts)"
Department for Education,DEPARTMENT FOR EDUCATION,17/02/2020,IS/IT,TEACHING WORKFORCE TOTAL,MADE TECH LTD,1041112445,28910.00,Partial payment for IT hardware / consumables
Department for Education,DEPARTMENT FOR EDUCATION,21/02/2020,"Marketing, Media and Comms",TEACHING WORKFORCE TOTAL,OMD GROUP TA MANNING GOTTLIEB OMD LTD,1041113515,30262.46,"Publicity, advertising, media advertising campaigns (excluding recruitment adverts)"
Department for Education,DEPARTMENT FOR EDUCATION,24/02/2020,"Marketing, Media and Comms",TEACHING WORKFORCE TOTAL,FOUR COMMUNICATIONS LTD,1041113648,27941.52,"Publicity, advertising, media advertising campaigns (excluding recruitment adverts)"
Department for Education,DEPARTMENT FOR EDUCATION,17/02/2020,IS/IT,TEACHING WORKFORCE TOTAL,MADE TECH LTD,1041112445,26827.50,Partial payment for IT hardware / consumables
Department for Education,DEPARTMENT FOR EDUCATION,03/02/2020,IS/IT,TEACHING WORKFORCE TOTAL,ENGINE PARTNERS UK LLP TRANSFORM,1041110160,20972.67,Partial payment for IT hardware / consumables
Department for Education,DEPARTMENT FOR EDUCATION,03/02/2020,IS/IT,TEACHING WORKFORCE TOTAL,ENGINE PARTNERS UK LLP TRANSFORM,1041110160,43100.00,Partial payment for IT hardware / consumables
Department for Education,DEPARTMENT FOR EDUCATION,11/02/2020,IS/IT,TEACHING WORKFORCE TOTAL,ENGINE PARTNERS UK LLP TRANSFORM,1041111276,40850.00,Partial payment for IT hardware / consumables
Department for Education,DEPARTMENT FOR EDUCATION,05/02/2020,IS/IT,TEACHING WORKFORCE TOTAL,HESA SERVICES LTD,1041110758,36094.25,IS/IT Systems Operations
Department for Education,DEPARTMENT FOR EDUCATION,04/02/2020,Grants expenditure,TEACHING WORKFORCE TOTAL,BISHOP CHALLONER CATHOLIC COLLEGE,1041110331,58000.00,Grants to educational establishments or not for profit organisations including other businesses
Department for Education,DEPARTMENT FOR EDUCATION,13/02/2020,Grants expenditure,TEACHING WORKFORCE TOTAL,ALTRINCHAM GRAMMAR SCHOOL FOR GIRLS,1041112101,30000.00,Grants to educational establishments or not for profit organisations including other businesses
Department for Education,DEPARTMENT FOR EDUCATION,13/02/2020,Grants expenditure,TEACHING WORKFORCE TOTAL,BISHOP CHALLONER CATHOLIC COLLEGE,1041112103,30000.00,Grants to educational establishments or not for profit organisations including other businesses
Department for Education,DEPARTMENT FOR EDUCATION,28/02/2020,Professional Services,TEACHING WORKFORCE TOTAL,ARK UK PROGRAMMES,1041114446,83683.00,"Advisory services including fees, travel and expenses"
Department for Education,DEPARTMENT FOR EDUCATION,10/02/2020,Other Goods & Services,TEACHING WORKFORCE TOTAL,TELEPERFORMANCE LTD,1041111110,32572.17,"Fees / expenses of professionals such as auditors, accountants, lawyers, etc. engaged to provide advice or opinion on how to affect something"
Department for Education,DEPARTMENT FOR EDUCATION,26/02/2020,Learning & Development,TEACHING WORKFORCE TOTAL,EDUCATION DEVELOPMENT TRUST,1041114015,65366.24,Training & Development costs
Department for Education,DEPARTMENT FOR EDUCATION,28/02/2020,Grants expenditure,TEACHING WORKFORCE TOTAL,LEICESTERSHIRE SECONDARY SCITT,1041114300,50000.00,Grants to educational establishments or not for profit organisations including other businesses
Department for Education,DEPARTMENT FOR EDUCATION,28/02/2020,Grants expenditure,TEACHING WORKFORCE TOTAL,ST MARY & ST PAULS CE PRIMARY SCHOOL TS ACCOUNT,1041114311,343093.34,Grants to educational establishments or not for profit organisations including other businesses
Department for Education,DEPARTMENT FOR EDUCATION,28/02/2020,Grants expenditure,TEACHING WORKFORCE TOTAL,UNIVERSITY OF SUSSEX,1041114324,621971.43,Grants to educational establishments or not for profit organisations including other businesses
Department for Education,DEPARTMENT FOR EDUCATION,28/02/2020,Grants expenditure,TEACHING WORKFORCE TOTAL,ST MARYS UNIVERSITY COLLEGE,1041114325,61976.48,Grants to educational establishments or not for profit organisations including other businesses
Department for Education,DEPARTMENT FOR EDUCATION,28/02/2020,Grants expenditure,TEACHING WORKFORCE TOTAL,UNIVERSITY OF EAST LONDON,1041114360,44800.00,Grants to educational establishments or not for profit organisations including other businesses
Department for Education,DEPARTMENT FOR EDUCATION,28/02/2020,Grants expenditure,TEACHING WORKFORCE TOTAL,UNIVERSITY OF BRIGHTON,1041114372,28488.31,Grants to educational establishments or not for profit organisations including other businesses
Department for Education,DEPARTMENT FOR EDUCATION,28/02/2020,Grants expenditure,TEACHING WORKFORCE TOTAL,MANCHESTER METROPOLITAN UNIVERSITY,1041114374,100457.16,Grants to educational establishments or not for profit organisations including other businesses
Department for Education,DEPARTMENT FOR EDUCATION,28/02/2020,Grants expenditure,TEACHING WORKFORCE TOTAL,LIVERPOOL HOPE UNIVERSITY,1041114375,43485.70,Grants to educational establishments or not for profit organisations including other businesses
Department for Education,DEPARTMENT FOR EDUCATION,28/02/2020,Grants expenditure,TEACHING WORKFORCE TOTAL,BRADFORD COLLEGE,1041114390,70000.00,Grants to educational establishments or not for profit organisations including other businesses
Department for Education,DEPARTMENT FOR EDUCATION,28/02/2020,Grants expenditure,TEACHING WORKFORCE TOTAL,BIRMINGHAM CITY UNIVERSITY,1041114392,44800.00,Grants to educational establishments or not for profit organisations including other businesses
Department for Education,DEPARTMENT FOR EDUCATION,28/02/2020,Grants expenditure,TEACHING WORKFORCE TOTAL,UNIVERSITY OF THE WEST OF ENGLAND,1041114461,56800.00,Grants to educational establishments or not for profit organisations including other businesses
Department for Education,DEPARTMENT FOR EDUCATION,28/02/2020,Grants expenditure,TEACHING WORKFORCE TOTAL,EDGE HILL UNIVERSITY,1041114476,76800.00,Grants to educational establishments or not for profit organisations including other businesses
Department for Education,DEPARTMENT FOR EDUCATION,28/02/2020,Grants expenditure,TEACHING WORKFORCE TOTAL,HIBERNIA COLLEGE UK,1041114515,790054.34,Grants to educational establishments or not for profit organisations including other businesses
Department for Education,DEPARTMENT FOR EDUCATION,19/02/2020,Grants expenditure,TEACHING WORKFORCE TOTAL,BCS,1041113085,33450.87,Grants to educational establishments or not for profit organisations including other businesses
Department for Education,DEPARTMENT FOR EDUCATION,21/02/2020,Grants expenditure,SYSTEM CAPACITY LEADERSHIP AND GOVERNANCE TOTAL,PRINCE HENRYS GRAMMAR SCHOOL,1041113497,75000.00,Grants to educational establishments or not for profit organisations including other businesses
Department for Education,DEPARTMENT FOR EDUCATION,21/02/2020,Grants expenditure,SYSTEM CAPACITY LEADERSHIP AND GOVERNANCE TOTAL,HARRIS CITY ACADEMY CRYSTAL PALACE,1041113533,50000.00,Grants to educational establishments or not for profit organisations including other businesses
Department for Education,DEPARTMENT FOR EDUCATION,26/02/2020,Grants expenditure,SYSTEM CAPACITY LEADERSHIP AND GOVERNANCE TOTAL,SKIPTON GIRLS HIGH SCHOOL TS ACCOUNT,1041114041,55250.00,Grants to educational establishments or not for profit organisations including other businesses
Department for Education,DEPARTMENT FOR EDUCATION,10/02/2020,Other Goods & Services,SYSTEM CAPACITY LEADERSHIP AND GOVERNANCE TOTAL,TRIBAL EDUCATION,1041111227,94095.95,"Fees / expenses of professionals such as auditors, accountants, lawyers, etc. engaged to provide advice or opinion on how to affect something"
Department for Education,DEPARTMENT FOR EDUCATION,10/02/2020,Other Goods & Services,SYSTEM CAPACITY LEADERSHIP AND GOVERNANCE TOTAL,TRIBAL EDUCATION,1041111227,18819.19,"Fees / expenses of professionals such as auditors, accountants, lawyers, etc. engaged to provide advice or opinion on how to affect something"
Department for Education,DEPARTMENT FOR EDUCATION,05/02/2020,Other Goods & Services,SYSTEM CAPACITY LEADERSHIP AND GOVERNANCE TOTAL,AMBITION INSTITUTE,1041110737,112411.51,Programme Expenditure
Department for Education,DEPARTMENT FOR EDUCATION,05/02/2020,Other Goods & Services,SYSTEM CAPACITY LEADERSHIP AND GOVERNANCE TOTAL,TEACH FIRST,1041110756,86145.20,Programme Expenditure
Department for Education,DEPARTMENT FOR EDUCATION,05/02/2020,Other Goods & Services,SYSTEM CAPACITY LEADERSHIP AND GOVERNANCE TOTAL,EDUCATION DEVELOPMENT TRUST,1041110770,92432.60,Programme Expenditure
Department for Education,DEPARTMENT FOR EDUCATION,06/02/2020,Other Goods & Services,SYSTEM CAPACITY LEADERSHIP AND GOVERNANCE TOTAL,UCL CONSULTANTS LTD,1041110892,104815.37,Programme Expenditure
Department for Education,DEPARTMENT FOR EDUCATION,27/02/2020,Other Goods & Services,SYSTEM CAPACITY LEADERSHIP AND GOVERNANCE TOTAL,DEFINE RESEARCH & INSIGHT LTD,1041114099,28500.00,Research and Development
Department for Education,DEPARTMENT FOR EDUCATION,03/02/2020,Grants expenditure,SYSTEM CAPACITY LEADERSHIP AND GOVERNANCE TOTAL,EPPING FOREST SCHOOLS PARTNERSHIP TRUST,1041110061,26666.00,Grants to educational establishments or not for profit organisations including other businesses
Department for Education,DEPARTMENT FOR EDUCATION,03/02/2020,Grants expenditure,SYSTEM CAPACITY LEADERSHIP AND GOVERNANCE TOTAL,HATTON ACADEMIES TRUST,1041110066,26666.00,Grants to educational establishments or not for profit organisations including other businesses
Department for Education,DEPARTMENT FOR EDUCATION,03/02/2020,Grants expenditure,SYSTEM CAPACITY LEADERSHIP AND GOVERNANCE TOTAL,THE FEDERATION OF ST ELPHEGES,1041110068,26666.00,Grants to educational establishments or not for profit organisations including other businesses
Department for Education,DEPARTMENT FOR EDUCATION,03/02/2020,Grants expenditure,SYSTEM CAPACITY LEADERSHIP AND GOVERNANCE TOTAL,ST MARYS CATHOLIC HIGH SCHOOL,1041110069,26666.00,Grants to educational establishments or not for profit organisations including other businesses
Department for Education,DEPARTMENT FOR EDUCATION,03/02/2020,Grants expenditure,SYSTEM CAPACITY LEADERSHIP AND GOVERNANCE TOTAL,SOUTH BROMSGROVE COMMUNITY HIGH SCHOOL,1041110070,26666.00,Grants to educational establishments or not for profit organisations including other businesses
Department for Education,DEPARTMENT FOR EDUCATION,03/02/2020,Grants expenditure,SYSTEM CAPACITY LEADERSHIP AND GOVERNANCE TOTAL,SKIPTON GIRLS HIGH SCHOOL TS ACCOUNT,1041110074,26666.00,Grants to educational establishments or not for profit organisations including other businesses
Department for Education,DEPARTMENT FOR EDUCATION,03/02/2020,Grants expenditure,SYSTEM CAPACITY LEADERSHIP AND GOVERNANCE TOTAL,THE ELLIOT FOUNDATION ACADEMIES TRUST,1041110085,25166.00,Grants to educational establishments or not for profit organisations including other businesses
Department for Education,DEPARTMENT FOR EDUCATION,03/02/2020,Grants expenditure,SYSTEM CAPACITY LEADERSHIP AND GOVERNANCE TOTAL,DELTA ACADEMIES TRUST,1041110086,26666.00,Grants to educational establishments or not for profit organisations including other businesses
Department for Education,DEPARTMENT FOR EDUCATION,03/02/2020,Grants expenditure,SYSTEM CAPACITY LEADERSHIP AND GOVERNANCE TOTAL,EASTFIELD PRIMARY SCHOOL,1041110091,25166.00,Grants to educational establishments or not for profit organisations including other businesses
Department for Education,DEPARTMENT FOR EDUCATION,03/02/2020,Grants expenditure,SYSTEM CAPACITY LEADERSHIP AND GOVERNANCE TOTAL,HOYLAND COMMON PRIMARY SCHOOL,1041110092,26666.00,Grants to educational establishments or not for profit organisations including other businesses
Department for Education,DEPARTMENT FOR EDUCATION,03/02/2020,Grants expenditure,SYSTEM CAPACITY LEADERSHIP AND GOVERNANCE TOTAL,SEVEN KINGS HIGH SCHOOL TS ACCOUNT,1041110094,26666.00,Grants to educational establishments or not for profit organisations including other businesses
Department for Education,DEPARTMENT FOR EDUCATION,03/02/2020,Grants expenditure,SYSTEM CAPACITY LEADERSHIP AND GOVERNANCE TOTAL,SIDNEY STRINGER ACADEMY,1041110095,26666.00,Grants to educational establishments or not for profit organisations including other businesses
Department for Education,DEPARTMENT FOR EDUCATION,03/02/2020,Grants expenditure,SYSTEM CAPACITY LEADERSHIP AND GOVERNANCE TOTAL,THE SOUTHWATER INFANT ACADEMY,1041110096,26666.00,Grants to educational establishments or not for profit organisations including other businesses
Department for Education,DEPARTMENT FOR EDUCATION,03/02/2020,Grants expenditure,SYSTEM CAPACITY LEADERSHIP AND GOVERNANCE TOTAL,ST ANGELAS URSULINE SCHOOL,1041110102,26666.00,Grants to educational establishments or not for profit organisations including other businesses
Department for Education,DEPARTMENT FOR EDUCATION,03/02/2020,Grants expenditure,SYSTEM CAPACITY LEADERSHIP AND GOVERNANCE TOTAL,ST ANTHONYS GIRLS SCHOOL,1041110104,26666.00,Grants to educational establishments or not for profit organisations including other businesses
Department for Education,DEPARTMENT FOR EDUCATION,03/02/2020,Grants expenditure,SYSTEM CAPACITY LEADERSHIP AND GOVERNANCE TOTAL,ST MARKS SCHOOL,1041110116,26666.00,Grants to educational establishments or not for profit organisations including other businesses
Department for Education,DEPARTMENT FOR EDUCATION,03/02/2020,Grants expenditure,SYSTEM CAPACITY LEADERSHIP AND GOVERNANCE TOTAL,ST JOSEPH NURSERY,1041110117,26666.00,Grants to educational establishments or not for profit organisations including other businesses
Department for Education,DEPARTMENT FOR EDUCATION,03/02/2020,Grants expenditure,SYSTEM CAPACITY LEADERSHIP AND GOVERNANCE TOTAL,ST JOHN BOSCO ARTS COLLEGE,1041110118,26666.00,Grants to educational establishments or not for profit organisations including other businesses
Department for Education,DEPARTMENT FOR EDUCATION,03/02/2020,Grants expenditure,SYSTEM CAPACITY LEADERSHIP AND GOVERNANCE TOTAL,HILLMORTON PRIMARY SCHOOL WCC AC,1041110126,26666.00,Grants to educational establishments or not for profit organisations including other businesses
Department for Education,DEPARTMENT FOR EDUCATION,03/02/2020,Grants expenditure,SYSTEM CAPACITY LEADERSHIP AND GOVERNANCE TOTAL,OUR LADY OF LOURDES CATHOLIC MAC,1041110128,26666.00,Grants to educational establishments or not for profit organisations including other businesses
Department for Education,DEPARTMENT FOR EDUCATION,03/02/2020,Grants expenditure,SYSTEM CAPACITY LEADERSHIP AND GOVERNANCE TOTAL,ST JAMES THE GREAT RC PRIMARY & NURSERY,1041110133,26666.00,Grants to educational establishments or not for profit organisations including other businesses
Department for Education,DEPARTMENT FOR EDUCATION,03/02/2020,Grants expenditure,SYSTEM CAPACITY LEADERSHIP AND GOVERNANCE TOTAL,MOSSLEY HOLLINS HIGH SCHOOL,1041110134,26666.00,Grants to educational establishments or not for profit organisations including other businesses
Department for Education,DEPARTMENT FOR EDUCATION,03/02/2020,Grants expenditure,SYSTEM CAPACITY LEADERSHIP AND GOVERNANCE TOTAL,ST JOSEPHS CATHOLIC PRIMARY HAMPSHIRE TS ACCOUNT,1041110149,26666.00,Grants to educational establishments or not for profit organisations including other businesses
Department for Education,DEPARTMENT FOR EDUCATION,03/02/2020,Grants expenditure,SYSTEM CAPACITY LEADERSHIP AND GOVERNANCE TOTAL,THE BLUE COAT SCHOOL,1041110150,26666.00,Grants to educational establishments or not for profit organisations including other businesses
Department for Education,DEPARTMENT FOR EDUCATION,03/02/2020,Grants expenditure,SYSTEM CAPACITY LEADERSHIP AND GOVERNANCE TOTAL,SPONNE SCHOOL,1041110153,25166.00,Grants to educational establishments or not for profit organisations including other businesses
Department for Education,DEPARTMENT FOR EDUCATION,03/02/2020,Grants expenditure,SYSTEM CAPACITY LEADERSHIP AND GOVERNANCE TOTAL,BENNETT MEMORIAL DIOCESAN SCHOOL,1041110166,26666.00,Grants to educational establishments or not for profit organisations including other businesses
Department for Education,DEPARTMENT FOR EDUCATION,03/02/2020,Grants expenditure,SYSTEM CAPACITY LEADERSHIP AND GOVERNANCE TOTAL,NORTHAMPTON SCHOOL FOR BOYS,1041110168,26666.00,Grants to educational establishments or not for profit organisations including other businesses
Department for Education,DEPARTMENT FOR EDUCATION,03/02/2020,Grants expenditure,SYSTEM CAPACITY LEADERSHIP AND GOVERNANCE TOTAL,SIR THOMAS RICHS SCHOOL,1041110169,26666.00,Grants to educational establishments or not for profit organisations including other businesses
Department for Education,DEPARTMENT FOR EDUCATION,03/02/2020,Grants expenditure,SYSTEM CAPACITY LEADERSHIP AND GOVERNANCE TOTAL,MILLSTEAD PRIMARY SCHOOL,1041110191,26666.00,Grants to educational establishments or not for profit organisations including other businesses
Department for Education,DEPARTMENT FOR EDUCATION,03/02/2020,Grants expenditure,SYSTEM CAPACITY LEADERSHIP AND GOVERNANCE TOTAL,ST JOHNS MARLBOROUGH,1041110205,26666.00,Grants to educational establishments or not for profit organisations including other businesses
Department for Education,DEPARTMENT FOR EDUCATION,03/02/2020,Grants expenditure,SYSTEM CAPACITY LEADERSHIP AND GOVERNANCE TOTAL,ST EDMUNDS NURSERY SCHOOL & CENTRE TS ACCOUNT,1041110209,26666.00,Grants to educational establishments or not for profit organisations including other businesses
Department for Education,DEPARTMENT FOR EDUCATION,03/02/2020,Grants expenditure,SYSTEM CAPACITY LEADERSHIP AND GOVERNANCE TOTAL,ST ANTHONYS ROMAN CATHOLIC PRIMARY SCHOOL,1041110216,26666.00,Grants to educational establishments or not for profit organisations including other businesses
Department for Education,DEPARTMENT FOR EDUCATION,03/02/2020,Grants expenditure,SYSTEM CAPACITY LEADERSHIP AND GOVERNANCE TOTAL,ST CUTHBERTS ROMAN CATHOLIC VOLUNTARY AIDED PRIMARY SCHOOL,1041110217,26666.00,Grants to educational establishments or not for profit organisations including other businesses
Department for Education,DEPARTMENT FOR EDUCATION,03/02/2020,Grants expenditure,SYSTEM CAPACITY LEADERSHIP AND GOVERNANCE TOTAL,NICHOLAS POSTGATE ACADEMY TRUST,1041110222,26666.00,Grants to educational establishments or not for profit organisations including other businesses
Department for Education,DEPARTMENT FOR EDUCATION,03/02/2020,Grants expenditure,SYSTEM CAPACITY LEADERSHIP AND GOVERNANCE TOTAL,ROUND DIAMOND PRIMARY SCHOOL,1041110233,33333.00,Grants to educational establishments or not for profit organisations including other businesses
Department for Education,DEPARTMENT FOR EDUCATION,03/02/2020,Grants expenditure,SYSTEM CAPACITY LEADERSHIP AND GOVERNANCE TOTAL,LAWRENCE SHERIFF SCHOOL ACADEMY TRUST,1041110235,25166.00,Grants to educational establishments or not for profit organisations including other businesses
Department for Education,DEPARTMENT FOR EDUCATION,03/02/2020,Grants expenditure,SYSTEM CAPACITY LEADERSHIP AND GOVERNANCE TOTAL,SUTTON SCITT,1041110238,26666.00,Grants to educational establishments or not for profit organisations including other businesses
Department for Education,DEPARTMENT FOR EDUCATION,03/02/2020,Grants expenditure,SYSTEM CAPACITY LEADERSHIP AND GOVERNANCE TOTAL,GRASSLOT INFANT SCHOOL,1041110239,26666.00,Grants to educational establishments or not for profit organisations including other businesses
Department for Education,DEPARTMENT FOR EDUCATION,03/02/2020,Grants expenditure,SYSTEM CAPACITY LEADERSHIP AND GOVERNANCE TOTAL,SHERINGHAM NURSERY SCHOOL & CHILDRENS CENTRE,1041110241,26666.00,Grants to educational establishments or not for profit organisations including other businesses
Department for Education,DEPARTMENT FOR EDUCATION,03/02/2020,Grants expenditure,SYSTEM CAPACITY LEADERSHIP AND GOVERNANCE TOTAL,THE CARDINAL VAUGHAN MEMORIAL RC SCHOOL,1041110249,26666.00,Grants to educational establishments or not for profit organisations including other businesses
Department for Education,DEPARTMENT FOR EDUCATION,03/02/2020,Grants expenditure,SYSTEM CAPACITY LEADERSHIP AND GOVERNANCE TOTAL,TYNTESFIELD PRIMARY SCHOOL,1041110250,26285.00,Grants to educational establishments or not for profit organisations including other businesses
Department for Education,DEPARTMENT FOR EDUCATION,04/02/2020,Grants expenditure,SYSTEM CAPACITY LEADERSHIP AND GOVERNANCE TOTAL,ORMISTON VENTURE ACADEMY,1041110362,26666.00,Grants to educational establishments or not for profit organisations including other businesses
Department for Education,DEPARTMENT FOR EDUCATION,04/02/2020,Grants expenditure,SYSTEM CAPACITY LEADERSHIP AND GOVERNANCE TOTAL,THE BRIDGE SCHOOL LONDON,1041110490,25166.00,Grants to educational establishments or not for profit organisations including other businesses
Department for Education,DEPARTMENT FOR EDUCATION,05/02/2020,Grants expenditure,SYSTEM CAPACITY LEADERSHIP AND GOVERNANCE TOTAL,ST JOHNS PRIMARY SCHOOL,1041110592,33333.00,Grants to educational establishments or not for profit organisations including other businesses
Department for Education,DEPARTMENT FOR EDUCATION,05/02/2020,Grants expenditure,SYSTEM CAPACITY LEADERSHIP AND GOVERNANCE TOTAL,ST MARYS CATHOLIC PRIMARY SCHOOL,1041110609,26666.00,Grants to educational establishments or not for profit organisations including other businesses
Department for Education,DEPARTMENT FOR EDUCATION,05/02/2020,Grants expenditure,SYSTEM CAPACITY LEADERSHIP AND GOVERNANCE TOTAL,SOUTH FARNHAM SCHOOL,1041110611,25166.00,Grants to educational establishments or not for profit organisations including other businesses
Department for Education,DEPARTMENT FOR EDUCATION,05/02/2020,Grants expenditure,SYSTEM CAPACITY LEADERSHIP AND GOVERNANCE TOTAL,JOHN F KENNEDY SCHOOL,1041110612,27333.00,Grants to educational establishments or not for profit organisations including other businesses
Department for Education,DEPARTMENT FOR EDUCATION,05/02/2020,Grants expenditure,SYSTEM CAPACITY LEADERSHIP AND GOVERNANCE TOTAL,THE COLLEGIATE ACADEMY TRUST,1041110619,25166.00,Grants to educational establishments or not for profit organisations including other businesses
Department for Education,DEPARTMENT FOR EDUCATION,05/02/2020,Grants expenditure,SYSTEM CAPACITY LEADERSHIP AND GOVERNANCE TOTAL,THE GALLERY TRUST,1041110625,31833.00,Grants to educational establishments or not for profit organisations including other businesses
Department for Education,DEPARTMENT FOR EDUCATION,05/02/2020,Grants expenditure,SYSTEM CAPACITY LEADERSHIP AND GOVERNANCE TOTAL,ASPIRATIONS ACADEMIES TRUST,1041110630,25166.00,Grants to educational establishments or not for profit organisations including other businesses
Department for Education,DEPARTMENT FOR EDUCATION,05/02/2020,Grants expenditure,SYSTEM CAPACITY LEADERSHIP AND GOVERNANCE TOTAL,BELGRAVE ST BARTHOLOMEWS ACADEMY TS ACCOUNT,1041110632,26666.00,Grants to educational establishments or not for profit organisations including other businesses
Department for Education,DEPARTMENT FOR EDUCATION,05/02/2020,Grants expenditure,SYSTEM CAPACITY LEADERSHIP AND GOVERNANCE TOTAL,KELSALL PRIMARY SCHOOL TS ACCOUNT,1041110642,26666.00,Grants to educational establishments or not for profit organisations including other businesses
Department for Education,DEPARTMENT FOR EDUCATION,05/02/2020,Grants expenditure,SYSTEM CAPACITY LEADERSHIP AND GOVERNANCE TOTAL,ST PETERS CATHOLIC SCHOOL,1041110655,26666.00,Grants to educational establishments or not for profit organisations including other businesses
Department for Education,DEPARTMENT FOR EDUCATION,05/02/2020,Grants expenditure,SYSTEM CAPACITY LEADERSHIP AND GOVERNANCE TOTAL,DIAMOND LEARNING PARTNERSHIP TRUST,1041110656,25166.00,Grants to educational establishments or not for profit organisations including other businesses
Department for Education,DEPARTMENT FOR EDUCATION,05/02/2020,Grants expenditure,SYSTEM CAPACITY LEADERSHIP AND GOVERNANCE TOTAL,THE POLESWORTH SCHOOL,1041110657,26284.00,Grants to educational establishments or not for profit organisations including other businesses
Department for Education,DEPARTMENT FOR EDUCATION,05/02/2020,Grants expenditure,SYSTEM CAPACITY LEADERSHIP AND GOVERNANCE TOTAL,ST BONAVENTURES CATHOLIC SCHOOL,1041110665,26666.00,Grants to educational establishments or not for profit organisations including other businesses
Department for Education,DEPARTMENT FOR EDUCATION,05/02/2020,Grants expenditure,SYSTEM CAPACITY LEADERSHIP AND GOVERNANCE TOTAL,ST MARY'S CATHOLIC SCHOOL,1041110667,25166.00,Grants to educational establishments or not for profit organisations including other businesses
Department for Education,DEPARTMENT FOR EDUCATION,05/02/2020,Grants expenditure,SYSTEM CAPACITY LEADERSHIP AND GOVERNANCE TOTAL,BEDENWELL INFANT & NURSERY SCHOOL,1041110668,26666.00,Grants to educational establishments or not for profit organisations including other businesses
Department for Education,DEPARTMENT FOR EDUCATION,05/02/2020,Grants expenditure,SYSTEM CAPACITY LEADERSHIP AND GOVERNANCE TOTAL,ST AIDANS CHURCH OF ENGLAND HIGH SCHOOL,1041110681,26666.00,Grants to educational establishments or not for profit organisations including other businesses
Department for Education,DEPARTMENT FOR EDUCATION,05/02/2020,Grants expenditure,SYSTEM CAPACITY LEADERSHIP AND GOVERNANCE TOTAL,ST CLEMENT DANES SCHOOL,1041110682,25166.00,Grants to educational establishments or not for profit organisations including other businesses
Department for Education,DEPARTMENT FOR EDUCATION,05/02/2020,Grants expenditure,SYSTEM CAPACITY LEADERSHIP AND GOVERNANCE TOTAL,STUDLEY HIGH SCHOOL,1041110685,25239.00,Grants to educational establishments or not for profit organisations including other businesses
Department for Education,DEPARTMENT FOR EDUCATION,05/02/2020,Grants expenditure,SYSTEM CAPACITY LEADERSHIP AND GOVERNANCE TOTAL,PATES GRAMMAR SCHOOL,1041110698,26666.00,Grants to educational establishments or not for profit organisations including other businesses
Department for Education,DEPARTMENT FOR EDUCATION,05/02/2020,Grants expenditure,SYSTEM CAPACITY LEADERSHIP AND GOVERNANCE TOTAL,EXCEED ACADEMIES TRUST,1041110708,25166.00,Grants to educational establishments or not for profit organisations including other businesses
Department for Education,DEPARTMENT FOR EDUCATION,05/02/2020,Grants expenditure,SYSTEM CAPACITY LEADERSHIP AND GOVERNANCE TOTAL,ST PHILIP HOWARD CATHOLIC HIGH SCHOOL,1041110736,25166.00,Grants to educational establishments or not for profit organisations including other businesses
Department for Education,DEPARTMENT FOR EDUCATION,05/02/2020,Grants expenditure,SYSTEM CAPACITY LEADERSHIP AND GOVERNANCE TOTAL,WELLSWAY MULTI ACADEMY TRUST,1041110738,27333.00,Grants to educational establishments or not for profit organisations including other businesses
Department for Education,DEPARTMENT FOR EDUCATION,05/02/2020,Grants expenditure,SYSTEM CAPACITY LEADERSHIP AND GOVERNANCE TOTAL,ENDEAVOUR LEARNING TRUST,1041110739,25166.00,Grants to educational establishments or not for profit organisations including other businesses
Department for Education,DEPARTMENT FOR EDUCATION,05/02/2020,Grants expenditure,SYSTEM CAPACITY LEADERSHIP AND GOVERNANCE TOTAL,HINDERTON SCHOOL,1041110741,28819.00,Grants to educational establishments or not for profit organisations including other businesses
Department for Education,DEPARTMENT FOR EDUCATION,05/02/2020,Grants expenditure,SYSTEM CAPACITY LEADERSHIP AND GOVERNANCE TOTAL,ASPIRE SCHOOLS,1041110745,26373.00,Grants to educational establishments or not for profit organisations including other businesses
Department for Education,DEPARTMENT FOR EDUCATION,05/02/2020,Grants expenditure,SYSTEM CAPACITY LEADERSHIP AND GOVERNANCE TOTAL,SACRED HEART RC PRIMARY SCHOOL,1041110748,26666.00,Grants to educational establishments or not for profit organisations including other businesses
Department for Education,DEPARTMENT FOR EDUCATION,05/02/2020,Grants expenditure,SYSTEM CAPACITY LEADERSHIP AND GOVERNANCE TOTAL,HOPE LEARNING TRUST,1041110762,25166.00,Grants to educational establishments or not for profit organisations including other businesses
Department for Education,DEPARTMENT FOR EDUCATION,05/02/2020,Grants expenditure,SYSTEM CAPACITY LEADERSHIP AND GOVERNANCE TOTAL,NEW COLLEGE PONTEFRACT,1041110771,26666.00,Grants to educational establishments or not for profit organisations including other businesses
Department for Education,DEPARTMENT FOR EDUCATION,05/02/2020,Grants expenditure,SYSTEM CAPACITY LEADERSHIP AND GOVERNANCE TOTAL,INVICTA GRAMMAR SCHOOL,1041110772,26666.00,Grants to educational establishments or not for profit organisations including other businesses
Department for Education,DEPARTMENT FOR EDUCATION,20/02/2020,Grants expenditure,SYSTEM CAPACITY LEADERSHIP AND GOVERNANCE TOTAL,PRESTOLEE PRIMARY SCHOOL,1041113149,26666.00,Grants to educational establishments or not for profit organisations including other businesses
Department for Education,DEPARTMENT FOR EDUCATION,20/02/2020,Grants expenditure,SYSTEM CAPACITY LEADERSHIP AND GOVERNANCE TOTAL,SELE FIRST SCHOOL TS ACCOUNT,1041113168,26666.00,Grants to educational establishments or not for profit organisations including other businesses
Department for Education,DEPARTMENT FOR EDUCATION,20/02/2020,Grants expenditure,SYSTEM CAPACITY LEADERSHIP AND GOVERNANCE TOTAL,FAIRFIELD HIGH SCHOOL,1041113199,26666.00,Grants to educational establishments or not for profit organisations including other businesses
Department for Education,DEPARTMENT FOR EDUCATION,20/02/2020,Grants expenditure,SYSTEM CAPACITY LEADERSHIP AND GOVERNANCE TOTAL,THE FUTURES TRUST,1041113211,26666.00,Grants to educational establishments or not for profit organisations including other businesses
Department for Education,DEPARTMENT FOR EDUCATION,20/02/2020,Grants expenditure,SYSTEM CAPACITY LEADERSHIP AND GOVERNANCE TOTAL,JAMES MONTGOMERY ACADEMY TRUST,1041113231,26666.00,Grants to educational establishments or not for profit organisations including other businesses
Department for Education,DEPARTMENT FOR EDUCATION,20/02/2020,Grants expenditure,SYSTEM CAPACITY LEADERSHIP AND GOVERNANCE TOTAL,SIR JONATHAN NORTH COMMUNITY COLLEGE,1041113235,25416.00,Grants to educational establishments or not for profit organisations including other businesses
Department for Education,DEPARTMENT FOR EDUCATION,20/02/2020,Grants expenditure,SYSTEM CAPACITY LEADERSHIP AND GOVERNANCE TOTAL,ST. MARY & ST. THOMAS AQUINAS CATHOLIC PRIMARY SCHOOL,1041113241,26666.00,Grants to educational establishments or not for profit organisations including other businesses
Department for Education,DEPARTMENT FOR EDUCATION,20/02/2020,Grants expenditure,SYSTEM CAPACITY LEADERSHIP AND GOVERNANCE TOTAL,ST JOHN THE BAPTIST SCHOOL,1041113242,26666.00,Grants to educational establishments or not for profit organisations including other businesses
Department for Education,DEPARTMENT FOR EDUCATION,20/02/2020,Grants expenditure,SYSTEM CAPACITY LEADERSHIP AND GOVERNANCE TOTAL,LIGHTHOUSE SCHOOLS PARTNERSHIP,1041113251,25666.00,Grants to educational establishments or not for profit organisations including other businesses
Department for Education,DEPARTMENT FOR EDUCATION,20/02/2020,Grants expenditure,SYSTEM CAPACITY LEADERSHIP AND GOVERNANCE TOTAL,BARNOLDSWICK CHURCH OF ENGLAND PRIMARY SCHOOL,1041113268,27729.00,Grants to educational establishments or not for profit organisations including other businesses
Department for Education,DEPARTMENT FOR EDUCATION,20/02/2020,Grants expenditure,SYSTEM CAPACITY LEADERSHIP AND GOVERNANCE TOTAL,THE DELTA EDUCATION TRUST,1041113276,26666.00,Grants to educational establishments or not for profit organisations including other businesses
Department for Education,DEPARTMENT FOR EDUCATION,20/02/2020,Grants expenditure,SYSTEM CAPACITY LEADERSHIP AND GOVERNANCE TOTAL,CHEPPING VIEW PRIMARY SCHOOL,1041113283,26666.00,Grants to educational establishments or not for profit organisations including other businesses
Department for Education,DEPARTMENT FOR EDUCATION,20/02/2020,Grants expenditure,SYSTEM CAPACITY LEADERSHIP AND GOVERNANCE TOTAL,HOLLINGWORTH BUSINESS & ENTERPRISE COLLEGE,1041113284,26666.00,Grants to educational establishments or not for profit organisations including other businesses
Department for Education,DEPARTMENT FOR EDUCATION,20/02/2020,Grants expenditure,SYSTEM CAPACITY LEADERSHIP AND GOVERNANCE TOTAL,SEFTON COUNCIL,1041113322,26666.00,Grants to educational establishments or not for profit organisations including other businesses
Department for Education,DEPARTMENT FOR EDUCATION,20/02/2020,Grants expenditure,SYSTEM CAPACITY LEADERSHIP AND GOVERNANCE TOTAL,ST JOSEPHS CATHOLIC PRIMARY SCHOOL,1041113332,26666.00,Grants to educational establishments or not for profit organisations including other businesses
Department for Education,DEPARTMENT FOR EDUCATION,20/02/2020,Grants expenditure,SYSTEM CAPACITY LEADERSHIP AND GOVERNANCE TOTAL,BROADMEADOW SPECIAL SCHOOL,1041113377,26666.00,Grants to educational establishments or not for profit organisations including other businesses
Department for Education,DEPARTMENT FOR EDUCATION,20/02/2020,Grants expenditure,SYSTEM CAPACITY LEADERSHIP AND GOVERNANCE TOTAL,THE BRIDGE SCHOOL BCAP ACC,1041113398,26666.00,Grants to educational establishments or not for profit organisations including other businesses
Department for Education,DEPARTMENT FOR EDUCATION,20/02/2020,Grants expenditure,SYSTEM CAPACITY LEADERSHIP AND GOVERNANCE TOTAL,EVELYN STREET PRIMARY SCHOOL BCAP,1041113400,26666.00,Grants to educational establishments or not for profit organisations including other businesses
Department for Education,DEPARTMENT FOR EDUCATION,07/02/2020,Learning & Development,SEND AND DISADVANTAGE GROUP,THE ANNA FREUD CENTRE,1041111016,154085.13,Training & Development costs
Department for Education,DEPARTMENT FOR EDUCATION,18/02/2020,IS/IT,ASSESSMENT AND CURRICULUM AND GENERAL QUALIFICATIONS,ENGINE PARTNERS UK LLP TRANSFORM,1041112640,32781.67,IS/IT Services - Systems Development
Department for Education,DEPARTMENT FOR EDUCATION,06/02/2020,Other Goods & Services,ASSESSMENT AND CURRICULUM AND GENERAL QUALIFICATIONS,UNIVERSITY OF YORK,1041110834,46330.00,"Fees / expenses of professionals such as auditors, accountants, lawyers, etc. engaged to provide advice or opinion on how to affect something"
Department for Education,DEPARTMENT FOR EDUCATION,06/02/2020,Other Goods & Services,ASSESSMENT AND CURRICULUM AND GENERAL QUALIFICATIONS,UNIVERSITY OF YORK,1041110834,49773.00,"Fees / expenses of professionals such as auditors, accountants, lawyers, etc. engaged to provide advice or opinion on how to affect something"
Department for Education,DEPARTMENT FOR EDUCATION,06/02/2020,Other Goods & Services,ASSESSMENT AND CURRICULUM AND GENERAL QUALIFICATIONS,UNIVERSITY OF YORK,1041110834,126000.00,"Fees / expenses of professionals such as auditors, accountants, lawyers, etc. engaged to provide advice or opinion on how to affect something"
Department for Education,DEPARTMENT FOR EDUCATION,06/02/2020,Other Goods & Services,ASSESSMENT AND CURRICULUM AND GENERAL QUALIFICATIONS,TININT TINOPOLIS INTERACTIVE LTD,1041110850,43160.00,Research and Development
Department for Education,DEPARTMENT FOR EDUCATION,12/02/2020,Other Goods & Services,ASSESSMENT AND CURRICULUM AND GENERAL QUALIFICATIONS,UNIVERSITY OF YORK,1041111460,49379.00,"Fees / expenses of professionals such as auditors, accountants, lawyers, etc. engaged to provide advice or opinion on how to affect something"
Department for Education,DEPARTMENT FOR EDUCATION,12/02/2020,Professional Services Consultancy and Contingent Labour,SCHOOL QUALITY AND SAFEGUARDING TOTAL,MINISTRY OF DEFENCE,1041111500,30912.99,Costs related to temporary workers
Department for Education,DEPARTMENT FOR EDUCATION,03/02/2020,Learning & Development,SCHOOL QUALITY AND SAFEGUARDING TOTAL,NATIONAL GOVERNORS ASSOCIATION,1041110170,29750.00,Training & Development costs
Department for Education,DEPARTMENT FOR EDUCATION,13/02/2020,Learning & Development,SCHOOL QUALITY AND SAFEGUARDING TOTAL,NATIONAL GOVERNORS ASSOCIATION,1041112105,40000.00,Training & Development costs
Department for Education,DEPARTMENT FOR EDUCATION,20/02/2020,Contractors,SCHOOL QUALITY AND SAFEGUARDING TOTAL,EDUCATION & EMPLOYERS TASKFORCE,1041113209,65972.50,Funding to deliver policies (excluding consultancy) paid to third parties via a service delivery contract
Department for Education,DEPARTMENT FOR EDUCATION,20/02/2020,Contractors,SCHOOL QUALITY AND SAFEGUARDING TOTAL,EDUCATION & EMPLOYERS TASKFORCE,1041113209,13194.50,Funding to deliver policies (excluding consultancy) paid to third parties via a service delivery contract
Department for Education,DEPARTMENT FOR EDUCATION,25/02/2020,Learning & Development,SCHOOL QUALITY AND SAFEGUARDING TOTAL,CONFEDERATION OF SCHOOL TRUSTS,1041113735,64500.00,Training & Development costs
Department for Education,DEPARTMENT FOR EDUCATION,13/02/2020,Grants expenditure,SCHOOL QUALITY AND SAFEGUARDING TOTAL,LANCASHIRE COUNTY COUNCIL,1041111876,75692.00,Grants to local authorities / other establishments within aggregate external funding or aggregate exchequer grant
Department for Education,DEPARTMENT FOR EDUCATION,13/02/2020,Grants expenditure,SCHOOL QUALITY AND SAFEGUARDING TOTAL,KENT COUNTY COUNCIL,1041111878,135675.00,Grants to local authorities / other establishments within aggregate external funding or aggregate exchequer grant
Department for Education,DEPARTMENT FOR EDUCATION,13/02/2020,Grants expenditure,SCHOOL QUALITY AND SAFEGUARDING TOTAL,WORCESTERSHIRE COUNTY COUNCIL,1041111879,30650.00,Grants to local authorities / other establishments within aggregate external funding or aggregate exchequer grant
Department for Education,DEPARTMENT FOR EDUCATION,13/02/2020,Grants expenditure,SCHOOL QUALITY AND SAFEGUARDING TOTAL,HAMPSHIRE COUNTY COUNCIL,1041111886,43267.00,Grants to local authorities / other establishments within aggregate external funding or aggregate exchequer grant
Department for Education,DEPARTMENT FOR EDUCATION,13/02/2020,Grants expenditure,SCHOOL QUALITY AND SAFEGUARDING TOTAL,DURHAM COUNTY COUNCIL,1041111887,96058.00,Grants to local authorities / other establishments within aggregate external funding or aggregate exchequer grant
Department for Education,DEPARTMENT FOR EDUCATION,13/02/2020,Grants expenditure,SCHOOL QUALITY AND SAFEGUARDING TOTAL,DORSET COUNTY COUNCIL,1041111888,52567.00,Grants to local authorities / other establishments within aggregate external funding or aggregate exchequer grant
Department for Education,DEPARTMENT FOR EDUCATION,13/02/2020,Grants expenditure,SCHOOL QUALITY AND SAFEGUARDING TOTAL,DEVON COUNTY COUNCIL,1041111892,42608.00,Grants to local authorities / other establishments within aggregate external funding or aggregate exchequer grant
Department for Education,DEPARTMENT FOR EDUCATION,13/02/2020,Grants expenditure,SCHOOL QUALITY AND SAFEGUARDING TOTAL,NORTHAMPTONSHIRE COUNTY COUNCIL,1041111991,28992.00,Grants to local authorities / other establishments within aggregate external funding or aggregate exchequer grant
Department for Education,DEPARTMENT FOR EDUCATION,13/02/2020,Grants expenditure,SCHOOL QUALITY AND SAFEGUARDING TOTAL,WEST SUSSEX COUNTY COUNCIL,1041111995,34750.00,Grants to local authorities / other establishments within aggregate external funding or aggregate exchequer grant
Department for Education,DEPARTMENT FOR EDUCATION,13/02/2020,Grants expenditure,SCHOOL QUALITY AND SAFEGUARDING TOTAL,EAST SUSSEX COUNTY COUNCIL,1041112006,55442.00,Grants to local authorities / other establishments within aggregate external funding or aggregate exchequer grant
Department for Education,DEPARTMENT FOR EDUCATION,13/02/2020,Grants expenditure,SCHOOL QUALITY AND SAFEGUARDING TOTAL,ESSEX COUNTY COUNCIL,1041112020,64742.00,Grants to local authorities / other establishments within aggregate external funding or aggregate exchequer grant
Department for Education,DEPARTMENT FOR EDUCATION,13/02/2020,Grants expenditure,SCHOOL QUALITY AND SAFEGUARDING TOTAL,WILTSHIRE COUNCIL,1041112023,28658.00,Grants to local authorities / other establishments within aggregate external funding or aggregate exchequer grant
Department for Education,DEPARTMENT FOR EDUCATION,13/02/2020,Grants expenditure,SCHOOL QUALITY AND SAFEGUARDING TOTAL,STAFFORDSHIRE COUNCIL,1041112024,28217.00,Grants to local authorities / other establishments within aggregate external funding or aggregate exchequer grant
Department for Education,DEPARTMENT FOR EDUCATION,13/02/2020,Grants expenditure,SCHOOL QUALITY AND SAFEGUARDING TOTAL,LEICESTERSHIRE COUNTY COUNCIL,1041112099,41717.00,Grants to local authorities / other establishments within aggregate external funding or aggregate exchequer grant
Department for Education,DEPARTMENT FOR EDUCATION,13/02/2020,Grants expenditure,SCHOOL QUALITY AND SAFEGUARDING TOTAL,CAMBRIDGESHIRE COUNTY COUNCIL,1041112108,43717.00,Grants to local authorities / other establishments within aggregate external funding or aggregate exchequer grant
Department for Education,DEPARTMENT FOR EDUCATION,13/02/2020,Grants expenditure,SCHOOL QUALITY AND SAFEGUARDING TOTAL,NORTH YORKSHIRE COUNTY COUNCIL,1041112123,36408.00,Grants to local authorities / other establishments within aggregate external funding or aggregate exchequer grant
Department for Education,DEPARTMENT FOR EDUCATION,13/02/2020,Grants expenditure,SCHOOL QUALITY AND SAFEGUARDING TOTAL,DERBYSHIRE COUNTY COUNCIL,1041112132,76133.00,Grants to local authorities / other establishments within aggregate external funding or aggregate exchequer grant
Department for Education,DEPARTMENT FOR EDUCATION,13/02/2020,Grants expenditure,SCHOOL QUALITY AND SAFEGUARDING TOTAL,NOTTINGHAMSHIRE COUNTY COUNCIL,1041112141,44483.00,Grants to local authorities / other establishments within aggregate external funding or aggregate exchequer grant
Department for Education,DEPARTMENT FOR EDUCATION,13/02/2020,Grants expenditure,SCHOOL QUALITY AND SAFEGUARDING TOTAL,CORNWALL COUNCIL,1041112159,53675.00,Grants to local authorities / other establishments within aggregate external funding or aggregate exchequer grant
Department for Education,DEPARTMENT FOR EDUCATION,13/02/2020,Grants expenditure,SCHOOL QUALITY AND SAFEGUARDING TOTAL,CUMBRIA COUNTY COUNCIL,1041112168,26450.00,Grants to local authorities / other establishments within aggregate external funding or aggregate exchequer grant
Department for Education,DEPARTMENT FOR EDUCATION,13/02/2020,Grants expenditure,SCHOOL QUALITY AND SAFEGUARDING TOTAL,NORFOLK COUNTY COUNCIL,1041112169,72042.00,Grants to local authorities / other establishments within aggregate external funding or aggregate exchequer grant
Department for Education,DEPARTMENT FOR EDUCATION,13/02/2020,Grants expenditure,SCHOOL QUALITY AND SAFEGUARDING TOTAL,OXFORDSHIRE COUNTY COUNCIL,1041112171,28442.00,Grants to local authorities / other establishments within aggregate external funding or aggregate exchequer grant
Department for Education,DEPARTMENT FOR EDUCATION,13/02/2020,Grants expenditure,SCHOOL QUALITY AND SAFEGUARDING TOTAL,SOMERSET COUNTY COUNCIL,1041112172,50908.00,Grants to local authorities / other establishments within aggregate external funding or aggregate exchequer grant
Department for Education,DEPARTMENT FOR EDUCATION,13/02/2020,Grants expenditure,SCHOOL QUALITY AND SAFEGUARDING TOTAL,SUFFOLK COUNTY COUNCIL,1041112174,49467.00,Grants to local authorities / other establishments within aggregate external funding or aggregate exchequer grant
Department for Education,DEPARTMENT FOR EDUCATION,13/02/2020,Grants expenditure,SCHOOL QUALITY AND SAFEGUARDING TOTAL,GLOUCESTERSHIRE COUNTY COUNCIL,1041112176,41942.00,Grants to local authorities / other establishments within aggregate external funding or aggregate exchequer grant
Department for Education,DEPARTMENT FOR EDUCATION,13/02/2020,Grants expenditure,SCHOOL QUALITY AND SAFEGUARDING TOTAL,LINCOLNSHIRE COUNTY COUNCIL,1041112179,63192.00,Grants to local authorities / other establishments within aggregate external funding or aggregate exchequer grant
Department for Education,DEPARTMENT FOR EDUCATION,20/02/2020,Other Goods & Services,School Systems Group,CABINET OFFICE CIVIL SUPERANNUATION,30000744,39659.00,"Fees / expenses of professionals such as auditors, accountants, lawyers, etc. engaged to provide advice or opinion on how to affect something"
Department for Education,DEPARTMENT FOR EDUCATION,10/02/2020,Grants expenditure,ACADEMIES DELIVERY DIRECTORATE,ANGLIAN LEARNING,1041111191,25000.00,Grants to educational establishments or not for profit organisations including other businesses
Department for Education,DEPARTMENT FOR EDUCATION,24/02/2020,Grants expenditure,ACADEMIES DELIVERY DIRECTORATE,LONDON ACADEMY,1041113573,81334.00,Grants to educational establishments or not for profit organisations including other businesses
Department for Education,DEPARTMENT FOR EDUCATION,10/02/2020,Grants expenditure,ACADEMIES DELIVERY DIRECTORATE,EDEN LEARNING TRUST,1041111180,80000.00,Capital grants paid to a private sector organisation
Department for Education,DEPARTMENT FOR EDUCATION,12/02/2020,Grants expenditure,ACADEMIES DELIVERY DIRECTORATE,DALES ACADEMIES TRUST,1041111431,40000.00,Capital grants paid to a private sector organisation
Department for Education,DEPARTMENT FOR EDUCATION,24/02/2020,Grants expenditure,ACADEMIES DELIVERY DIRECTORATE,MAIDEN ERLEGH TRUST,1041113571,40000.00,Capital grants paid to a private sector organisation
Department for Education,DEPARTMENT FOR EDUCATION,25/02/2020,Grants expenditure,ACADEMIES DELIVERY DIRECTORATE,WIMBORNE ACADEMY TRUST,1041113761,40000.00,Capital grants paid to a private sector organisation
Department for Education,DEPARTMENT FOR EDUCATION,25/02/2020,Grants expenditure,ACADEMIES DELIVERY DIRECTORATE,GREAT LEARNERS TRUST,1041113764,40000.00,Capital grants paid to a private sector organisation
Department for Education,DEPARTMENT FOR EDUCATION,12/02/2020,Consultancy,ACADEMIES DELIVERY DIRECTORATE,SOMERSET COUNTY COUNCIL,1041111461,50368.00,"Advisory services including fees, travel and expenses"
Department for Education,DEPARTMENT FOR EDUCATION,03/02/2020,Grants expenditure,FREE SCHOOL DIRECTORATE,PIPER HILL HIGH SCHOOL,1041110064,60000.00,Grants to educational establishments or not for profit organisations including other businesses
Department for Education,DEPARTMENT FOR EDUCATION,03/02/2020,Grants expenditure,FREE SCHOOL DIRECTORATE,BOHUNT EDUCATION TRUST,1041110065,190000.00,Grants to educational establishments or not for profit organisations including other businesses
Department for Education,DEPARTMENT FOR EDUCATION,03/02/2020,Grants expenditure,FREE SCHOOL DIRECTORATE,CATCH22 MULTI ACADEMIES TRUST LTD,1041110067,60000.00,Grants to educational establishments or not for profit organisations including other businesses
Department for Education,DEPARTMENT FOR EDUCATION,03/02/2020,Grants expenditure,FREE SCHOOL DIRECTORATE,THE CHELMSFORD LEARNING PARTNERSHIP,1041110075,25000.00,Grants to educational establishments or not for profit organisations including other businesses
Department for Education,DEPARTMENT FOR EDUCATION,03/02/2020,Grants expenditure,FREE SCHOOL DIRECTORATE,MAIDEN ERLEGH TRUST,1041110078,30000.00,Grants to educational establishments or not for profit organisations including other businesses
Department for Education,DEPARTMENT FOR EDUCATION,03/02/2020,Grants expenditure,FREE SCHOOL DIRECTORATE,ST CLERES COOPERATIVE ACADEMY TRUST,1041110081,140000.00,Grants to educational establishments or not for profit organisations including other businesses
Department for Education,DEPARTMENT FOR EDUCATION,03/02/2020,Grants expenditure,FREE SCHOOL DIRECTORATE,HARRIS FEDERATION,1041110082,50000.00,Grants to educational establishments or not for profit organisations including other businesses
Department for Education,DEPARTMENT FOR EDUCATION,03/02/2020,Grants expenditure,FREE SCHOOL DIRECTORATE,HARRIS FEDERATION,1041110082,50000.00,Grants to educational establishments or not for profit organisations including other businesses
Department for Education,DEPARTMENT FOR EDUCATION,03/02/2020,Grants expenditure,FREE SCHOOL DIRECTORATE,WEMBLEY HIGH TECHNOLOGY COLLEGE,1041110114,110000.00,Grants to educational establishments or not for profit organisations including other businesses
Department for Education,DEPARTMENT FOR EDUCATION,03/02/2020,Grants expenditure,FREE SCHOOL DIRECTORATE,PROSPER LEARNING TRUST,1041110144,50000.00,Grants to educational establishments or not for profit organisations including other businesses
Department for Education,DEPARTMENT FOR EDUCATION,03/02/2020,Grants expenditure,FREE SCHOOL DIRECTORATE,THE CASTLE SCHOOL,1041110148,50000.00,Grants to educational establishments or not for profit organisations including other businesses
Department for Education,DEPARTMENT FOR EDUCATION,03/02/2020,Grants expenditure,FREE SCHOOL DIRECTORATE,ARK SCHOOLS,1041110151,71250.00,Grants to educational establishments or not for profit organisations including other businesses
Department for Education,DEPARTMENT FOR EDUCATION,03/02/2020,Grants expenditure,FREE SCHOOL DIRECTORATE,ARK SCHOOLS,1041110151,60000.00,Grants to educational establishments or not for profit organisations including other businesses
Department for Education,DEPARTMENT FOR EDUCATION,03/02/2020,Grants expenditure,FREE SCHOOL DIRECTORATE,NORTHAMPTON SCHOOL FOR BOYS,1041110168,30000.00,Grants to educational establishments or not for profit organisations including other businesses
Department for Education,DEPARTMENT FOR EDUCATION,03/02/2020,Grants expenditure,FREE SCHOOL DIRECTORATE,SOUTH WEST ESSEX COMMUNITY EDUCATION TRUST,1041110181,150000.00,Grants to educational establishments or not for profit organisations including other businesses
Department for Education,DEPARTMENT FOR EDUCATION,03/02/2020,Grants expenditure,FREE SCHOOL DIRECTORATE,NEXUS MULTI ACADEMY TRUST,1041110198,70000.00,Grants to educational establishments or not for profit organisations including other businesses
Department for Education,DEPARTMENT FOR EDUCATION,03/02/2020,Grants expenditure,FREE SCHOOL DIRECTORATE,NEXUS MULTI ACADEMY TRUST,1041110198,30000.00,Grants to educational establishments or not for profit organisations including other businesses
Department for Education,DEPARTMENT FOR EDUCATION,03/02/2020,Grants expenditure,FREE SCHOOL DIRECTORATE,LEARNING WITHOUT LIMITS ACADEMY TRUST,1041110207,33750.00,Grants to educational establishments or not for profit organisations including other businesses
Department for Education,DEPARTMENT FOR EDUCATION,03/02/2020,Grants expenditure,FREE SCHOOL DIRECTORATE,HUJJAT SCHOOL TRUST,1041110208,80000.00,Grants to educational establishments or not for profit organisations including other businesses
Department for Education,DEPARTMENT FOR EDUCATION,03/02/2020,Grants expenditure,FREE SCHOOL DIRECTORATE,AXIS ACADEMY,1041110214,70000.00,Grants to educational establishments or not for profit organisations including other businesses
Department for Education,DEPARTMENT FOR EDUCATION,03/02/2020,Grants expenditure,FREE SCHOOL DIRECTORATE,UNITY SCHOOLS PARTNERSHIP,1041110232,65000.00,Grants to educational establishments or not for profit organisations including other businesses
Department for Education,DEPARTMENT FOR EDUCATION,03/02/2020,Grants expenditure,FREE SCHOOL DIRECTORATE,PRIMARY FIRST TRUST,1041110236,110000.00,Grants to educational establishments or not for profit organisations including other businesses
Department for Education,DEPARTMENT FOR EDUCATION,03/02/2020,Grants expenditure,FREE SCHOOL DIRECTORATE,LEARN@MAT,1041110245,50000.00,Grants to educational establishments or not for profit organisations including other businesses
Department for Education,DEPARTMENT FOR EDUCATION,03/02/2020,Grants expenditure,FREE SCHOOL DIRECTORATE,DERBY DIOCESAN ACADEMY TRUST,1041110251,30000.00,Grants to educational establishments or not for profit organisations including other businesses
Department for Education,DEPARTMENT FOR EDUCATION,25/02/2020,Grants expenditure,FREE SCHOOL DIRECTORATE,GLOUCESTERSHIRE LEARNING ALLIANCE,1041113713,25000.00,Grants to educational establishments or not for profit organisations including other businesses
Department for Education,DEPARTMENT FOR EDUCATION,25/02/2020,Grants expenditure,FREE SCHOOL DIRECTORATE,THE LEIGH ACADEMIES TRUST,1041113714,37000.00,Grants to educational establishments or not for profit organisations including other businesses
Department for Education,DEPARTMENT FOR EDUCATION,25/02/2020,Grants expenditure,FREE SCHOOL DIRECTORATE,THE LEIGH ACADEMIES TRUST,1041113714,65000.00,Grants to educational establishments or not for profit organisations including other businesses
Department for Education,DEPARTMENT FOR EDUCATION,25/02/2020,Grants expenditure,FREE SCHOOL DIRECTORATE,ST CLERES COOPERATIVE ACADEMY TRUST,1041113722,65000.00,Grants to educational establishments or not for profit organisations including other businesses
Department for Education,DEPARTMENT FOR EDUCATION,25/02/2020,Grants expenditure,FREE SCHOOL DIRECTORATE,GEORGE SPENCER ACADEMY TS ACCOUNT,1041113723,25000.00,Grants to educational establishments or not for profit organisations including other businesses
Department for Education,DEPARTMENT FOR EDUCATION,25/02/2020,Grants expenditure,FREE SCHOOL DIRECTORATE,WEMBLEY HIGH TECHNOLOGY COLLEGE,1041113733,80000.00,Grants to educational establishments or not for profit organisations including other businesses
Department for Education,DEPARTMENT FOR EDUCATION,25/02/2020,Grants expenditure,FREE SCHOOL DIRECTORATE,MIDSOMER NORTON SCHOOLS PARTNERSHIP NORTON HILL,1041113734,65676.00,Grants to educational establishments or not for profit organisations including other businesses
Department for Education,DEPARTMENT FOR EDUCATION,25/02/2020,Grants expenditure,FREE SCHOOL DIRECTORATE,CORINIUM EDUCATION TRUST,1041113737,25000.00,Grants to educational establishments or not for profit organisations including other businesses
Department for Education,DEPARTMENT FOR EDUCATION,25/02/2020,Grants expenditure,FREE SCHOOL DIRECTORATE,FIERT� MULTI-ACADEMY TRUST,1041113738,25000.00,Grants to educational establishments or not for profit organisations including other businesses
Department for Education,DEPARTMENT FOR EDUCATION,25/02/2020,Grants expenditure,FREE SCHOOL DIRECTORATE,UNIVERSITY OF WINCHESTER,1041113746,25000.00,Grants to educational establishments or not for profit organisations including other businesses
Department for Education,DEPARTMENT FOR EDUCATION,25/02/2020,Grants expenditure,FREE SCHOOL DIRECTORATE,UNIVERSITY OF WINCHESTER,1041113746,25000.00,Grants to educational establishments or not for profit organisations including other businesses
Department for Education,DEPARTMENT FOR EDUCATION,25/02/2020,Grants expenditure,FREE SCHOOL DIRECTORATE,THE INSPIRING CHANGE MAT THE BEECHES,1041113758,30000.00,Grants to educational establishments or not for profit organisations including other businesses
Department for Education,DEPARTMENT FOR EDUCATION,25/02/2020,Grants expenditure,FREE SCHOOL DIRECTORATE,WEST MIDLANDS CONSTRUCTION UTC,1041113795,106667.00,Grants to educational establishments or not for profit organisations including other businesses
Department for Education,DEPARTMENT FOR EDUCATION,25/02/2020,Grants expenditure,FREE SCHOOL DIRECTORATE,DOROTHY GOODMAN SCHOOL,1041113796,25000.00,Grants to educational establishments or not for profit organisations including other businesses
Department for Education,DEPARTMENT FOR EDUCATION,25/02/2020,Grants expenditure,FREE SCHOOL DIRECTORATE,UTTOXETER LEARNING TRUST,1041113848,25000.00,Grants to educational establishments or not for profit organisations including other businesses
Department for Education,DEPARTMENT FOR EDUCATION,25/02/2020,Grants expenditure,FREE SCHOOL DIRECTORATE,KINGFISHER LEARNING TRUST,1041113852,60000.00,Grants to educational establishments or not for profit organisations including other businesses
Department for Education,DEPARTMENT FOR EDUCATION,25/02/2020,Grants expenditure,FREE SCHOOL DIRECTORATE,DONCASTER UTC LTD,1041113854,48600.00,Grants to educational establishments or not for profit organisations including other businesses
Department for Education,DEPARTMENT FOR EDUCATION,25/02/2020,Grants expenditure,FREE SCHOOL DIRECTORATE,GROVE PARK ACADEMIES,1041113862,47500.00,Grants to educational establishments or not for profit organisations including other businesses
Department for Education,DEPARTMENT FOR EDUCATION,25/02/2020,Grants expenditure,FREE SCHOOL DIRECTORATE,ROCHDALE SIXTH FORM COLLEGE,1041113863,30000.00,Grants to educational establishments or not for profit organisations including other businesses
Department for Education,DEPARTMENT FOR EDUCATION,25/02/2020,Grants expenditure,FREE SCHOOL DIRECTORATE,THE SABDEN MULTI ACADEMY TRUST,1041113872,65000.00,Grants to educational establishments or not for profit organisations including other businesses
Department for Education,DEPARTMENT FOR EDUCATION,11/02/2020,Grants expenditure,ACADEMIES AND REGIONAL DELIVERY TOTAL,ST JOHN BOSCO ARTS COLLEGE,1041111338,42695.00,Grants to educational establishments or not for profit organisations including other businesses
Department for Education,DEPARTMENT FOR EDUCATION,12/02/2020,Grants expenditure,ACADEMIES AND REGIONAL DELIVERY TOTAL,CAMBRIDGE MERIDIAN ACADEMIES TRUST,1041111591,99867.00,Grants to educational establishments or not for profit organisations including other businesses
Department for Education,DEPARTMENT FOR EDUCATION,12/02/2020,Grants expenditure,ACADEMIES AND REGIONAL DELIVERY TOTAL,ST PETERS CATHOLIC HIGH SCHOOL,1041111638,83322.00,Grants to educational establishments or not for profit organisations including other businesses
Department for Education,DEPARTMENT FOR EDUCATION,19/02/2020,Grants expenditure,ACADEMIES AND REGIONAL DELIVERY TOTAL,BECKMEAD SCHOOL,1041112827,75000.00,Grants to educational establishments or not for profit organisations including other businesses
Department for Education,DEPARTMENT FOR EDUCATION,04/02/2020,Grants expenditure,ACADEMIES AND REGIONAL DELIVERY TOTAL,THE BLUE KITE ACADEMY TRUST,1041110318,25000.00,Grants to educational establishments or not for profit organisations including other businesses
Department for Education,DEPARTMENT FOR EDUCATION,10/02/2020,Grants expenditure,ACADEMIES AND REGIONAL DELIVERY TOTAL,RICHARD HUISH TRUST,1041111219,25000.00,Grants to educational establishments or not for profit organisations including other businesses
Department for Education,DEPARTMENT FOR EDUCATION,12/02/2020,Grants expenditure,ACADEMIES AND REGIONAL DELIVERY TOTAL,MIDSOMER NORTON SCHOOLS PARTNERSHIP,1041111409,25000.00,Grants to educational establishments or not for profit organisations including other businesses
Department for Education,DEPARTMENT FOR EDUCATION,12/02/2020,Grants expenditure,ACADEMIES AND REGIONAL DELIVERY TOTAL,LIGHTHOUSE SCHOOLS PARTNERSHIP,1041111747,25000.00,Grants to educational establishments or not for profit organisations including other businesses
Department for Education,DEPARTMENT FOR EDUCATION,19/02/2020,Grants expenditure,ACADEMIES AND REGIONAL DELIVERY TOTAL,THE ACADEMY FOR CHARACTER & EXCELLENCE,1041112890,25000.00,Grants to educational establishments or not for profit organisations including other businesses
Department for Education,DEPARTMENT FOR EDUCATION,25/02/2020,Grants expenditure,ACADEMIES AND REGIONAL DELIVERY TOTAL,TARKA LEARNING PARTNERSHIP,1041113720,25000.00,Grants to educational establishments or not for profit organisations including other businesses
Department for Education,DEPARTMENT FOR EDUCATION,25/02/2020,Grants expenditure,ACADEMIES AND REGIONAL DELIVERY TOTAL,TARKA LEARNING PARTNERSHIP,1041113720,25000.00,Grants to educational establishments or not for profit organisations including other businesses
Department for Education,DEPARTMENT FOR EDUCATION,24/02/2020,Grants expenditure,ACADEMIES AND REGIONAL DELIVERY TOTAL,WIMBORNE ACADEMY TRUST,1041113590,110000.00,Grants to educational establishments or not for profit organisations including other businesses
Department for Education,DEPARTMENT FOR EDUCATION,25/02/2020,Grants expenditure,ACADEMIES AND REGIONAL DELIVERY TOTAL,MIDSOMER NORTON SCHOOLS PARTNERSHIP,1041113871,90000.00,Grants to educational establishments or not for profit organisations including other businesses
Department for Education,DEPARTMENT FOR EDUCATION,12/02/2020,Grants expenditure,ACADEMIES AND REGIONAL DELIVERY TOTAL,BIRMINGHAM DIOCESAN ACADEMIES TRUST,1041111743,25000.00,Grants to educational establishments or not for profit organisations including other businesses
Department for Education,DEPARTMENT FOR EDUCATION,24/02/2020,Grants expenditure,ACADEMIES AND REGIONAL DELIVERY TOTAL,STAFFORDSHIRE UNIVERSITY ACADEMIES TRUST,1041113661,25000.00,Grants to educational establishments or not for profit organisations including other businesses
Department for Education,DEPARTMENT FOR EDUCATION,24/02/2020,Grants expenditure,ACADEMIES AND REGIONAL DELIVERY TOTAL,SHAW EDUCATION TRUST,1041113681,25000.00,Grants to educational establishments or not for profit organisations including other businesses
Department for Education,DEPARTMENT FOR EDUCATION,27/02/2020,Grants expenditure,ACADEMIES AND REGIONAL DELIVERY TOTAL,SHAW EDUCATION TRUST,1041114211,25000.00,Grants to educational establishments or not for profit organisations including other businesses
Department for Education,DEPARTMENT FOR EDUCATION,07/02/2020,Grants expenditure,ACADEMIES AND REGIONAL DELIVERY TOTAL,THE BLACK PEAR TRUST,1041110982,70000.00,Grants to educational establishments or not for profit organisations including other businesses
Department for Education,DEPARTMENT FOR EDUCATION,10/02/2020,Grants expenditure,ACADEMIES AND REGIONAL DELIVERY TOTAL,MERCIAN EDUCATIONAL TRUST,1041111140,90000.00,Grants to educational establishments or not for profit organisations including other businesses
Department for Education,DEPARTMENT FOR EDUCATION,24/02/2020,Grants expenditure,ACADEMIES AND REGIONAL DELIVERY TOTAL,MANOR HALL ACADEMY TRUST,1041113696,80000.00,Grants to educational establishments or not for profit organisations including other businesses
Department for Education,DEPARTMENT FOR EDUCATION,10/02/2020,Grants expenditure,ACADEMIES AND REGIONAL DELIVERY TOTAL,TRANSFORM TRUST,1041111228,25000.00,Grants to educational establishments or not for profit organisations including other businesses
Department for Education,DEPARTMENT FOR EDUCATION,12/02/2020,Grants expenditure,ACADEMIES AND REGIONAL DELIVERY TOTAL,EMBARK MULTI ACADEMY TRUST,1041111664,25000.00,Grants to educational establishments or not for profit organisations including other businesses
Department for Education,DEPARTMENT FOR EDUCATION,12/02/2020,Grants expenditure,ACADEMIES AND REGIONAL DELIVERY TOTAL,EMBARK MULTI ACADEMY TRUST,1041111664,25000.00,Grants to educational establishments or not for profit organisations including other businesses
Department for Education,DEPARTMENT FOR EDUCATION,19/02/2020,Grants expenditure,ACADEMIES AND REGIONAL DELIVERY TOTAL,WARLEY ROAD PRIMARY SCHOOL,1041112868,80000.00,Grants to educational establishments or not for profit organisations including other businesses
Department for Education,DEPARTMENT FOR EDUCATION,19/02/2020,Grants expenditure,ACADEMIES AND REGIONAL DELIVERY TOTAL,WARLEY ROAD PRIMARY SCHOOL,1041112868,70000.00,Grants to educational establishments or not for profit organisations including other businesses
Department for Education,DEPARTMENT FOR EDUCATION,19/02/2020,Grants expenditure,ACADEMIES AND REGIONAL DELIVERY TOTAL,THE ROWAN LEARNING TRUST,1041112992,150000.00,Grants to educational establishments or not for profit organisations including other businesses
Department for Education,DEPARTMENT FOR EDUCATION,10/02/2020,Grants expenditure,ACADEMIES AND REGIONAL DELIVERY TOTAL,GIRTON GLEBE PRIMARY SCHOOL,1041111068,25000.00,Grants to educational establishments or not for profit organisations including other businesses
Department for Education,DEPARTMENT FOR EDUCATION,19/02/2020,Grants expenditure,ACADEMIES AND REGIONAL DELIVERY TOTAL,THE CHILDRENS ENDEAVOUR TRUST,1041112886,25000.00,Grants to educational establishments or not for profit organisations including other businesses
Department for Education,DEPARTMENT FOR EDUCATION,19/02/2020,Grants expenditure,ACADEMIES AND REGIONAL DELIVERY TOTAL,THE CHILDRENS ENDEAVOUR TRUST,1041112886,25000.00,Grants to educational establishments or not for profit organisations including other businesses
Department for Education,DEPARTMENT FOR EDUCATION,19/02/2020,Grants expenditure,ACADEMIES AND REGIONAL DELIVERY TOTAL,THE CHILDRENS ENDEAVOUR TRUST,1041112886,25000.00,Grants to educational establishments or not for profit organisations including other businesses
Department for Education,DEPARTMENT FOR EDUCATION,19/02/2020,Grants expenditure,ACADEMIES AND REGIONAL DELIVERY TOTAL,THE CHILDRENS ENDEAVOUR TRUST,1041112886,25000.00,Grants to educational establishments or not for profit organisations including other businesses
Department for Education,DEPARTMENT FOR EDUCATION,19/02/2020,Grants expenditure,ACADEMIES AND REGIONAL DELIVERY TOTAL,THE CHILDRENS ENDEAVOUR TRUST,1041112886,25000.00,Grants to educational establishments or not for profit organisations including other businesses
Department for Education,DEPARTMENT FOR EDUCATION,24/02/2020,Grants expenditure,ACADEMIES AND REGIONAL DELIVERY TOTAL,WAVENEY VALLEY ACADEMIES TRUST,1041113587,25000.00,Grants to educational establishments or not for profit organisations including other businesses
Department for Education,DEPARTMENT FOR EDUCATION,24/02/2020,Grants expenditure,ACADEMIES AND REGIONAL DELIVERY TOTAL,ATTAIN ACADEMY PARTNERSHIP,1041113610,25000.00,Grants to educational establishments or not for profit organisations including other businesses
Department for Education,DEPARTMENT FOR EDUCATION,25/02/2020,Grants expenditure,ACADEMIES AND REGIONAL DELIVERY TOTAL,DIOCESE OF CHICHESTER ACADEMY TRUST,1041113711,25000.00,Grants to educational establishments or not for profit organisations including other businesses
Department for Education,DEPARTMENT FOR EDUCATION,27/02/2020,Grants expenditure,ACADEMIES AND REGIONAL DELIVERY TOTAL,THE LIME TRUST,1041114212,80000.00,Grants to educational establishments or not for profit organisations including other businesses
Department for Education,DEPARTMENT FOR EDUCATION,04/02/2020,Grants expenditure,ACADEMIES AND REGIONAL DELIVERY TOTAL,THE THREE RIVERS LEARNING TRUST LTD,1041110289,25000.00,Grants to educational establishments or not for profit organisations including other businesses
Department for Education,DEPARTMENT FOR EDUCATION,04/02/2020,Grants expenditure,ACADEMIES AND REGIONAL DELIVERY TOTAL,NORTHERN SAINTS CATHOLIC EDUCATION TRUST,1041110290,25000.00,Grants to educational establishments or not for profit organisations including other businesses
Department for Education,DEPARTMENT FOR EDUCATION,07/02/2020,Grants expenditure,ACADEMIES AND REGIONAL DELIVERY TOTAL,NORTHERN SAINTS CATHOLIC EDUCATION TRUST,1041110964,25000.00,Grants to educational establishments or not for profit organisations including other businesses
Department for Education,DEPARTMENT FOR EDUCATION,12/02/2020,Grants expenditure,ACADEMIES AND REGIONAL DELIVERY TOTAL,NORTHERN STAR ACADEMIES TRUST,1041111635,25000.00,Grants to educational establishments or not for profit organisations including other businesses
Department for Education,DEPARTMENT FOR EDUCATION,19/02/2020,Grants expenditure,ACADEMIES AND REGIONAL DELIVERY TOTAL,WARKWORTH C OF E PRIMARY SCHOOL,1041113099,25000.00,Grants to educational establishments or not for profit organisations including other businesses
Department for Education,DEPARTMENT FOR EDUCATION,24/02/2020,Grants expenditure,ACADEMIES AND REGIONAL DELIVERY TOTAL,ADVANCED LEARNING PARTNERSHIP,1041113686,25000.00,Grants to educational establishments or not for profit organisations including other businesses
Department for Education,DEPARTMENT FOR EDUCATION,07/02/2020,Grants expenditure,ACADEMIES AND REGIONAL DELIVERY TOTAL,EDEN LEARNING TRUST,1041110896,150000.00,Grants to educational establishments or not for profit organisations including other businesses
Department for Education,DEPARTMENT FOR EDUCATION,19/02/2020,Grants expenditure,ACADEMIES AND REGIONAL DELIVERY TOTAL,NORTHERN EDUCATION TRUST,1041112895,150000.00,Grants to educational establishments or not for profit organisations including other businesses
Department for Education,DEPARTMENT FOR EDUCATION,24/02/2020,Grants expenditure,ACADEMIES AND REGIONAL DELIVERY TOTAL,OXFORD DIOCESAN BUCKS SCHOOLS TRUST,1041113586,25000.00,Grants to educational establishments or not for profit organisations including other businesses
Department for Education,DEPARTMENT FOR EDUCATION,25/02/2020,Grants expenditure,ACADEMIES AND REGIONAL DELIVERY TOTAL,THE CIRCLE TRUST,1041113731,25000.00,Grants to educational establishments or not for profit organisations including other businesses
Department for Education,DEPARTMENT FOR EDUCATION,25/02/2020,Grants expenditure,ACADEMIES AND REGIONAL DELIVERY TOTAL,THE CIRCLE TRUST,1041113731,25000.00,Grants to educational establishments or not for profit organisations including other businesses
Department for Education,DEPARTMENT FOR EDUCATION,10/02/2020,Grants expenditure,ACADEMIES AND REGIONAL DELIVERY TOTAL,WOLFSON HILLEL PRIMARY,1041111127,70000.00,Grants to educational establishments or not for profit organisations including other businesses
Department for Education,DEPARTMENT FOR EDUCATION,24/02/2020,Grants expenditure,ACADEMIES AND REGIONAL DELIVERY TOTAL,INSPIRING FUTURES THROUGH LEARNING TRUST,1041113666,90000.00,Grants to educational establishments or not for profit organisations including other businesses
Department for Education,DEPARTMENT FOR EDUCATION,24/02/2020,Grants expenditure,ACADEMIES AND REGIONAL DELIVERY TOTAL,LARWOOD ACADEMY,1041113701,70000.00,Grants to educational establishments or not for profit organisations including other businesses
Department for Education,DEPARTMENT FOR EDUCATION,25/02/2020,Grants expenditure,ACADEMIES AND REGIONAL DELIVERY TOTAL,GREAT LEARNERS TRUST,1041113764,110000.00,Grants to educational establishments or not for profit organisations including other businesses
Department for Education,DEPARTMENT FOR EDUCATION,19/02/2020,Grants expenditure,ACADEMIES AND REGIONAL DELIVERY TOTAL,DIOCESE OF CHICHESTER ACADEMY TRUST,1041112969,25000.00,Grants to educational establishments or not for profit organisations including other businesses
Department for Education,DEPARTMENT FOR EDUCATION,24/02/2020,Grants expenditure,ACADEMIES AND REGIONAL DELIVERY TOTAL,BYFLEET PRIMARY SCHOOL,1041113636,25000.00,Grants to educational establishments or not for profit organisations including other businesses
Department for Education,DEPARTMENT FOR EDUCATION,25/02/2020,Grants expenditure,ACADEMIES AND REGIONAL DELIVERY TOTAL,BOSCO CATHOLIC EDUCATION TRUST,1041113849,25000.00,Grants to educational establishments or not for profit organisations including other businesses
Department for Education,DEPARTMENT FOR EDUCATION,19/02/2020,Grants expenditure,ACADEMIES AND REGIONAL DELIVERY TOTAL,WEYDON SCHOOL,1041113087,70000.00,Grants to educational establishments or not for profit organisations including other businesses
Department for Education,DEPARTMENT FOR EDUCATION,06/02/2020,IS/IT,FUNDING AND ANALYSIS TOTAL,OLIVE JAR DIGITAL LTD,1041110811,105490.00,Partial payment for IT hardware / consumables
Department for Education,DEPARTMENT FOR EDUCATION,04/02/2020,Grants expenditure,EARLY YEARS AND SCHOOLS GROUP,RYE HILLS ACADEMY,1041110284,34589.00,Grants to educational establishments or not for profit organisations including other businesses
Department for Education,DEPARTMENT FOR EDUCATION,06/02/2020,Grants expenditure,EARLY YEARS AND SCHOOLS GROUP,HETTON SCHOOL,1041110876,35195.00,Grants to educational establishments or not for profit organisations including other businesses
Department for Education,DEPARTMENT FOR EDUCATION,12/02/2020,Grants expenditure,EARLY YEARS AND SCHOOLS GROUP,FREEBROUGH ACADEMY,1041111593,69400.00,Grants to educational establishments or not for profit organisations including other businesses
Department for Education,DEPARTMENT FOR EDUCATION,12/02/2020,Grants expenditure,EARLY YEARS AND SCHOOLS GROUP,NORTHERN SAINTS CATHOLIC EDUCATION TRUST,1041111636,51670.00,Grants to educational establishments or not for profit organisations including other businesses
Department for Education,DEPARTMENT FOR EDUCATION,12/02/2020,Grants expenditure,EARLY YEARS AND SCHOOLS GROUP,BISHOP BARRINGTON SCHOOL,1041111712,75385.00,Grants to educational establishments or not for profit organisations including other businesses
Department for Education,DEPARTMENT FOR EDUCATION,12/02/2020,Grants expenditure,EARLY YEARS AND SCHOOLS GROUP,MONKWEARMOUTH ACADEMY,1041111721,62622.00,Grants to educational establishments or not for profit organisations including other businesses
Department for Education,DEPARTMENT FOR EDUCATION,12/02/2020,Grants expenditure,EARLY YEARS AND SCHOOLS GROUP,BERWICK ACADEMY,1041111722,67975.00,Grants to educational establishments or not for profit organisations including other businesses
Department for Education,DEPARTMENT FOR EDUCATION,12/02/2020,Grants expenditure,EARLY YEARS AND SCHOOLS GROUP,HAUGHTON ACADEMY,1041111725,126833.00,Grants to educational establishments or not for profit organisations including other businesses
Department for Education,DEPARTMENT FOR EDUCATION,13/02/2020,Grants expenditure,EARLY YEARS AND SCHOOLS GROUP,EXCELSIOR ACADEMY,1041112073,103700.00,Grants to educational establishments or not for profit organisations including other businesses
Department for Education,DEPARTMENT FOR EDUCATION,21/02/2020,Grants expenditure,EARLY YEARS AND SCHOOLS GROUP,THE NORTHUMBERLAND COFE ACADEMY,1041113403,38139.00,Grants to educational establishments or not for profit organisations including other businesses
Department for Education,DEPARTMENT FOR EDUCATION,21/02/2020,Grants expenditure,EARLY YEARS AND SCHOOLS GROUP,JAMES CALVERT SPENCE COLLEGE,1041113481,41162.00,Grants to educational establishments or not for profit organisations including other businesses
Department for Education,DEPARTMENT FOR EDUCATION,21/02/2020,Grants expenditure,EARLY YEARS AND SCHOOLS GROUP,WYVERN ACADEMY,1041113485,28429.00,Grants to educational establishments or not for profit organisations including other businesses
Department for Education,DEPARTMENT FOR EDUCATION,27/02/2020,Grants expenditure,EARLY YEARS AND SCHOOLS GROUP,MONKSEATON MIDDLE SCHOOL,1041114187,47674.00,Grants to educational establishments or not for profit organisations including other businesses
Department for Education,DEPARTMENT FOR EDUCATION,13/02/2020,IS/IT,TEACHING WORKFORCE TOTAL,THE DEXTROUS WEB T/A DXW,1041111911,22125.00,Partial payment for IT hardware / consumables
Department for Education,DEPARTMENT FOR EDUCATION,17/02/2020,IS/IT,TEACHING WORKFORCE TOTAL,THE DEXTROUS WEB T/A DXW,1041112400,72475.00,Partial payment for IT hardware / consumables
Department for Education,DEPARTMENT FOR EDUCATION,26/02/2020,IS/IT,TEACHING WORKFORCE TOTAL,THE DEXTROUS WEB T/A DXW,1041113896,74487.50,Partial payment for IT hardware / consumables
Department for Education,DEPARTMENT FOR EDUCATION,07/02/2020,Other Goods & Services,FUNDING AND ANALYSIS TOTAL,SOFTWARE FOR DATA ANALYSIS LTD,1041111006,55000.00,"Fees / expenses of professionals such as auditors, accountants, lawyers, etc. engaged to provide advice or opinion on how to affect something"
Department for Education,DEPARTMENT FOR EDUCATION,07/02/2020,Other Goods & Services,FUNDING AND ANALYSIS TOTAL,SOFTWARE FOR DATA ANALYSIS LTD,1041111006,11000.00,"Fees / expenses of professionals such as auditors, accountants, lawyers, etc. engaged to provide advice or opinion on how to affect something"
Department for Education,DEPARTMENT FOR EDUCATION,17/02/2020,Other Goods & Services,FUNDING AND ANALYSIS TOTAL,PLACE GROUP LTD,1041112608,97092.00,"Fees / expenses of professionals such as auditors, accountants, lawyers, etc. engaged to provide advice or opinion on how to affect something"
Department for Education,DEPARTMENT FOR EDUCATION,14/02/2020,Grants expenditure,EARLY YEARS AND SCHOOLS GROUP,FALCON EDUCATION ACADEMIES TRUST,1041112241,250000.00,Grants to educational establishments or not for profit organisations including other businesses
Department for Education,DEPARTMENT FOR EDUCATION,05/02/2020,IS/IT,TEACHING WORKFORCE TOTAL,MADE TECH LTD,1041110725,26792.50,Partial payment for IT hardware / consumables
Department for Education,DEPARTMENT FOR EDUCATION,14/02/2020,Consultancy,TEACHING WORKFORCE TOTAL,CABINET OFFICE,1041112265,27400.00,"Advisory services including fees, travel and expenses"
Department for Education,DEPARTMENT FOR EDUCATION,17/02/2020,Other Goods & Services,TEACHING WORKFORCE TOTAL,DIGI2AL LTD,1041112577,41460.00,Research and Development
Department for Education,DEPARTMENT FOR EDUCATION,18/02/2020,Other Goods & Services,TEACHING WORKFORCE TOTAL,UCAS,1041112703,74314.48,"Fees / expenses of professionals such as auditors, accountants, lawyers, etc. engaged to provide advice or opinion on how to affect something"
Department for Education,DEPARTMENT FOR EDUCATION,18/02/2020,Other Goods & Services,TEACHING WORKFORCE TOTAL,UCAS,1041112703,108502.44,"Fees / expenses of professionals such as auditors, accountants, lawyers, etc. engaged to provide advice or opinion on how to affect something"
Department for Education,DEPARTMENT FOR EDUCATION,18/02/2020,Other Goods & Services,TEACHING WORKFORCE TOTAL,UCAS,1041112703,14862.90,"Fees / expenses of professionals such as auditors, accountants, lawyers, etc. engaged to provide advice or opinion on how to affect something"
Department for Education,DEPARTMENT FOR EDUCATION,18/02/2020,Other Goods & Services,TEACHING WORKFORCE TOTAL,UCAS,1041112703,21700.49,"Fees / expenses of professionals such as auditors, accountants, lawyers, etc. engaged to provide advice or opinion on how to affect something"
Department for Education,DEPARTMENT FOR EDUCATION,19/02/2020,IS/IT,TEACHING WORKFORCE TOTAL,FARSIGHT CONSULTING LTD,1041113078,25350.00,Partial payment for IT hardware / consumables
Department for Education,DEPARTMENT FOR EDUCATION,27/02/2020,IS/IT,TEACHING WORKFORCE TOTAL,ADROC LTD,1041114123,31320.00,Partial payment for IT hardware / consumables
Department for Education,DEPARTMENT FOR EDUCATION,28/02/2020,Grants expenditure,EARLY YEARS AND SCHOOLS GROUP,LANCASTER UNIVERSITY SCHOOL OF MATHEMATICS,1041114331,30000.00,Grants to educational establishments or not for profit organisations including other businesses
Department for Education,DEPARTMENT FOR EDUCATION,28/02/2020,Grants expenditure,EARLY YEARS AND SCHOOLS GROUP,UNIVERSITY OF LIVERPOOL MATHEMATICS SCHOOL,1041114413,70000.00,Grants to educational establishments or not for profit organisations including other businesses
Department for Education,DEPARTMENT FOR EDUCATION,04/02/2020,Grants expenditure,TEACHING WORKFORCE TOTAL,UNIVERSITY OF HUDDERSFIELD,1041110261,224445.00,Grants to educational establishments or not for profit organisations including other businesses
Department for Education,DEPARTMENT FOR EDUCATION,04/02/2020,Grants expenditure,TEACHING WORKFORCE TOTAL,PARTNERSHIP LONDON SCITT,1041110264,32990.00,Grants to educational establishments or not for profit organisations including other businesses
Department for Education,DEPARTMENT FOR EDUCATION,04/02/2020,Grants expenditure,TEACHING WORKFORCE TOTAL,HAYBRIDGE ALLIANCE SCITT,1041110265,54735.00,Grants to educational establishments or not for profit organisations including other businesses
Department for Education,DEPARTMENT FOR EDUCATION,04/02/2020,Grants expenditure,TEACHING WORKFORCE TOTAL,YORKSHIRE AND HUMBER TEACHER TRAINING,1041110266,66400.00,Grants to educational establishments or not for profit organisations including other businesses
Department for Education,DEPARTMENT FOR EDUCATION,04/02/2020,Grants expenditure,TEACHING WORKFORCE TOTAL,BARR BEACON SCITT,1041110267,65120.00,Grants to educational establishments or not for profit organisations including other businesses
Department for Education,DEPARTMENT FOR EDUCATION,04/02/2020,Grants expenditure,TEACHING WORKFORCE TOTAL,ASTRA SCITT,1041110268,88550.00,Grants to educational establishments or not for profit organisations including other businesses
Department for Education,DEPARTMENT FOR EDUCATION,04/02/2020,Grants expenditure,TEACHING WORKFORCE TOTAL,YORK ST JOHN UNIVERSITY,1041110270,60704.00,Grants to educational establishments or not for profit organisations including other businesses
Department for Education,DEPARTMENT FOR EDUCATION,04/02/2020,Grants expenditure,TEACHING WORKFORCE TOTAL,THE CAMBRIDGE PARTNERSHIP,1041110271,55440.00,Grants to educational establishments or not for profit organisations including other businesses
Department for Education,DEPARTMENT FOR EDUCATION,04/02/2020,Grants expenditure,TEACHING WORKFORCE TOTAL,STAFFORDSHIRE UNIVERSITY,1041110272,86824.44,Grants to educational establishments or not for profit organisations including other businesses
Department for Education,DEPARTMENT FOR EDUCATION,04/02/2020,Grants expenditure,TEACHING WORKFORCE TOTAL,SOUTH WEST TEACHER TRAINING,1041110273,55195.00,Grants to educational establishments or not for profit organisations including other businesses
Department for Education,DEPARTMENT FOR EDUCATION,04/02/2020,Grants expenditure,TEACHING WORKFORCE TOTAL,LIVERPOOL JOHN MOORES UNIVERSITY,1041110274,432216.00,Grants to educational establishments or not for profit organisations including other businesses
Department for Education,DEPARTMENT FOR EDUCATION,04/02/2020,Grants expenditure,TEACHING WORKFORCE TOTAL,UNIVERSITY OF PLYMOUTH,1041110275,102605.00,Grants to educational establishments or not for profit organisations including other businesses
Department for Education,DEPARTMENT FOR EDUCATION,04/02/2020,Grants expenditure,TEACHING WORKFORCE TOTAL,WILDERN SCHOOL,1041110276,27610.00,Grants to educational establishments or not for profit organisations including other businesses
Department for Education,DEPARTMENT FOR EDUCATION,04/02/2020,Grants expenditure,TEACHING WORKFORCE TOTAL,SKIPTON GIRLS HIGH SCHOOL,1041110278,30480.00,Grants to educational establishments or not for profit organisations including other businesses
Department for Education,DEPARTMENT FOR EDUCATION,04/02/2020,Grants expenditure,TEACHING WORKFORCE TOTAL,SACRED HEART NEWCASTLE SCITT,1041110291,56910.00,Grants to educational establishments or not for profit organisations including other businesses
Department for Education,DEPARTMENT FOR EDUCATION,04/02/2020,Grants expenditure,TEACHING WORKFORCE TOTAL,POOLE SECONDARY SCHOOLS,1041110297,52215.00,Grants to educational establishments or not for profit organisations including other businesses
Department for Education,DEPARTMENT FOR EDUCATION,04/02/2020,Grants expenditure,TEACHING WORKFORCE TOTAL,UNIVERSITY OF CHICHESTER,1041110298,98915.00,Grants to educational establishments or not for profit organisations including other businesses
Department for Education,DEPARTMENT FOR EDUCATION,04/02/2020,Grants expenditure,TEACHING WORKFORCE TOTAL,PILGRIM SCITT,1041110299,57970.00,Grants to educational establishments or not for profit organisations including other businesses
Department for Education,DEPARTMENT FOR EDUCATION,04/02/2020,Grants expenditure,TEACHING WORKFORCE TOTAL,UNIVERSITY OF YORK,1041110300,185691.75,Grants to educational establishments or not for profit organisations including other businesses
Department for Education,DEPARTMENT FOR EDUCATION,04/02/2020,Grants expenditure,TEACHING WORKFORCE TOTAL,UNIVERSITY OF EAST ANGLIA,1041110301,237408.75,Grants to educational establishments or not for profit organisations including other businesses
Department for Education,DEPARTMENT FOR EDUCATION,04/02/2020,Grants expenditure,TEACHING WORKFORCE TOTAL,UNIVERSITY OF WOLVERHAMPTON,1041110302,237802.00,Grants to educational establishments or not for profit organisations including other businesses
Department for Education,DEPARTMENT FOR EDUCATION,04/02/2020,Grants expenditure,TEACHING WORKFORCE TOTAL,UNIVERSITY OF LEICESTER,1041110305,195340.00,Grants to educational establishments or not for profit organisations including other businesses
Department for Education,DEPARTMENT FOR EDUCATION,04/02/2020,Grants expenditure,TEACHING WORKFORCE TOTAL,UNIVERSITY OF ROEHAMPTON,1041110317,232947.50,Grants to educational establishments or not for profit organisations including other businesses
Department for Education,DEPARTMENT FOR EDUCATION,04/02/2020,Grants expenditure,TEACHING WORKFORCE TOTAL,CABOT LEARNING FEDERATION,1041110319,39610.00,Grants to educational establishments or not for profit organisations including other businesses
Department for Education,DEPARTMENT FOR EDUCATION,04/02/2020,Grants expenditure,TEACHING WORKFORCE TOTAL,GLYN SURREY SCITT,1041110321,28530.00,Grants to educational establishments or not for profit organisations including other businesses
Department for Education,DEPARTMENT FOR EDUCATION,04/02/2020,Grants expenditure,TEACHING WORKFORCE TOTAL,UNIVERSITY OF WORCESTER,1041110322,327550.00,Grants to educational establishments or not for profit organisations including other businesses
Department for Education,DEPARTMENT FOR EDUCATION,04/02/2020,Grants expenditure,TEACHING WORKFORCE TOTAL,UNIVERSITY OF SUNDERLAND,1041110323,360710.00,Grants to educational establishments or not for profit organisations including other businesses
Department for Education,DEPARTMENT FOR EDUCATION,04/02/2020,Grants expenditure,TEACHING WORKFORCE TOTAL,NORTHAMPTON TEACHER TRAINING,1041110324,32461.88,Grants to educational establishments or not for profit organisations including other businesses
Department for Education,DEPARTMENT FOR EDUCATION,04/02/2020,Grants expenditure,TEACHING WORKFORCE TOTAL,NORTH ESSEX TEACHER TRAINING,1041110325,77945.00,Grants to educational establishments or not for profit organisations including other businesses
Department for Education,DEPARTMENT FOR EDUCATION,04/02/2020,Grants expenditure,TEACHING WORKFORCE TOTAL,UNIVERSITY OF OXFORD,1041110326,352647.50,Grants to educational establishments or not for profit organisations including other businesses
Department for Education,DEPARTMENT FOR EDUCATION,04/02/2020,Grants expenditure,TEACHING WORKFORCE TOTAL,TUDOR GRANGE ACADEMY SOLIHULL,1041110327,27380.00,Grants to educational establishments or not for profit organisations including other businesses
Department for Education,DEPARTMENT FOR EDUCATION,04/02/2020,Grants expenditure,TEACHING WORKFORCE TOTAL,SOUTHEND HIGH SCHOOL FOR GIRLS,1041110328,29740.00,Grants to educational establishments or not for profit organisations including other businesses
Department for Education,DEPARTMENT FOR EDUCATION,04/02/2020,Grants expenditure,TEACHING WORKFORCE TOTAL,THE KEMNAL ACADEMIES TRUST,1041110329,28318.00,Grants to educational establishments or not for profit organisations including other businesses
Department for Education,DEPARTMENT FOR EDUCATION,04/02/2020,Grants expenditure,TEACHING WORKFORCE TOTAL,MIDDLESEX UNIVERSITY,1041110330,114960.00,Grants to educational establishments or not for profit organisations including other businesses
Department for Education,DEPARTMENT FOR EDUCATION,04/02/2020,Grants expenditure,TEACHING WORKFORCE TOTAL,CATALYST TEACHING SCHOOL ALLIANCE,1041110338,25410.00,Grants to educational establishments or not for profit organisations including other businesses
Department for Education,DEPARTMENT FOR EDUCATION,04/02/2020,Grants expenditure,TEACHING WORKFORCE TOTAL,CFBT THE DEEPINGS SCITT,1041110340,34210.00,Grants to educational establishments or not for profit organisations including other businesses
Department for Education,DEPARTMENT FOR EDUCATION,04/02/2020,Grants expenditure,TEACHING WORKFORCE TOTAL,TEACH SOUTHEAST,1041110341,100980.00,Grants to educational establishments or not for profit organisations including other businesses
Department for Education,DEPARTMENT FOR EDUCATION,04/02/2020,Grants expenditure,TEACHING WORKFORCE TOTAL,HILLINGDON SCITT,1041110342,26560.00,Grants to educational establishments or not for profit organisations including other businesses
Department for Education,DEPARTMENT FOR EDUCATION,04/02/2020,Grants expenditure,TEACHING WORKFORCE TOTAL,SHOTTON HALL SCITT,1041110343,42165.00,Grants to educational establishments or not for profit organisations including other businesses
Department for Education,DEPARTMENT FOR EDUCATION,04/02/2020,Grants expenditure,TEACHING WORKFORCE TOTAL,BRADFORD BIRTH TO 19 SCITT,1041110345,34430.00,Grants to educational establishments or not for profit organisations including other businesses
Department for Education,DEPARTMENT FOR EDUCATION,04/02/2020,Grants expenditure,TEACHING WORKFORCE TOTAL,SUTTON SCITT,1041110346,80300.00,Grants to educational establishments or not for profit organisations including other businesses
Department for Education,DEPARTMENT FOR EDUCATION,04/02/2020,Grants expenditure,TEACHING WORKFORCE TOTAL,THE JOHN TAYLOR SCITT,1041110347,61270.00,Grants to educational establishments or not for profit organisations including other businesses
Department for Education,DEPARTMENT FOR EDUCATION,04/02/2020,Grants expenditure,TEACHING WORKFORCE TOTAL,UNIVERSITY OF NORTHUMBRIA,1041110348,32560.00,Grants to educational establishments or not for profit organisations including other businesses
Department for Education,DEPARTMENT FOR EDUCATION,04/02/2020,Grants expenditure,TEACHING WORKFORCE TOTAL,UNIVERSITY OF HULL,1041110349,171617.50,Grants to educational establishments or not for profit organisations including other businesses
Department for Education,DEPARTMENT FOR EDUCATION,04/02/2020,Grants expenditure,TEACHING WORKFORCE TOTAL,NORTH BEDS SCITT CONSORTIUM,1041110350,49486.75,Grants to educational establishments or not for profit organisations including other businesses
Department for Education,DEPARTMENT FOR EDUCATION,04/02/2020,Grants expenditure,TEACHING WORKFORCE TOTAL,UNIVERSITY OF HERTFORDSHIRE,1041110351,206160.00,Grants to educational establishments or not for profit organisations including other businesses
Department for Education,DEPARTMENT FOR EDUCATION,04/02/2020,Grants expenditure,TEACHING WORKFORCE TOTAL,UNIVERSITY OF GREENWICH,1041110352,109615.00,Grants to educational establishments or not for profit organisations including other businesses
Department for Education,DEPARTMENT FOR EDUCATION,04/02/2020,Grants expenditure,TEACHING WORKFORCE TOTAL,RIPLEY ST THOMAS CE HIGH SCHOOL,1041110353,66940.00,Grants to educational establishments or not for profit organisations including other businesses
Department for Education,DEPARTMENT FOR EDUCATION,04/02/2020,Grants expenditure,TEACHING WORKFORCE TOTAL,UNIVERSITY OF PORTSMOUTH,1041110354,245421.00,Grants to educational establishments or not for profit organisations including other businesses
Department for Education,DEPARTMENT FOR EDUCATION,04/02/2020,Grants expenditure,TEACHING WORKFORCE TOTAL,ARTHUR MELLOWS VILLAGE COLLEGE,1041110356,30140.00,Grants to educational establishments or not for profit organisations including other businesses
Department for Education,DEPARTMENT FOR EDUCATION,04/02/2020,Grants expenditure,TEACHING WORKFORCE TOTAL,SUMMIT,1041110357,30800.00,Grants to educational establishments or not for profit organisations including other businesses
Department for Education,DEPARTMENT FOR EDUCATION,04/02/2020,Grants expenditure,TEACHING WORKFORCE TOTAL,ALPHA TRUST,1041110360,94860.00,Grants to educational establishments or not for profit organisations including other businesses
Department for Education,DEPARTMENT FOR EDUCATION,04/02/2020,Grants expenditure,TEACHING WORKFORCE TOTAL,AA TEAMWORKS WEST YORKSHIRE SCITT,1041110363,29152.00,Grants to educational establishments or not for profit organisations including other businesses
Department for Education,DEPARTMENT FOR EDUCATION,04/02/2020,Grants expenditure,TEACHING WORKFORCE TOTAL,COVENTRY SCITT,1041110364,25500.00,Grants to educational establishments or not for profit organisations including other businesses
Department for Education,DEPARTMENT FOR EDUCATION,04/02/2020,Grants expenditure,TEACHING WORKFORCE TOTAL,RED KITE TEACHER TRAINING,1041110365,115330.00,Grants to educational establishments or not for profit organisations including other businesses
Department for Education,DEPARTMENT FOR EDUCATION,04/02/2020,Grants expenditure,TEACHING WORKFORCE TOTAL,MID ESSEX INITIAL TEACHER TRAINING,1041110366,94050.00,Grants to educational establishments or not for profit organisations including other businesses
Department for Education,DEPARTMENT FOR EDUCATION,04/02/2020,Grants expenditure,TEACHING WORKFORCE TOTAL,CHESHIRE EAST SCITT,1041110368,39330.00,Grants to educational establishments or not for profit organisations including other businesses
Department for Education,DEPARTMENT FOR EDUCATION,04/02/2020,Grants expenditure,TEACHING WORKFORCE TOTAL,HIBERNIA COLLEGE UK,1041110370,184060.00,Grants to educational establishments or not for profit organisations including other businesses
Department for Education,DEPARTMENT FOR EDUCATION,04/02/2020,Grants expenditure,TEACHING WORKFORCE TOTAL,NEWMAN COLLEGE,1041110371,244375.00,Grants to educational establishments or not for profit organisations including other businesses
Department for Education,DEPARTMENT FOR EDUCATION,04/02/2020,Grants expenditure,TEACHING WORKFORCE TOTAL,UNIVERSITY OF GLOUCESTERSHIRE,1041110372,78540.00,Grants to educational establishments or not for profit organisations including other businesses
Department for Education,DEPARTMENT FOR EDUCATION,04/02/2020,Grants expenditure,TEACHING WORKFORCE TOTAL,UNIVERSITY OF EAST LONDON,1041110373,347212.12,Grants to educational establishments or not for profit organisations including other businesses
Department for Education,DEPARTMENT FOR EDUCATION,04/02/2020,Grants expenditure,TEACHING WORKFORCE TOTAL,UNIVERSITY OF DERBY,1041110374,78900.00,Grants to educational establishments or not for profit organisations including other businesses
Department for Education,DEPARTMENT FOR EDUCATION,04/02/2020,Grants expenditure,TEACHING WORKFORCE TOTAL,UNIVERSITY OF CUMBRIA,1041110375,343560.00,Grants to educational establishments or not for profit organisations including other businesses
Department for Education,DEPARTMENT FOR EDUCATION,04/02/2020,Grants expenditure,TEACHING WORKFORCE TOTAL,UNIVERSITY OF BIRMINGHAM,1041110376,368410.00,Grants to educational establishments or not for profit organisations including other businesses
Department for Education,DEPARTMENT FOR EDUCATION,04/02/2020,Grants expenditure,TEACHING WORKFORCE TOTAL,UNIVERSITY OF WINCHESTER,1041110377,135964.50,Grants to educational establishments or not for profit organisations including other businesses
Department for Education,DEPARTMENT FOR EDUCATION,04/02/2020,Grants expenditure,TEACHING WORKFORCE TOTAL,COMBERTON VILLAGE COLLEGE,1041110378,119240.00,Grants to educational establishments or not for profit organisations including other businesses
Department for Education,DEPARTMENT FOR EDUCATION,04/02/2020,Grants expenditure,TEACHING WORKFORCE TOTAL,UNIVERSITY OF CAMBRIDGE,1041110379,366120.00,Grants to educational establishments or not for profit organisations including other businesses
Department for Education,DEPARTMENT FOR EDUCATION,04/02/2020,Grants expenditure,TEACHING WORKFORCE TOTAL,TARLETON ACADEMY,1041110380,47850.00,Grants to educational establishments or not for profit organisations including other businesses
Department for Education,DEPARTMENT FOR EDUCATION,04/02/2020,Grants expenditure,TEACHING WORKFORCE TOTAL,UCL INSTITUTE OF EDUCATION,1041110388,1050530.00,Grants to educational establishments or not for profit organisations including other businesses
Department for Education,DEPARTMENT FOR EDUCATION,04/02/2020,Grants expenditure,TEACHING WORKFORCE TOTAL,SUTTON PARK SCITT,1041110389,68800.00,Grants to educational establishments or not for profit organisations including other businesses
Department for Education,DEPARTMENT FOR EDUCATION,04/02/2020,Grants expenditure,TEACHING WORKFORCE TOTAL,HULL SCITT,1041110390,36410.00,Grants to educational establishments or not for profit organisations including other businesses
Department for Education,DEPARTMENT FOR EDUCATION,04/02/2020,Grants expenditure,TEACHING WORKFORCE TOTAL,EAST MIDLANDS TEACHER TRAINING PARTNERSHIP,1041110391,35860.00,Grants to educational establishments or not for profit organisations including other businesses
Department for Education,DEPARTMENT FOR EDUCATION,04/02/2020,Grants expenditure,TEACHING WORKFORCE TOTAL,TRAIN TO TEACH AT SURREY & HANTS,1041110392,58062.50,Grants to educational establishments or not for profit organisations including other businesses
Department for Education,DEPARTMENT FOR EDUCATION,04/02/2020,Grants expenditure,TEACHING WORKFORCE TOTAL,UNIVERSITY OF BRIGHTON,1041110393,289890.00,Grants to educational establishments or not for profit organisations including other businesses
Department for Education,DEPARTMENT FOR EDUCATION,04/02/2020,Grants expenditure,TEACHING WORKFORCE TOTAL,UNIVERSITY OF BEDFORDSHIRE,1041110394,152055.00,Grants to educational establishments or not for profit organisations including other businesses
Department for Education,DEPARTMENT FOR EDUCATION,04/02/2020,Grants expenditure,TEACHING WORKFORCE TOTAL,UNIVERSITY OF NOTTINGHAM,1041110395,353290.00,Grants to educational establishments or not for profit organisations including other businesses
Department for Education,DEPARTMENT FOR EDUCATION,04/02/2020,Grants expenditure,TEACHING WORKFORCE TOTAL,TITAN PARTNERSHIP LTD,1041110396,33210.00,Grants to educational establishments or not for profit organisations including other businesses
Department for Education,DEPARTMENT FOR EDUCATION,04/02/2020,Grants expenditure,TEACHING WORKFORCE TOTAL,THE UNIVERSITY OF READING,1041110397,325795.00,Grants to educational establishments or not for profit organisations including other businesses
Department for Education,DEPARTMENT FOR EDUCATION,04/02/2020,Grants expenditure,TEACHING WORKFORCE TOTAL,UNIVERSITY OF DURHAM,1041110398,315165.00,Grants to educational establishments or not for profit organisations including other businesses
Department for Education,DEPARTMENT FOR EDUCATION,04/02/2020,Grants expenditure,TEACHING WORKFORCE TOTAL,UNIVERSITY OF CHESTER,1041110399,315037.50,Grants to educational establishments or not for profit organisations including other businesses
Department for Education,DEPARTMENT FOR EDUCATION,04/02/2020,Grants expenditure,TEACHING WORKFORCE TOTAL,UNIVERSITY OF EXETER,1041110402,451175.00,Grants to educational establishments or not for profit organisations including other businesses
Department for Education,DEPARTMENT FOR EDUCATION,04/02/2020,Grants expenditure,TEACHING WORKFORCE TOTAL,NOTTINGHAMSHIRE TORCH SCITT,1041110411,77060.00,Grants to educational establishments or not for profit organisations including other businesses
Department for Education,DEPARTMENT FOR EDUCATION,04/02/2020,Grants expenditure,TEACHING WORKFORCE TOTAL,LINCOLNSHIRE TEACHING SCHOOL ALLIANCE,1041110412,63070.00,Grants to educational establishments or not for profit organisations including other businesses
Department for Education,DEPARTMENT FOR EDUCATION,04/02/2020,Grants expenditure,TEACHING WORKFORCE TOTAL,THE KIRKLEES PARTNERSHIP,1041110414,43236.00,Grants to educational establishments or not for profit organisations including other businesses
Department for Education,DEPARTMENT FOR EDUCATION,04/02/2020,Grants expenditure,TEACHING WORKFORCE TOTAL,THE COLLEGE OF ST MARK & ST JOHN,1041110415,98285.00,Grants to educational establishments or not for profit organisations including other businesses
Department for Education,DEPARTMENT FOR EDUCATION,04/02/2020,Grants expenditure,TEACHING WORKFORCE TOTAL,MANCHESTER METROPOLITAN UNIVERSITY,1041110416,622390.91,Grants to educational establishments or not for profit organisations including other businesses
Department for Education,DEPARTMENT FOR EDUCATION,04/02/2020,Grants expenditure,TEACHING WORKFORCE TOTAL,LONDON DIOCESAN BOARD FOR SCHOOLS,1041110418,37620.00,Grants to educational establishments or not for profit organisations including other businesses
Department for Education,DEPARTMENT FOR EDUCATION,04/02/2020,Grants expenditure,TEACHING WORKFORCE TOTAL,UNIVERSITY OF THE WEST OF ENGLAND,1041110419,251940.00,Grants to educational establishments or not for profit organisations including other businesses
Department for Education,DEPARTMENT FOR EDUCATION,04/02/2020,Grants expenditure,TEACHING WORKFORCE TOTAL,THE MORLEY ACADEMY,1041110420,257935.00,Grants to educational establishments or not for profit organisations including other businesses
Department for Education,DEPARTMENT FOR EDUCATION,04/02/2020,Grants expenditure,TEACHING WORKFORCE TOTAL,ASHTON ON MERSEY SCHOOL,1041110421,49940.00,Grants to educational establishments or not for profit organisations including other businesses
Department for Education,DEPARTMENT FOR EDUCATION,04/02/2020,Grants expenditure,TEACHING WORKFORCE TOTAL,UNIVERSITY OF SOUTHAMPTON,1041110422,193845.00,Grants to educational establishments or not for profit organisations including other businesses
Department for Education,DEPARTMENT FOR EDUCATION,04/02/2020,Grants expenditure,TEACHING WORKFORCE TOTAL,EDGE HILL UNIVERSITY,1041110423,437319.50,Grants to educational establishments or not for profit organisations including other businesses
Department for Education,DEPARTMENT FOR EDUCATION,04/02/2020,Grants expenditure,TEACHING WORKFORCE TOTAL,DURRINGTON MULTI ACADEMY TRUST,1041110424,28870.00,Grants to educational establishments or not for profit organisations including other businesses
Department for Education,DEPARTMENT FOR EDUCATION,04/02/2020,Grants expenditure,TEACHING WORKFORCE TOTAL,THE OAKS SCITT,1041110434,129815.00,Grants to educational establishments or not for profit organisations including other businesses
Department for Education,DEPARTMENT FOR EDUCATION,04/02/2020,Grants expenditure,TEACHING WORKFORCE TOTAL,LIVERPOOL HOPE UNIVERSITY,1041110435,404760.00,Grants to educational establishments or not for profit organisations including other businesses
Department for Education,DEPARTMENT FOR EDUCATION,04/02/2020,Grants expenditure,TEACHING WORKFORCE TOTAL,KINGS COLLEGE GUILDFORD,1041110437,364930.00,Grants to educational establishments or not for profit organisations including other businesses
Department for Education,DEPARTMENT FOR EDUCATION,04/02/2020,Grants expenditure,TEACHING WORKFORCE TOTAL,THE HAVERING TEACHER TRAINING PARTNERSHIP,1041110438,55550.00,Grants to educational establishments or not for profit organisations including other businesses
Department for Education,DEPARTMENT FOR EDUCATION,04/02/2020,Grants expenditure,TEACHING WORKFORCE TOTAL,GRAND UNION TRAINING PARTNERSHIP,1041110439,68866.20,Grants to educational establishments or not for profit organisations including other businesses
Department for Education,DEPARTMENT FOR EDUCATION,04/02/2020,Grants expenditure,TEACHING WORKFORCE TOTAL,ST GEORGES ACADEMY SCITT,1041110450,25895.00,Grants to educational establishments or not for profit organisations including other businesses
Department for Education,DEPARTMENT FOR EDUCATION,04/02/2020,Grants expenditure,TEACHING WORKFORCE TOTAL,ARK SCHOOLS,1041110454,115030.00,Grants to educational establishments or not for profit organisations including other businesses
Department for Education,DEPARTMENT FOR EDUCATION,04/02/2020,Grants expenditure,TEACHING WORKFORCE TOTAL,GOLDSMITH COLLEGE,1041110455,214171.75,Grants to educational establishments or not for profit organisations including other businesses
Department for Education,DEPARTMENT FOR EDUCATION,04/02/2020,Grants expenditure,TEACHING WORKFORCE TOTAL,GEORGE SPENCER TRAINING SCHOOL,1041110456,41220.00,Grants to educational establishments or not for profit organisations including other businesses
Department for Education,DEPARTMENT FOR EDUCATION,04/02/2020,Grants expenditure,TEACHING WORKFORCE TOTAL,UNIVERSITY OF BRISTOL,1041110460,310670.00,Grants to educational establishments or not for profit organisations including other businesses
Department for Education,DEPARTMENT FOR EDUCATION,04/02/2020,Grants expenditure,TEACHING WORKFORCE TOTAL,LONDON METROPOLITAN UNIVERSITY,1041110463,182723.50,Grants to educational establishments or not for profit organisations including other businesses
Department for Education,DEPARTMENT FOR EDUCATION,04/02/2020,Grants expenditure,TEACHING WORKFORCE TOTAL,UNIVERSITY OF NEWCASTLE UPON TYNE,1041110464,223910.00,Grants to educational establishments or not for profit organisations including other businesses
Department for Education,DEPARTMENT FOR EDUCATION,04/02/2020,Grants expenditure,TEACHING WORKFORCE TOTAL,LEICESTERSHIRE SECONDARY SCITT,1041110473,105620.00,Grants to educational establishments or not for profit organisations including other businesses
Department for Education,DEPARTMENT FOR EDUCATION,04/02/2020,Grants expenditure,TEACHING WORKFORCE TOTAL,THE COMPTON SCHOOL,1041110474,36190.00,Grants to educational establishments or not for profit organisations including other businesses
Department for Education,DEPARTMENT FOR EDUCATION,04/02/2020,Grants expenditure,TEACHING WORKFORCE TOTAL,ROYAL WOOTTON BASSETT ACADEMY,1041110475,31380.00,Grants to educational establishments or not for profit organisations including other businesses
Department for Education,DEPARTMENT FOR EDUCATION,04/02/2020,Grants expenditure,TEACHING WORKFORCE TOTAL,CHILTERN TRAINING GROUP,1041110477,48250.00,Grants to educational establishments or not for profit organisations including other businesses
Department for Education,DEPARTMENT FOR EDUCATION,04/02/2020,Grants expenditure,TEACHING WORKFORCE TOTAL,CARMEL TEACHER TRAINING PARTNERSHIP,1041110478,57520.00,Grants to educational establishments or not for profit organisations including other businesses
Department for Education,DEPARTMENT FOR EDUCATION,04/02/2020,Grants expenditure,TEACHING WORKFORCE TOTAL,CANTERBURY CHRIST CHURCH UNIVERSITY,1041110479,371030.00,Grants to educational establishments or not for profit organisations including other businesses
Department for Education,DEPARTMENT FOR EDUCATION,04/02/2020,Grants expenditure,TEACHING WORKFORCE TOTAL,BRUNEL UNIVERSITY,1041110480,151298.00,Grants to educational establishments or not for profit organisations including other businesses
Department for Education,DEPARTMENT FOR EDUCATION,04/02/2020,Grants expenditure,TEACHING WORKFORCE TOTAL,SHEFFIELD HALLAM UNIVERSITY,1041110481,480816.00,Grants to educational establishments or not for profit organisations including other businesses
Department for Education,DEPARTMENT FOR EDUCATION,04/02/2020,Grants expenditure,TEACHING WORKFORCE TOTAL,PADDINGTON ACADEMY,1041110482,168300.00,Grants to educational establishments or not for profit organisations including other businesses
Department for Education,DEPARTMENT FOR EDUCATION,04/02/2020,Grants expenditure,TEACHING WORKFORCE TOTAL,THE UNIVERSITY OF MANCHESTER,1041110484,472895.00,Grants to educational establishments or not for profit organisations including other businesses
Department for Education,DEPARTMENT FOR EDUCATION,04/02/2020,Grants expenditure,TEACHING WORKFORCE TOTAL,LOUGHBOROUGH UNIVERSITY ENTERPRISE LTD,1041110485,34776.00,Grants to educational establishments or not for profit organisations including other businesses
Department for Education,DEPARTMENT FOR EDUCATION,04/02/2020,Grants expenditure,TEACHING WORKFORCE TOTAL,BILLERICAY EDUCATIONAL CONSORTIUM,1041110488,78646.00,Grants to educational establishments or not for profit organisations including other businesses
Department for Education,DEPARTMENT FOR EDUCATION,04/02/2020,Grants expenditure,TEACHING WORKFORCE TOTAL,YORKSHIRE WOLDS TEACHER TRAINING,1041110489,51820.00,Grants to educational establishments or not for profit organisations including other businesses
Department for Education,DEPARTMENT FOR EDUCATION,04/02/2020,Grants expenditure,TEACHING WORKFORCE TOTAL,NORWICH CITY COLLEGE,1041110494,49630.00,Grants to educational establishments or not for profit organisations including other businesses
Department for Education,DEPARTMENT FOR EDUCATION,04/02/2020,Grants expenditure,TEACHING WORKFORCE TOTAL,THE CHERWELL SCHOOL TS ACCOUNT,1041110495,76280.00,Grants to educational establishments or not for profit organisations including other businesses
Department for Education,DEPARTMENT FOR EDUCATION,04/02/2020,Grants expenditure,TEACHING WORKFORCE TOTAL,FYLDE COAST TEACHING SCHOOL,1041110496,47630.00,Grants to educational establishments or not for profit organisations including other businesses
Department for Education,DEPARTMENT FOR EDUCATION,04/02/2020,Grants expenditure,TEACHING WORKFORCE TOTAL,PIMLICO ACADEMY,1041110497,54450.00,Grants to educational establishments or not for profit organisations including other businesses
Department for Education,DEPARTMENT FOR EDUCATION,04/02/2020,Grants expenditure,TEACHING WORKFORCE TOTAL,BROMLEY SCHOOLS COLLEGIATE,1041110498,93855.00,Grants to educational establishments or not for profit organisations including other businesses
Department for Education,DEPARTMENT FOR EDUCATION,04/02/2020,Grants expenditure,TEACHING WORKFORCE TOTAL,BRADFORD COLLEGE,1041110499,31380.00,Grants to educational establishments or not for profit organisations including other businesses
Department for Education,DEPARTMENT FOR EDUCATION,04/02/2020,Grants expenditure,TEACHING WORKFORCE TOTAL,BOURNEMOUTH POOLE & DORSET EAST SECONDARY,1041110500,61970.00,Grants to educational establishments or not for profit organisations including other businesses
Department for Education,DEPARTMENT FOR EDUCATION,04/02/2020,Grants expenditure,TEACHING WORKFORCE TOTAL,BISHOP GROSSETESTE COLLEGE,1041110501,172517.25,Grants to educational establishments or not for profit organisations including other businesses
Department for Education,DEPARTMENT FOR EDUCATION,04/02/2020,Grants expenditure,TEACHING WORKFORCE TOTAL,BIRMINGHAM CITY UNIVERSITY,1041110502,390100.75,Grants to educational establishments or not for profit organisations including other businesses
Department for Education,DEPARTMENT FOR EDUCATION,04/02/2020,Grants expenditure,TEACHING WORKFORCE TOTAL,BATH SPA UNIVERSITY,1041110509,275830.00,Grants to educational establishments or not for profit organisations including other businesses
Department for Education,DEPARTMENT FOR EDUCATION,04/02/2020,Grants expenditure,TEACHING WORKFORCE TOTAL,ALBAN FEDERATION,1041110510,56090.00,Grants to educational establishments or not for profit organisations including other businesses
Department for Education,DEPARTMENT FOR EDUCATION,04/02/2020,Grants expenditure,TEACHING WORKFORCE TOTAL,LEEDS TRINITY UNIVERSITY COLLEGE,1041110511,329435.00,Grants to educational establishments or not for profit organisations including other businesses
Department for Education,DEPARTMENT FOR EDUCATION,04/02/2020,Grants expenditure,TEACHING WORKFORCE TOTAL,LEEDS CITY COUNCIL,1041110512,63130.00,Grants to educational establishments or not for profit organisations including other businesses
Department for Education,DEPARTMENT FOR EDUCATION,04/02/2020,Grants expenditure,TEACHING WORKFORCE TOTAL,GLOUCESTERSHIRE INITIAL TEACHER EDUCATION PARTNERSHIP,1041110513,138047.50,Grants to educational establishments or not for profit organisations including other businesses
Department for Education,DEPARTMENT FOR EDUCATION,04/02/2020,Grants expenditure,TEACHING WORKFORCE TOTAL,HUDDERSFIELD HORIZON SCITT,1041110517,33990.00,Grants to educational establishments or not for profit organisations including other businesses
Department for Education,DEPARTMENT FOR EDUCATION,04/02/2020,Grants expenditure,TEACHING WORKFORCE TOTAL,THE NATIONAL MODERN LANGUAGES SCITT,1041110518,125664.00,Grants to educational establishments or not for profit organisations including other businesses
Department for Education,DEPARTMENT FOR EDUCATION,04/02/2020,Grants expenditure,TEACHING WORKFORCE TOTAL,TEACH KENT & SUSSEX,1041110519,52470.00,Grants to educational establishments or not for profit organisations including other businesses
Department for Education,DEPARTMENT FOR EDUCATION,04/02/2020,Grants expenditure,TEACHING WORKFORCE TOTAL,DURHAM SECONDARY APPLIED SCITT,1041110522,121175.00,Grants to educational establishments or not for profit organisations including other businesses
Department for Education,DEPARTMENT FOR EDUCATION,04/02/2020,Grants expenditure,TEACHING WORKFORCE TOTAL,THE ARTHUR TERRY SCHOOL SCITT,1041110523,63060.00,Grants to educational establishments or not for profit organisations including other businesses
Department for Education,DEPARTMENT FOR EDUCATION,04/02/2020,Grants expenditure,TEACHING WORKFORCE TOTAL,ESSEX COUNTY COUNCIL,1041110525,39600.00,Grants to educational establishments or not for profit organisations including other businesses
Department for Education,DEPARTMENT FOR EDUCATION,04/02/2020,Grants expenditure,TEACHING WORKFORCE TOTAL,SUFFOLK COUNTY COUNCIL,1041110526,97033.75,Grants to educational establishments or not for profit organisations including other businesses
Department for Education,DEPARTMENT FOR EDUCATION,04/02/2020,Grants expenditure,TEACHING WORKFORCE TOTAL,MANCHESTER NEXUS SCITT,1041110530,55000.00,Grants to educational establishments or not for profit organisations including other businesses
Department for Education,DEPARTMENT FOR EDUCATION,04/02/2020,Grants expenditure,TEACHING WORKFORCE TOTAL,BUILE HILL VISUAL ARTS COLLEGE,1041110536,25676.25,Grants to educational establishments or not for profit organisations including other businesses
Department for Education,DEPARTMENT FOR EDUCATION,04/02/2020,Grants expenditure,TEACHING WORKFORCE TOTAL,NOTTINGHAM TRENT UNIVERSITY,1041110537,194700.00,Grants to educational establishments or not for profit organisations including other businesses
Department for Education,DEPARTMENT FOR EDUCATION,04/02/2020,Grants expenditure,TEACHING WORKFORCE TOTAL,KINGSTON UNIVERSITY,1041110539,75945.00,Grants to educational establishments or not for profit organisations including other businesses
Department for Education,DEPARTMENT FOR EDUCATION,04/02/2020,Grants expenditure,TEACHING WORKFORCE TOTAL,UNIVERSITY OF SUSSEX,1041110540,438455.00,Grants to educational establishments or not for profit organisations including other businesses
